Workbook

Sheet Composições
A1: =Orçamentária!A1 -> Manutenção de revestimentos de mármore nas fachadas do Edifício Principal e do Anexo I do SF
A2: COMPOSIÇÕES DE CUSTO UNITÁRIO
A3: =Orçamentária!A3 -> Data: Outubro de 2020
A5: ITEM | B5: DESCRIÇÃO | C5: DISCRIMINAÇÃO DA COMPOSIÇÃO | D5: UNIDADE | E5: COEFICIENTE | F5: CUSTO UNITÁRIO | G5: CUSTO TOTAL | H5: TOTAL DO SERVIÇO | J5: QTD
A6: SF-00001 | B6: =INDEX(Orçamentária!A:B,MATCH(Composições!A6,Orçamentária!A:A,0),2) -> Engenheiro(a) /Arquiteto(a) júnior | D6: =TRIM(INDEX(Orçamentária!C:C,MATCH(Composições!A6,Orçamentária!A:A,0),1)) -> hh | G6: =IF(ISNUMBER(F6),E6*F6,"") ->  | J6: 0
G7: =IF(ISNUMBER(F7),E7*F7,"") ->  | J7: 0
C8: Engenheiro civil de obra junior com encargos complementares | D8: h | E8: 1 | F8: 71.592 | G8: =IF(ISNUMBER(F8),E8*F8,"") -> 71.592 | H8: =SUM(G8:G8) -> 71.592 | J8: 0
G9: =IF(ISNUMBER(F9),E9*F9,"") ->  | J9: 0
A10: SF-00002 | B10: =INDEX(Orçamentária!A:B,MATCH(Composições!A10,Orçamentária!A:A,0),2) -> Mestre de obras | D10: =TRIM(INDEX(Orçamentária!C:C,MATCH(Composições!A10,Orçamentária!A:A,0),1)) -> hh | G10: =IF(ISNUMBER(F10),E10*F10,"") ->  | J10: 0
G11: =IF(ISNUMBER(F11),E11*F11,"") ->  | J11: 0
C12: Mestre de obras com encargos complementares | D12: h | E12: 1 | F12: 22.5625 | G12: =IF(ISNUMBER(F12),E12*F12,"") -> 22.5625 | H12: =SUM(G12:G12) -> 22.5625 | J12: 0
G13: =IF(ISNUMBER(F13),E13*F13,"") ->  | J13: 0
A14: SF-00003 | B14: =INDEX(Orçamentária!A:B,MATCH(Composições!A14,Orçamentária!A:A,0),2) -> Planejamento físico-financeiro | D14: =TRIM(INDEX(Orçamentária!C:C,MATCH(Composições!A14,Orçamentária!A:A,0),1)) -> un | G14: =IF(ISNUMBER(F14),E14*F14,"") ->  | J14: 1
G15: =IF(ISNUMBER(F15),E15*F15,"") ->  | J15: 1
C16: Engenheiro Civil de Obra Pleno com encargos complementares | D16: h | E16: 16 | F16: 81.339 | G16: =IF(ISNUMBER(F16),E16*F16,"") -> 1301.424 | H16: =SUM(G16:G16) -> 1301.424 | J16: 1
G17: =IF(ISNUMBER(F17),E17*F17,"") ->  | J17: 1
A18: SF-00004 | B18: =INDEX(Orçamentária!A:B,MATCH(Composições!A18,Orçamentária!A:A,0),2) -> Projetos de segurança do trabalho | D18: =TRIM(INDEX(Orçamentária!C:C,MATCH(Composições!A18,Orçamentária!A:A,0),1)) -> un | G18: =IF(ISNUMBER(F18),E18*F18,"") ->  | J18: 1
G19: =IF(ISNUMBER(F19),E19*F19,"") ->  | J19: 1
C20: Engenheiro Civil Pleno com encargos complementares | D20: h | E20: 20 | F20: 81.6145 | G20: =IF(ISNUMBER(F20),E20*F20,"") -> 1632.29 | H20: =SUM(G20:G21) -> 1866.23 | J20: 1
C21: Anotação de Responsabilidade Técnica | D21: un | E21: 1 | F21: 233.94 | G21: =IF(ISNUMBER(F21),E21*F21,"") -> 233.94 | J21: 1
G22: =IF(ISNUMBER(F22),E22*F22,"") ->  | J22: 1
A23: SF-00005 | B23: =INDEX(Orçamentária!A:B,MATCH(Composições!A23,Orçamentária!A:A,0),2) -> Demolição de alvenarias | D23: =TRIM(INDEX(Orçamentária!C:C,MATCH(Composições!A23,Orçamentária!A:A,0),1)) -> m3 | G23: =IF(ISNUMBER(F23),E23*F23,"") ->  | J23: 0
G24: =IF(ISNUMBER(F24),E24*F24,"") ->  | J24: 0
C25: Pedreiro com Encargos Complementares | D25: h | E25: 0.225 | F25: 19.475 | G25: =IF(ISNUMBER(F25),E25*F25,"") -> 4.381875 | H25: =SUM(G25:G26) -> 38.2170142 | J25: 0
C26: Servente com Encargos Complementares | D26: h | E26: 2.3248 | F26: 14.554 | G26: =IF(ISNUMBER(F26),E26*F26,"") -> 33.8351392 | J26: 0
G27: =IF(ISNUMBER(F27),E27*F27,"") ->  | J27: 0
A28: SF-00006 | B28: =INDEX(Orçamentária!A:B,MATCH(Composições!A28,Orçamentária!A:A,0),2) -> Demolição de concreto simples | D28: =TRIM(INDEX(Orçamentária!C:C,MATCH(Composições!A28,Orçamentária!A:A,0),1)) -> m3 | G28: =IF(ISNUMBER(F28),E28*F28,"") ->  | J28: 0
G29: =IF(ISNUMBER(F29),E29*F29,"") ->  | J29: 0
C30: Pedreiro com Encargos Complementares | D30: h | E30: 1.3 | F30: 19.475 | G30: =IF(ISNUMBER(F30),E30*F30,"") -> 25.3175 | H30: =SUM(G30:G31) -> 214.5195 | J30: 0
C31: Servente com Encargos Complementares | D31: h | E31: 13 | F31: 14.554 | G31: =IF(ISNUMBER(F31),E31*F31,"") -> 189.202 | J31: 0
G32: =IF(ISNUMBER(F32),E32*F32,"") ->  | J32: 0
A33: SF-00007 | B33: =INDEX(Orçamentária!A:B,MATCH(Composições!A33,Orçamentária!A:A,0),2) -> Demolição de contrapiso | D33: =TRIM(INDEX(Orçamentária!C:C,MATCH(Composições!A33,Orçamentária!A:A,0),1)) -> m2 | G33: =IF(ISNUMBER(F33),E33*F33,"") ->  | J33: 0
G34: =IF(ISNUMBER(F34),E34*F34,"") ->  | J34: 0
C35: Servente com Encargos Complementares | D35: h | E35: 0.7 | F35: 14.554 | G35: =IF(ISNUMBER(F35),E35*F35,"") -> 10.1878 | H35: =SUM(G35:G35) -> 10.1878 | J35: 0
G36: =IF(ISNUMBER(F36),E36*F36,"") ->  | J36: 0
A37: SF-00008 | B37: =INDEX(Orçamentária!A:B,MATCH(Composições!A37,Orçamentária!A:A,0),2) -> Demolição de fechamento ou parede em gesso acartonado | D37: =TRIM(INDEX(Orçamentária!C:C,MATCH(Composições!A37,Orçamentária!A:A,0),1)) -> m2 | G37: =IF(ISNUMBER(F37),E37*F37,"") ->  | J37: 0
G38: =IF(ISNUMBER(F38),E38*F38,"") ->  | J38: 0
C39: Montador de estrutura metálica com encargos complementares | D39: h | E39: 0.1186 | F39: 14.9625 | G39: =IF(ISNUMBER(F39),E39*F39,"") -> 1.7745525 | H39: =SUM(G39:G40) -> 5.1641791 | J39: 0
C40: Servente com Encargos Complementares | D40: h | E40: 0.2329 | F40: 14.554 | G40: =IF(ISNUMBER(F40),E40*F40,"") -> 3.3896266 | J40: 0
G41: =IF(ISNUMBER(F41),E41*F41,"") ->  | J41: 0
A42: SF-00009 | B42: =INDEX(Orçamentária!A:B,MATCH(Composições!A42,Orçamentária!A:A,0),2) -> Demolição de forro de gesso | D42: =TRIM(INDEX(Orçamentária!C:C,MATCH(Composições!A42,Orçamentária!A:A,0),1)) -> m2 | G42: =IF(ISNUMBER(F42),E42*F42,"") ->  | J42: 0
G43: =IF(ISNUMBER(F43),E43*F43,"") ->  | J43: 0
C44: Montador de estrutura metálica com encargos complementares | D44: h | E44: 0.0258 | F44: 14.9625 | G44: =IF(ISNUMBER(F44),E44*F44,"") -> 0.3860325 | H44: =SUM(G44:G45) -> 1.1239203 | J44: 0
C45: Servente com Encargos Complementares | D45: h | E45: 0.0507 | F45: 14.554 | G45: =IF(ISNUMBER(F45),E45*F45,"") -> 0.7378878 | J45: 0
G46: =IF(ISNUMBER(F46),E46*F46,"") ->  | J46: 0
A47: SF-00010 | B47: =INDEX(Orçamentária!A:B,MATCH(Composições!A47,Orçamentária!A:A,0),2) -> Demolição de infraestrutura elétrica (eletrodutos, eletrocalhas, cabos) | D47: =TRIM(INDEX(Orçamentária!C:C,MATCH(Composições!A47,Orçamentária!A:A,0),1)) -> m | G47: =IF(ISNUMBER(F47),E47*F47,"") ->  | J47: 0
G48: =IF(ISNUMBER(F48),E48*F48,"") ->  | J48: 0
C49: Eletricista com encargos complementares | D49: h | E49: =ROUND(0.0096*5,4) -> 0.048 | F49: 19.646 | G49: =IF(ISNUMBER(F49),E49*F49,"") -> 0.943008 | H49: =SUM(G49:G50) -> 2.311084 | J49: 0
C50: Servente com Encargos Complementares | D50: h | E50: =ROUND(0.0188*5,4) -> 0.094 | F50: 14.554 | G50: =IF(ISNUMBER(F50),E50*F50,"") -> 1.368076 | J50: 0
G51: =IF(ISNUMBER(F51),E51*F51,"") ->  | J51: 0
A52: SF-00011 | B52: =INDEX(Orçamentária!A:B,MATCH(Composições!A52,Orçamentária!A:A,0),2) -> Demolição de revestimento cerâmico, granito, mármore ou granitina | D52: =TRIM(INDEX(Orçamentária!C:C,MATCH(Composições!A52,Orçamentária!A:A,0),1)) -> m2 | G52: =IF(ISNUMBER(F52),E52*F52,"") ->  | J52: 0
G53: =IF(ISNUMBER(F53),E53*F53,"") ->  | J53: 0
C54: Martelete ou rompedor pneumático manual, 28 kg, com silenciador - CHP diurno. AF_07/2016 | D54: chp | E54: 0.0699 | F54: 18.05 | G54: =IF(ISNUMBER(F54),E54*F54,"") -> 1.261695 | H54: =SUM(G54:G57) -> 8.44156035 | J54: 0
C55: Martelete ou rompedor pneumático manual, 28 kg, com silenciador - CHI diurno. AF_07/2016 | D55: chi | E55: 0.0482 | F55: 16.739 | G55: =IF(ISNUMBER(F55),E55*F55,"") -> 0.8068198 | J55: 0
C56: Azulejista ou ladrilhista com encargos complementares | D56: h | E56: 0.1055 | F56: 19.4085 | G56: =IF(ISNUMBER(F56),E56*F56,"") -> 2.04759675 | J56: 0
C57: Servente com Encargos Complementares | D57: h | E57: 0.2972 | F57: 14.554 | G57: =IF(ISNUMBER(F57),E57*F57,"") -> 4.3254488 | J57: 0
G58: =IF(ISNUMBER(F58),E58*F58,"") ->  | J58: 0
A59: SF-00012 | B59: =INDEX(Orçamentária!A:B,MATCH(Composições!A59,Orçamentária!A:A,0),2) -> Demolição de revestimento em argamassa | D59: =TRIM(INDEX(Orçamentária!C:C,MATCH(Composições!A59,Orçamentária!A:A,0),1)) -> m2 | G59: =IF(ISNUMBER(F59),E59*F59,"") ->  | J59: 231.21
G60: =IF(ISNUMBER(F60),E60*F60,"") ->  | J60: 231.21
C61: Pedreiro com Encargos Complementares | D61: h | E61: 0.0374 | F61: 19.475 | G61: =IF(ISNUMBER(F61),E61*F61,"") -> 0.728365 | H61: =SUM(G61:G62) -> 2.2609012 | J61: 231.21
C62: Servente com Encargos Complementares | D62: h | E62: 0.1053 | F62: 14.554 | G62: =IF(ISNUMBER(F62),E62*F62,"") -> 1.5325362 | J62: 231.21
G63: =IF(ISNUMBER(F63),E63*F63,"") ->  | J63: 231.21
A64: SF-00013 | B64: =INDEX(Orçamentária!A:B,MATCH(Composições!A64,Orçamentária!A:A,0),2) -> Demolição de tubulação hidrossanitária embutida com conexões e acessórios | D64: =TRIM(INDEX(Orçamentária!C:C,MATCH(Composições!A64,Orçamentária!A:A,0),1)) -> m | G64: =IF(ISNUMBER(F64),E64*F64,"") ->  | J64: 0
G65: =IF(ISNUMBER(F65),E65*F65,"") ->  | J65: 0
C66: Encanador ou Bombeiro Hidráulico com Encargos Complementares | D66: h | E66: 0.0071 | F66: 19.0665 | G66: =IF(ISNUMBER(F66),E66*F66,"") -> 0.13537215 | H66: =SUM(G66:G67) -> 0.33912815 | J66: 0
C67: Servente com Encargos Complementares | D67: h | E67: 0.014 | F67: 14.554 | G67: =IF(ISNUMBER(F67),E67*F67,"") -> 0.203756 | J67: 0
G68: =IF(ISNUMBER(F68),E68*F68,"") ->  | J68: 0
A69: SF-00014 | B69: =INDEX(Orçamentária!A:B,MATCH(Composições!A69,Orçamentária!A:A,0),2) -> Demolição em concreto armado | D69: =TRIM(INDEX(Orçamentária!C:C,MATCH(Composições!A69,Orçamentária!A:A,0),1)) -> m3 | G69: =IF(ISNUMBER(F69),E69*F69,"") ->  | J69: 0
G70: =IF(ISNUMBER(F70),E70*F70,"") ->  | J70: 0
C71: Martelete ou rompedor pneumático manual, 28 kg, com silenciador - CHP diurno. AF_07/2016 | D71: chp | E71: 3.2468 | F71: 18.05 | G71: =IF(ISNUMBER(F71),E71*F71,"") -> 58.60474 | H71: =SUM(G71:G75) -> 194.0587933 | J71: 0
C72: Martelete ou rompedor pneumático manual, 28 kg, com silenciador - CHI diurno. AF_07/2016 | D72: chi | E72: 0.9202 | F72: 16.739 | G72: =IF(ISNUMBER(F72),E72*F72,"") -> 15.4032278 | J72: 0
C73: CABO DE ACO GALVANIZADO, DIAMETRO 9,53 MM (3/8"), COM ALMA DE FIBRA 6 X 25 F | D73: kg | E73: 0.2835 | F73: 42.009 | G73: =IF(ISNUMBER(F73),E73*F73,"") -> 11.9095515 | J73: 0
C74: Pedreiro com Encargos Complementares | D74: h | E74: 0.6366 | F74: 19.475 | G74: =IF(ISNUMBER(F74),E74*F74,"") -> 12.397785 | J74: 0
C75: Servente com Encargos Complementares | D75: h | E75: 6.5785 | F75: 14.554 | G75: =IF(ISNUMBER(F75),E75*F75,"") -> 95.743489 | J75: 0
G76: =IF(ISNUMBER(F76),E76*F76,"") ->  | J76: 0
A77: SF-00016 | B77: =INDEX(Orçamentária!A:B,MATCH(Composições!A77,Orçamentária!A:A,0),2) -> Remoção de armários | D77: =TRIM(INDEX(Orçamentária!C:C,MATCH(Composições!A77,Orçamentária!A:A,0),1)) -> m2 | G77: =IF(ISNUMBER(F77),E77*F77,"") ->  | J77: 0
G78: =IF(ISNUMBER(F78),E78*F78,"") ->  | J78: 0
C79: Carpinteiro de esquadria com encargos complementares | D79: h | E79: 0.35 | F79: 19.3705 | G79: =IF(ISNUMBER(F79),E79*F79,"") -> 6.779675 | H79: =SUM(G79:G80) -> 11.873575 | J79: 0
C80: Servente com Encargos Complementares | D80: h | E80: 0.35 | F80: 14.554 | G80: =IF(ISNUMBER(F80),E80*F80,"") -> 5.0939 | J80: 0
G81: =IF(ISNUMBER(F81),E81*F81,"") ->  | J81: 0
A82: SF-00017 | B82: =INDEX(Orçamentária!A:B,MATCH(Composições!A82,Orçamentária!A:A,0),2) -> Remoção de bancadas | D82: =TRIM(INDEX(Orçamentária!C:C,MATCH(Composições!A82,Orçamentária!A:A,0),1)) -> m2 | G82: =IF(ISNUMBER(F82),E82*F82,"") ->  | J82: 0
G83: =IF(ISNUMBER(F83),E83*F83,"") ->  | J83: 0
C84: Pedreiro com Encargos Complementares | D84: h | E84: 0.15 | F84: 19.475 | G84: =IF(ISNUMBER(F84),E84*F84,"") -> 2.92125 | H84: =SUM(G84:G85) -> 17.47525 | J84: 0
C85: Servente com Encargos Complementares | D85: h | E85: 1 | F85: 14.554 | G85: =IF(ISNUMBER(F85),E85*F85,"") -> 14.554 | J85: 0
G86: =IF(ISNUMBER(F86),E86*F86,"") ->  | J86: 0
A87: SF-00018 | B87: =INDEX(Orçamentária!A:B,MATCH(Composições!A87,Orçamentária!A:A,0),2) -> Remoção de batentes de madeira | D87: =TRIM(INDEX(Orçamentária!C:C,MATCH(Composições!A87,Orçamentária!A:A,0),1)) -> un | G87: =IF(ISNUMBER(F87),E87*F87,"") ->  | J87: 0
G88: =IF(ISNUMBER(F88),E88*F88,"") ->  | J88: 0
C89: Pedreiro com Encargos Complementares | D89: h | E89: =0.08/2 -> 0.04 | F89: 19.475 | G89: =IF(ISNUMBER(F89),E89*F89,"") -> 0.779 | H89: =SUM(G89:G90) -> 6.6006 | J89: 0
C90: Servente com Encargos Complementares | D90: h | E90: =0.8/2 -> 0.4 | F90: 14.554 | G90: =IF(ISNUMBER(F90),E90*F90,"") -> 5.8216 | J90: 0
G91: =IF(ISNUMBER(F91),E91*F91,"") ->  | J91: 0
A92: SF-00019 | B92: =INDEX(Orçamentária!A:B,MATCH(Composições!A92,Orçamentária!A:A,0),2) -> Remoção de canaleta em alumínio | D92: =TRIM(INDEX(Orçamentária!C:C,MATCH(Composições!A92,Orçamentária!A:A,0),1)) -> m | G92: =IF(ISNUMBER(F92),E92*F92,"") ->  | J92: 0
G93: =IF(ISNUMBER(F93),E93*F93,"") ->  | J93: 0
C94: Eletricista com encargos complementares | D94: h | E94: =0.75*0.1 -> 0.075 | F94: 19.646 | G94: =IF(ISNUMBER(F94),E94*F94,"") -> 1.47345 | H94: =SUM(G94:G95) -> 3.65655 | J94: 0
C95: Servente com Encargos Complementares | D95: h | E95: =0.75*0.2 -> 0.15 | F95: 14.554 | G95: =IF(ISNUMBER(F95),E95*F95,"") -> 2.1831 | J95: 0
G96: =IF(ISNUMBER(F96),E96*F96,"") ->  | J96: 0
A97: SF-00020 | B97: =INDEX(Orçamentária!A:B,MATCH(Composições!A97,Orçamentária!A:A,0),2) -> Remoção de carpete | D97: =TRIM(INDEX(Orçamentária!C:C,MATCH(Composições!A97,Orçamentária!A:A,0),1)) -> m2 | G97: =IF(ISNUMBER(F97),E97*F97,"") ->  | J97: 0
G98: =IF(ISNUMBER(F98),E98*F98,"") ->  | J98: 0
C99: Pedreiro com Encargos Complementares | D99: h | E99: 0.01 | F99: 19.475 | G99: =IF(ISNUMBER(F99),E99*F99,"") -> 0.19475 | H99: =SUM(G99:G100) -> 1.65015 | J99: 0
C100: Servente com Encargos Complementares | D100: h | E100: 0.1 | F100: 14.554 | G100: =IF(ISNUMBER(F100),E100*F100,"") -> 1.4554 | J100: 0
G101: =IF(ISNUMBER(F101),E101*F101,"") ->  | J101: 0
A102: SF-00021 | B102: =INDEX(Orçamentária!A:B,MATCH(Composições!A102,Orçamentária!A:A,0),2) -> Remoção de cortinas | D102: =TRIM(INDEX(Orçamentária!C:C,MATCH(Composições!A102,Orçamentária!A:A,0),1)) -> m | G102: =IF(ISNUMBER(F102),E102*F102,"") ->  | J102: 0
G103: =IF(ISNUMBER(F103),E103*F103,"") ->  | J103: 0
C104: Ajudante especializado com encargos complementares | D104: h | E104: =ROUND(1/6,4) -> 0.1667 | F104: 17.1855 | G104: =IF(ISNUMBER(F104),E104*F104,"") -> 2.86482285 | H104: =SUM(G104:G104) -> 2.86482285 | J104: 0
G105: =IF(ISNUMBER(F105),E105*F105,"") ->  | J105: 0
A106: SF-00022 | B106: =INDEX(Orçamentária!A:B,MATCH(Composições!A106,Orçamentária!A:A,0),2) -> Remoção de difusores, grelhas e acessórios de climatização | D106: =TRIM(INDEX(Orçamentária!C:C,MATCH(Composições!A106,Orçamentária!A:A,0),1)) -> un | G106: =IF(ISNUMBER(F106),E106*F106,"") ->  | J106: 0
G107: =IF(ISNUMBER(F107),E107*F107,"") ->  | J107: 0
C108: Ajudante de operação em geral com encargos complementares | D108: h | E108: 0.6 | F108: 15.523 | G108: =IF(ISNUMBER(F108),E108*F108,"") -> 9.3138 | H108: =SUM(G108:G109) -> 18.0462 | J108: 0
C109: Servente com Encargos Complementares | D109: h | E109: 0.6 | F109: 14.554 | G109: =IF(ISNUMBER(F109),E109*F109,"") -> 8.7324 | J109: 0
G110: =IF(ISNUMBER(F110),E110*F110,"") ->  | J110: 0
A111: SF-00023 | B111: =INDEX(Orçamentária!A:B,MATCH(Composições!A111,Orçamentária!A:A,0),2) -> Remoção de divisória de mármore ou granito | D111: =TRIM(INDEX(Orçamentária!C:C,MATCH(Composições!A111,Orçamentária!A:A,0),1)) -> m2 | G111: =IF(ISNUMBER(F111),E111*F111,"") ->  | J111: 0
G112: =IF(ISNUMBER(F112),E112*F112,"") ->  | J112: 0
C113: Marmorista/graniteiro com encargos complementares | D113: h | E113: 0.6 | F113: 16.3305 | G113: =IF(ISNUMBER(F113),E113*F113,"") -> 9.7983 | H113: =SUM(G113:G114) -> 27.2631 | J113: 0
C114: Servente com Encargos Complementares | D114: h | E114: 1.2 | F114: 14.554 | G114: =IF(ISNUMBER(F114),E114*F114,"") -> 17.4648 | J114: 0
G115: =IF(ISNUMBER(F115),E115*F115,"") ->  | J115: 0
A116: SF-00024 | B116: =INDEX(Orçamentária!A:B,MATCH(Composições!A116,Orçamentária!A:A,0),2) -> Remoção de divisórias de MDF e gesso acartonado | D116: =TRIM(INDEX(Orçamentária!C:C,MATCH(Composições!A116,Orçamentária!A:A,0),1)) -> m2 | G116: =IF(ISNUMBER(F116),E116*F116,"") ->  | J116: 0
G117: =IF(ISNUMBER(F117),E117*F117,"") ->  | J117: 0
C118: Carpinteiro de esquadria com encargos complementares | D118: h | E118: 1.2 | F118: 19.3705 | G118: =IF(ISNUMBER(F118),E118*F118,"") -> 23.2446 | H118: =SUM(G118:G118) -> 23.2446 | J118: 0
G119: =IF(ISNUMBER(F119),E119*F119,"") ->  | J119: 0
A120: SF-00025 | B120: =INDEX(Orçamentária!A:B,MATCH(Composições!A120,Orçamentária!A:A,0),2) -> Remoção de dutos/tubulações | D120: =TRIM(INDEX(Orçamentária!C:C,MATCH(Composições!A120,Orçamentária!A:A,0),1)) -> m | G120: =IF(ISNUMBER(F120),E120*F120,"") ->  | J120: 0
G121: =IF(ISNUMBER(F121),E121*F121,"") ->  | J121: 0
C122: Encanador ou Bombeiro Hidráulico com Encargos Complementares | D122: h | E122: 0.175 | F122: 19.0665 | G122: =IF(ISNUMBER(F122),E122*F122,"") -> 3.3366375 | H122: =SUM(G122:G123) -> 7.7028375 | J122: 0
C123: Servente com Encargos Complementares | D123: h | E123: 0.3 | F123: 14.554 | G123: =IF(ISNUMBER(F123),E123*F123,"") -> 4.3662 | J123: 0
G124: =IF(ISNUMBER(F124),E124*F124,"") ->  | J124: 0
A125: SF-00026 | B125: =INDEX(Orçamentária!A:B,MATCH(Composições!A125,Orçamentária!A:A,0),2) -> Remoção de esquadrias metálicas | D125: =TRIM(INDEX(Orçamentária!C:C,MATCH(Composições!A125,Orçamentária!A:A,0),1)) -> m2 | G125: =IF(ISNUMBER(F125),E125*F125,"") ->  | J125: 0
G126: =IF(ISNUMBER(F126),E126*F126,"") ->  | J126: 0
C127: Pedreiro com Encargos Complementares | D127: h | E127: 0.05 | F127: 19.475 | G127: =IF(ISNUMBER(F127),E127*F127,"") -> 0.97375 | H127: =SUM(G127:G128) -> 8.25075 | J127: 0
C128: Servente com Encargos Complementares | D128: h | E128: 0.5 | F128: 14.554 | G128: =IF(ISNUMBER(F128),E128*F128,"") -> 7.277 | J128: 0
G129: =IF(ISNUMBER(F129),E129*F129,"") ->  | J129: 0
A130: SF-00027 | B130: =INDEX(Orçamentária!A:B,MATCH(Composições!A130,Orçamentária!A:A,0),2) -> Remoção de exaustor | D130: =TRIM(INDEX(Orçamentária!C:C,MATCH(Composições!A130,Orçamentária!A:A,0),1)) -> un | G130: =IF(ISNUMBER(F130),E130*F130,"") ->  | J130: 0
G131: =IF(ISNUMBER(F131),E131*F131,"") ->  | J131: 0
C132: Eletricista com encargos complementares | D132: h | E132: 0.3 | F132: 19.646 | G132: =IF(ISNUMBER(F132),E132*F132,"") -> 5.8938 | H132: =SUM(G132:G132) -> 5.8938 | J132: 0
G133: =IF(ISNUMBER(F133),E133*F133,"") ->  | J133: 0
A134: SF-00028 | B134: =INDEX(Orçamentária!A:B,MATCH(Composições!A134,Orçamentária!A:A,0),2) -> Remoção de fechadura/puxador de porta | D134: =TRIM(INDEX(Orçamentária!C:C,MATCH(Composições!A134,Orçamentária!A:A,0),1)) -> un | G134: =IF(ISNUMBER(F134),E134*F134,"") ->  | J134: 0
G135: =IF(ISNUMBER(F135),E135*F135,"") ->  | J135: 0
C136: Carpinteiro de esquadria com encargos complementares | D136: h | E136: =0.25 -> 0.25 | F136: 19.3705 | G136: =IF(ISNUMBER(F136),E136*F136,"") -> 4.842625 | H136: =SUM(G136:G136) -> 4.842625 | J136: 0
G137: =IF(ISNUMBER(F137),E137*F137,"") ->  | J137: 0
A138: SF-00029 | B138: =INDEX(Orçamentária!A:B,MATCH(Composições!A138,Orçamentária!A:A,0),2) -> Remoção de folha de porta e dobradiças | D138: =TRIM(INDEX(Orçamentária!C:C,MATCH(Composições!A138,Orçamentária!A:A,0),1)) -> un | G138: =IF(ISNUMBER(F138),E138*F138,"") ->  | J138: 0
G139: =IF(ISNUMBER(F139),E139*F139,"") ->  | J139: 0
C140: Pedreiro com Encargos Complementares | D140: h | E140: 0.1315 | F140: 19.475 | G140: =IF(ISNUMBER(F140),E140*F140,"") -> 2.5609625 | H140: =SUM(G140:G141) -> 6.3188053 | J140: 0
C141: Servente com Encargos Complementares | D141: h | E141: 0.2582 | F141: 14.554 | G141: =IF(ISNUMBER(F141),E141*F141,"") -> 3.7578428 | J141: 0
G142: =IF(ISNUMBER(F142),E142*F142,"") ->  | J142: 0
A143: SF-00030 | B143: =INDEX(Orçamentária!A:B,MATCH(Composições!A143,Orçamentária!A:A,0),2) -> Remoção de laminado melamínico (LDAP), em PVC ou vinílico | D143: =TRIM(INDEX(Orçamentária!C:C,MATCH(Composições!A143,Orçamentária!A:A,0),1)) -> m2 | G143: =IF(ISNUMBER(F143),E143*F143,"") ->  | J143: 0
G144: =IF(ISNUMBER(F144),E144*F144,"") ->  | J144: 0
C145: Pedreiro com Encargos Complementares | D145: h | E145: 0.09 | F145: 19.475 | G145: =IF(ISNUMBER(F145),E145*F145,"") -> 1.75275 | H145: =SUM(G145:G146) -> 14.85135 | J145: 0
C146: Servente com Encargos Complementares | D146: h | E146: 0.9 | F146: 14.554 | G146: =IF(ISNUMBER(F146),E146*F146,"") -> 13.0986 | J146: 0
G147: =IF(ISNUMBER(F147),E147*F147,"") ->  | J147: 0
A148: SF-00031 | B148: =INDEX(Orçamentária!A:B,MATCH(Composições!A148,Orçamentária!A:A,0),2) -> Remoção de louças | D148: =TRIM(INDEX(Orçamentária!C:C,MATCH(Composições!A148,Orçamentária!A:A,0),1)) -> un | G148: =IF(ISNUMBER(F148),E148*F148,"") ->  | J148: 0
G149: =IF(ISNUMBER(F149),E149*F149,"") ->  | J149: 0
C150: Encanador ou Bombeiro Hidráulico com Encargos Complementares | D150: h | E150: 0.1755 | F150: 19.0665 | G150: =IF(ISNUMBER(F150),E150*F150,"") -> 3.34617075 | H150: =SUM(G150:G151) -> 8.36438995 | J150: 0
C151: Servente com Encargos Complementares | D151: h | E151: 0.3448 | F151: 14.554 | G151: =IF(ISNUMBER(F151),E151*F151,"") -> 5.0182192 | J151: 0
G152: =IF(ISNUMBER(F152),E152*F152,"") ->  | J152: 0
A153: SF-00032 | B153: =INDEX(Orçamentária!A:B,MATCH(Composições!A153,Orçamentária!A:A,0),2) -> Remoção de luminária | D153: =TRIM(INDEX(Orçamentária!C:C,MATCH(Composições!A153,Orçamentária!A:A,0),1)) -> un | G153: =IF(ISNUMBER(F153),E153*F153,"") ->  | J153: 0
G154: =IF(ISNUMBER(F154),E154*F154,"") ->  | J154: 0
C155: Eletricista com encargos complementares | D155: h | E155: =0.0183*5 -> 0.0915 | F155: 19.646 | G155: =IF(ISNUMBER(F155),E155*F155,"") -> 1.797609 | H155: =SUM(G155:G156) -> 4.410052 | J155: 0
C156: Servente com Encargos Complementares | D156: h | E156: =0.0359*5 -> 0.1795 | F156: 14.554 | G156: =IF(ISNUMBER(F156),E156*F156,"") -> 2.612443 | J156: 0
G157: =IF(ISNUMBER(F157),E157*F157,"") ->  | J157: 0
C158: Obs.: Remoção com reaproveitamento | G158: =IF(ISNUMBER(F158),E158*F158,"") ->  | J158: 0
G159: =IF(ISNUMBER(F159),E159*F159,"") ->  | J159: 0
A160: SF-00033 | B160: =INDEX(Orçamentária!A:B,MATCH(Composições!A160,Orçamentária!A:A,0),2) -> Remoção de metais e acessórios | D160: =TRIM(INDEX(Orçamentária!C:C,MATCH(Composições!A160,Orçamentária!A:A,0),1)) -> un | G160: =IF(ISNUMBER(F160),E160*F160,"") ->  | J160: 0
G161: =IF(ISNUMBER(F161),E161*F161,"") ->  | J161: 0
C162: Encanador ou Bombeiro Hidráulico com Encargos Complementares | D162: h | E162: 0.128 | F162: 19.0665 | G162: =IF(ISNUMBER(F162),E162*F162,"") -> 2.440512 | H162: =SUM(G162:G163) -> 6.0993876 | J162: 0
C163: Servente com Encargos Complementares | D163: h | E163: 0.2514 | F163: 14.554 | G163: =IF(ISNUMBER(F163),E163*F163,"") -> 3.6588756 | J163: 0
G164: =IF(ISNUMBER(F164),E164*F164,"") ->  | J164: 0
A165: SF-00034 | B165: =INDEX(Orçamentária!A:B,MATCH(Composições!A165,Orçamentária!A:A,0),2) -> Remoção de painéis de vidro temperado | D165: =TRIM(INDEX(Orçamentária!C:C,MATCH(Composições!A165,Orçamentária!A:A,0),1)) -> m2 | G165: =IF(ISNUMBER(F165),E165*F165,"") ->  | J165: 0
G166: =IF(ISNUMBER(F166),E166*F166,"") ->  | J166: 0
C167: Servente com Encargos Complementares | D167: h | E167: 0.35 | F167: 14.554 | G167: =IF(ISNUMBER(F167),E167*F167,"") -> 5.0939 | H167: =SUM(G167:G168) -> 11.91015 | J167: 0
C168: Pedreiro com Encargos Complementares | D168: h | E168: 0.35 | F168: 19.475 | G168: =IF(ISNUMBER(F168),E168*F168,"") -> 6.81625 | J168: 0
G169: =IF(ISNUMBER(F169),E169*F169,"") ->  | J169: 0
A170: SF-00035 | B170: =INDEX(Orçamentária!A:B,MATCH(Composições!A170,Orçamentária!A:A,0),2) -> Remoção de película | D170: =TRIM(INDEX(Orçamentária!C:C,MATCH(Composições!A170,Orçamentária!A:A,0),1)) -> m2 | G170: =IF(ISNUMBER(F170),E170*F170,"") ->  | J170: 0
G171: =IF(ISNUMBER(F171),E171*F171,"") ->  | J171: 0
C172: Vidraceiro com encargos complementares | D172: h | E172: 0.4 | F172: 18.145 | G172: =IF(ISNUMBER(F172),E172*F172,"") -> 7.258 | H172: =SUM(G172:G172) -> 7.258 | J172: 0
G173: =IF(ISNUMBER(F173),E173*F173,"") ->  | J173: 0
A174: SF-00036 | B174: =INDEX(Orçamentária!A:B,MATCH(Composições!A174,Orçamentária!A:A,0),2) -> Remoção de persianas | D174: =TRIM(INDEX(Orçamentária!C:C,MATCH(Composições!A174,Orçamentária!A:A,0),1)) -> m | G174: =IF(ISNUMBER(F174),E174*F174,"") ->  | J174: 0
G175: =IF(ISNUMBER(F175),E175*F175,"") ->  | J175: 0
C176: Ajudante especializado com encargos complementares | D176: h | E176: =ROUND(1/6,4) -> 0.1667 | F176: 17.1855 | G176: =IF(ISNUMBER(F176),E176*F176,"") -> 2.86482285 | H176: =SUM(G176:G176) -> 2.86482285 | J176: 0
G177: =IF(ISNUMBER(F177),E177*F177,"") ->  | J177: 0
A178: SF-00037 | B178: =INDEX(Orçamentária!A:B,MATCH(Composições!A178,Orçamentária!A:A,0),2) -> Remoção de pintura ou textura | D178: =TRIM(INDEX(Orçamentária!C:C,MATCH(Composições!A178,Orçamentária!A:A,0),1)) -> m2 | G178: =IF(ISNUMBER(F178),E178*F178,"") ->  | J178: 0
G179: =IF(ISNUMBER(F179),E179*F179,"") ->  | J179: 0
C180: Servente com Encargos Complementares | D180: h | E180: 0.4 | F180: 14.554 | G180: =IF(ISNUMBER(F180),E180*F180,"") -> 5.8216 | H180: =SUM(G180:G180) -> 5.8216 | J180: 0
G181: =IF(ISNUMBER(F181),E181*F181,"") ->  | J181: 0
A182: SF-00038 | B182: =INDEX(Orçamentária!A:B,MATCH(Composições!A182,Orçamentária!A:A,0),2) -> Remoção de placas de forro | D182: =TRIM(INDEX(Orçamentária!C:C,MATCH(Composições!A182,Orçamentária!A:A,0),1)) -> m2 | G182: =IF(ISNUMBER(F182),E182*F182,"") ->  | J182: 0
G183: =IF(ISNUMBER(F183),E183*F183,"") ->  | J183: 0
C184: Montador de estrutura metálica com encargos complementares | D184: h | E184: =0.0258*3 -> 0.0774 | F184: 14.9625 | G184: =IF(ISNUMBER(F184),E184*F184,"") -> 1.1580975 | H184: =SUM(G184:G185) -> 3.3717609 | J184: 0
C185: Servente com Encargos Complementares | D185: h | E185: =0.0507*3 -> 0.1521 | F185: 14.554 | G185: =IF(ISNUMBER(F185),E185*F185,"") -> 2.2136634 | J185: 0
G186: =IF(ISNUMBER(F186),E186*F186,"") ->  | J186: 0
C187: Obs.: remoção com reaproveitamento | G187: =IF(ISNUMBER(F187),E187*F187,"") ->  | J187: 0
G188: =IF(ISNUMBER(F188),E188*F188,"") ->  | J188: 0
A189: SF-00039 | B189: =INDEX(Orçamentária!A:B,MATCH(Composições!A189,Orçamentária!A:A,0),2) -> Remoção de quadros de elétricos ou de telecomunicações | D189: =TRIM(INDEX(Orçamentária!C:C,MATCH(Composições!A189,Orçamentária!A:A,0),1)) -> un | G189: =IF(ISNUMBER(F189),E189*F189,"") ->  | J189: 0
G190: =IF(ISNUMBER(F190),E190*F190,"") ->  | J190: 0
C191: Auxiliar de eletricista com encargos complementares | D191: h | E191: 0.5 | F191: 15.447 | G191: =IF(ISNUMBER(F191),E191*F191,"") -> 7.7235 | H191: =SUM(G191:G194) -> 51.5755 | J191: 0
C192: Eletricista com encargos complementares | D192: h | E192: 0.5 | F192: 19.646 | G192: =IF(ISNUMBER(F192),E192*F192,"") -> 9.823 | J192: 0
C193: Pedreiro com Encargos Complementares | D193: h | E193: 1 | F193: 19.475 | G193: =IF(ISNUMBER(F193),E193*F193,"") -> 19.475 | J193: 0
C194: Servente com Encargos Complementares | D194: h | E194: 1 | F194: 14.554 | G194: =IF(ISNUMBER(F194),E194*F194,"") -> 14.554 | J194: 0
G195: =IF(ISNUMBER(F195),E195*F195,"") ->  | J195: 0
A196: SF-00040 | B196: =INDEX(Orçamentária!A:B,MATCH(Composições!A196,Orçamentária!A:A,0),2) -> Remoção de revestimento acústico | D196: =TRIM(INDEX(Orçamentária!C:C,MATCH(Composições!A196,Orçamentária!A:A,0),1)) -> m2 | G196: =IF(ISNUMBER(F196),E196*F196,"") ->  | J196: 0
G197: =IF(ISNUMBER(F197),E197*F197,"") ->  | J197: 0
C198: Servente com Encargos Complementares | D198: h | E198: 0.2 | F198: 14.554 | G198: =IF(ISNUMBER(F198),E198*F198,"") -> 2.9108 | H198: =SUM(G198:G198) -> 2.9108 | J198: 0
G199: =IF(ISNUMBER(F199),E199*F199,"") ->  | J199: 0
A200: SF-00041 | B200: =INDEX(Orçamentária!A:B,MATCH(Composições!A200,Orçamentária!A:A,0),2) -> Remoção de rodapé/rodabanca de mármore ou granito | D200: =TRIM(INDEX(Orçamentária!C:C,MATCH(Composições!A200,Orçamentária!A:A,0),1)) -> m | G200: =IF(ISNUMBER(F200),E200*F200,"") ->  | J200: 0
G201: =IF(ISNUMBER(F201),E201*F201,"") ->  | J201: 0
... 4769 more rows

Sheet Comp.Aux1
A1: =Composições!A1 -> Manutenção de revestimentos de mármore nas fachadas do Edifício Principal e do Anexo I do SF
A2: COMPOSIÇÕES DE CUSTO UNITÁRIO AUXILIARES DE 1º NÍVEL
A3: =Composições!A3 -> Data: Outubro de 2020
A5: DESCRIÇÃO | B5: DISCRIMINAÇÃO DA COMPOSIÇÃO | C5: UNIDADE | D5: COEFICIENTE | E5: CUSTO UNITÁRIO | F5: CUSTO TOTAL | G5: TOTAL | I5: QTD
A6: ARGAMASSA TRAÇO 1:3 (EM VOLUME DE CIMENTO E AREIA MÉDIA ÚMIDA), PREPARO MANUAL. AF_08/2019 | C6: M3 | F6: =IF(ISNUMBER(E6),E6*$D6,"") ->  | I6: 0
F7: =IF(ISNUMBER(E7),E7*$D7,"") ->  | I7: 0
B8: Areia media - posto jazida/fornecedor (retirado na jazida, sem transporte) | C8: M3 | D8: 1.07 | E8: 93.8125 | F8: =IF(ISNUMBER(E8),E8*$D8,"") -> 100.379375 | G8: =SUM(F8:F12) -> 477.8784671 | I8: 0
B9: Cimento Portland composto CP II-32 | C9: KG | D9: 482.96 | E9: 0.4465 | F9: =IF(ISNUMBER(E9),E9*$D9,"") -> 215.64164 | I9: 0
B10: Servente com encargos complementares | C10: H | D10: 8.57 | E10: 14.554 | F10: =IF(ISNUMBER(E10),E10*$D10,"") -> 124.72778 | I10: 0
B11: CARGA, MANOBRA E DESCARGA DE SOLOS E MATERIAIS GRANULARES EM CAMINHÃO BASCULANTE 6 M³ - CARGA COM PÁ CARREGADEIRA (CAÇAMBA DE 1,7 A 2,8 M³ / 128 HP) E DESCARGA LIVRE (UNIDADE: M3). AF_07/2020 | C11: M3 | D11: =ROUND(1*D8,4) -> 1.07 | E11: 4.63096215 | F11: =IF(ISNUMBER(E11),E11*$D11,"") -> 4.955129501 | I11: 0
B12: TRANSPORTE COM CAMINHÃO BASCULANTE DE 6 M³, EM VIA URBANA PAVIMENTADA, DMT ATÉ 30 KM (UNIDADE: M3XKM). AF_07/2020 | C12: M3xKM | D12: =ROUND(D8*20,4) -> 21.4 | E12: 1.5034833 | F12: =IF(ISNUMBER(E12),E12*$D12,"") -> 32.17454262 | I12: 0
F13: =IF(ISNUMBER(E13),E13*$D13,"") ->  | I13: 0
B14: Obs.: Considerando fornecedor de areia a 20 km do Senado Federal. | F14: =IF(ISNUMBER(E14),E14*$D14,"") ->  | I14: 0
F15: =IF(ISNUMBER(E15),E15*$D15,"") ->  | I15: 0
A16: Fixação utilizando parafuso e bucha de nylon, somente mão de obra. af_10/2016 | C16: UN | F16: =IF(ISNUMBER(E16),E16*$D16,"") ->  | I16: 0
F17: =IF(ISNUMBER(E17),E17*$D17,"") ->  | I17: 0
B18: Auxiliar de encanador ou bombeiro hidráulico com encargos complementares | C18: H | D18: 0.0227 | E18: 15.0195 | F18: =IF(ISNUMBER(E18),E18*$D18,"") -> 0.34094265 | G18: =SUM(F18:F19) -> 3.4316223 | I18: 0
B19: Encanador ou bombeiro hidráulico com encargos complementares | C19: H | D19: 0.1621 | E19: 19.0665 | F19: =IF(ISNUMBER(E19),E19*$D19,"") -> 3.09067965 | I19: 0
F20: =IF(ISNUMBER(E20),E20*$D20,"") ->  | I20: 0
A21: Fixação de tubos horizontais de PVC, CPVC ou cobre diâmetros menores ou iguais a 40 mm ou eletrocalhas até 150mm de largura, com abraçadeira metálica rígida tipo d 1/2, fixada em perfilado em laje. af_05/2015 | C21: M | F21: =IF(ISNUMBER(E21),E21*$D21,"") ->  | I21: 0
F22: =IF(ISNUMBER(E22),E22*$D22,"") ->  | I22: 0
B23: Abracadeira em aco para amarracao de eletrodutos, tipo D, com 1/2" e parafuso de fixacao | C23: UN | D23: 0.65 | E23: 1.0355 | F23: =IF(ISNUMBER(E23),E23*$D23,"") -> 0.673075 | G23: =SUM(F23:F25) -> 2.1388585 | I23: 0
B24: Auxiliar de encanador ou bombeiro hidráulico com encargos complementares | C24: H | D24: 0.01 | E24: 15.0195 | F24: =IF(ISNUMBER(E24),E24*$D24,"") -> 0.150195 | I24: 0
B25: Encanador ou bombeiro hidráulico com encargos complementares | C25: H | D25: 0.069 | E25: 19.0665 | F25: =IF(ISNUMBER(E25),E25*$D25,"") -> 1.3155885 | I25: 0
F26: =IF(ISNUMBER(E26),E26*$D26,"") ->  | I26: 0
A27: FABRICAÇÃO DE FÔRMA PARA VIGAS, EM CHAPA DE MADEIRA COMPENSADA RESINADA, E = 17 MM. AF_09/2020 | C27: M2 | F27: =IF(ISNUMBER(E27),E27*$D27,"") ->  | I27: 0
F28: =IF(ISNUMBER(E28),E28*$D28,"") ->  | I28: 0
B29: Chapa de madeira compensada resinada para forma de concreto, de *2,2 x 1,1* m, e = 17 mm | C29: M2 | D29: 1.146 | E29: 28.063 | F29: =IF(ISNUMBER(E29),E29*$D29,"") -> 32.160198 | G29: =SUM(F29:F36) -> 69.837882 | I29: 0
B30: PONTALETE DE MADEIRA NAO APARELHADA *7,5 X 7,5* CM (3 X 3 ") PINUS, MISTA OU EQUIVALENTE DA REGIAO | C30: M | D30: 0.166 | E30: 3.686 | F30: =IF(ISNUMBER(E30),E30*$D30,"") -> 0.611876 | I30: 0
B31: SARRAFO DE MADEIRA NAO APARELHADA *2,5 X 7,5* CM (1 X 3 ") PINUS, MISTA OU EQUIVALENTE DA REGIAO | C31: M | D31: 6.952 | E31: 1.3205 | F31: =IF(ISNUMBER(E31),E31*$D31,"") -> 9.180116 | I31: 0
B32: Prego de aco polido com cabeca 17 x 21 (2 x 11) | C32: KG | D32: 0.159 | E32: 11.305 | F32: =IF(ISNUMBER(E32),E32*$D32,"") -> 1.797495 | I32: 0
B33: Ajudante de carpinteiro com encargos complementares | C33: H | D33: 0.202 | E33: 16.416 | F33: =IF(ISNUMBER(E33),E33*$D33,"") -> 3.316032 | I33: 0
B34: Carpinteiro de formas com encargos complementares | C34: H | D34: 1.012 | E34: 19.342 | F34: =IF(ISNUMBER(E34),E34*$D34,"") -> 19.574104 | I34: 0
B35: Serra circular de bancada com motor elétrico potência de 5HP, com coifa para disco 10" - CHP diurno. af_08/2015 | C35: CHP | D35: 0.05 | E35: 17.2045 | F35: =IF(ISNUMBER(E35),E35*$D35,"") -> 0.860225 | I35: 0
B36: Serra circular de bancada com motor elétrico potência de 5HP, com coifa para disco 10" - CHI diurno. af_08/2015 | C36: CHI | D36: 0.152 | E36: 15.3805 | F36: =IF(ISNUMBER(E36),E36*$D36,"") -> 2.337836 | I36: 0
F37: =IF(ISNUMBER(E37),E37*$D37,"") ->  | I37: 0
A38: FABRICAÇÃO DE ESCORAS DE VIGA DO TIPO GARFO, EM MADEIRA. AF_09/2020 | C38: M | F38: =IF(ISNUMBER(E38),E38*$D38,"") ->  | I38: 0
F39: =IF(ISNUMBER(E39),E39*$D39,"") ->  | I39: 0
B40: CHAPA DE MADEIRA COMPENSADA PLASTIFICADA PARA FORMA DE CONCRETO, DE 2,20 x 1,10 M, E = 18 MM | C40: M2 | D40: 0.136 | E40: 35.226 | F40: =IF(ISNUMBER(E40),E40*$D40,"") -> 4.790736 | G40: =SUM(F40:F46) -> 17.730686 | I40: 0
B41: PONTALETE DE MADEIRA NAO APARELHADA *7,5 X 7,5* CM (3 X 3 ") PINUS, MISTA OU EQUIVALENTE DA REGIAO | C41: M | D41: 2.342 | E41: 3.686 | F41: =IF(ISNUMBER(E41),E41*$D41,"") -> 8.632612 | I41: 0
B42: PREGO DE ACO POLIDO COM CABECA 17 X 21 (2 X 11) | C42: KG | D42: 0.012 | E42: 11.305 | F42: =IF(ISNUMBER(E42),E42*$D42,"") -> 0.13566 | I42: 0
B43: AJUDANTE DE CARPINTEIRO COM ENCARGOS COMPLEMENTARES | C43: H | D43: 0.032 | E43: 16.416 | F43: =IF(ISNUMBER(E43),E43*$D43,"") -> 0.525312 | I43: 0
B44: CARPINTEIRO DE FORMAS COM ENCARGOS COMPLEMENTARES | C44: H | D44: 0.161 | E44: 19.342 | F44: =IF(ISNUMBER(E44),E44*$D44,"") -> 3.114062 | I44: 0
B45: SERRA CIRCULAR DE BANCADA COM MOTOR ELÉTRICO POTÊNCIA DE 5HP, COM COIFA PARA DISCO 10" - CHP DIURNO. AF_08/2015 | C45: CHP | D45: 0.022 | E45: 17.2045 | F45: =IF(ISNUMBER(E45),E45*$D45,"") -> 0.378499 | I45: 0
B46: SERRA CIRCULAR DE BANCADA COM MOTOR ELÉTRICO POTÊNCIA DE 5HP, COM COIFA PARA DISCO 10" - CHI DIURNO. AF_08/2015 | C46: CHI | D46: 0.01 | E46: 15.3805 | F46: =IF(ISNUMBER(E46),E46*$D46,"") -> 0.153805 | I46: 0
F47: =IF(ISNUMBER(E47),E47*$D47,"") ->  | I47: 0
A48: ARGAMASSA TRAÇO 1:2:8 (EM VOLUME DE CIMENTO, CAL E AREIA MÉDIA ÚMIDA) PARA EMBOÇO/MASSA ÚNICA/ASSENTAMENTO DE ALVENARIA DE VEDAÇÃO, PREPARO MECÂNICO COM BETONEIRA 400 L. AF_08/2019 | C48: M3 | F48: =IF(ISNUMBER(E48),E48*$D48,"") ->  | I48: 0
F49: =IF(ISNUMBER(E49),E49*$D49,"") ->  | I49: 0
B50: Areia media - posto jazida/fornecedor (retirado na jazida, sem transporte) | C50: M3 | D50: 1.16 | E50: 93.8125 | F50: =IF(ISNUMBER(E50),E50*$D50,"") -> 108.8225 | G50: =SUM(F50:F57) -> 436.7696187 | I50: 0
B51: Cal hidratada CH-I para argamassas | C51: KG | D51: 174.1 | E51: 0.76 | F51: =IF(ISNUMBER(E51),E51*$D51,"") -> 132.316 | I51: 0
B52: Cimento Portland composto CP II-32 | C52: KG | D52: 195.86 | E52: 0.4465 | F52: =IF(ISNUMBER(E52),E52*$D52,"") -> 87.45149 | I52: 0
B53: Operador de betoneira estacionária/misturador com encargos complementares | C53: H | D53: 4.5 | E53: 14.6585 | F53: =IF(ISNUMBER(E53),E53*$D53,"") -> 65.96325 | I53: 0
B54: Betoneira capacidade nominal de 400 L, capacidade de mistura 280 L, motor elétrico trifásico potência de 2 cv, sem carregador - CHP diurno. af_10/2014 | C54: CHP | D54: 1.05 | E54: 1.121 | F54: =IF(ISNUMBER(E54),E54*$D54,"") -> 1.17705 | I54: 0
B55: Betoneira capacidade nominal de 400 L, capacidade de mistura 280 L, motor elétrico trifásico potência de 2 cv, sem carregador - CHI diurno. af_10/2014 | C55: CHI | D55: 3.45 | E55: 0.228 | F55: =IF(ISNUMBER(E55),E55*$D55,"") -> 0.7866 | I55: 0
B56: CARGA, MANOBRA E DESCARGA DE SOLOS E MATERIAIS GRANULARES EM CAMINHÃO BASCULANTE 6 M³ - CARGA COM PÁ CARREGADEIRA (CAÇAMBA DE 1,7 A 2,8 M³ / 128 HP) E DESCARGA LIVRE (UNIDADE: M3). AF_07/2020 | C56: M3 | D56: =ROUND(1*D50,4) -> 1.16 | E56: 4.63096215 | F56: =IF(ISNUMBER(E56),E56*$D56,"") -> 5.371916094 | I56: 0
B57: TRANSPORTE COM CAMINHÃO BASCULANTE DE 6 M³, EM VIA URBANA PAVIMENTADA, DMT ATÉ 30 KM (UNIDADE: M3XKM). AF_07/2020 | C57: M3xKM | D57: =ROUND(D50*20,4) -> 23.2 | E57: 1.5034833 | F57: =IF(ISNUMBER(E57),E57*$D57,"") -> 34.88081256 | I57: 0
F58: =IF(ISNUMBER(E58),E58*$D58,"") ->  | I58: 0
B59: Obs.: Considerando fornecedor de areia a 20 km do Senado Federal. | F59: =IF(ISNUMBER(E59),E59*$D59,"") ->  | I59: 0
F60: =IF(ISNUMBER(E60),E60*$D60,"") ->  | I60: 0
A61: Contrapiso em argamassa traço 1:4 (cimento e areia), preparo mecânico com betoneira 400 l, aplicado em áreas secas sobre laje, aderido, espessura 3cm. AF_06/2014 | C61: M2 | F61: =IF(ISNUMBER(E61),E61*$D61,"") ->  | I61: 0
F62: =IF(ISNUMBER(E62),E62*$D62,"") ->  | I62: 0
B63: Cimento Portland composto CP II-32 | C63: KG | D63: 0.5 | E63: 0.4465 | F63: =IF(ISNUMBER(E63),E63*$D63,"") -> 0.22325 | G63: =SUM(F63:F67) -> 33.54327748 | I63: 0
B64: Aditivo adesivo liquido para argamassas de revestimentos cimenticios | C64: L | D64: 0.435 | E64: 11.3905 | F64: =IF(ISNUMBER(E64),E64*$D64,"") -> 4.9548675 | I64: 0
B65: ARGAMASSA TRAÇO 1:4 (EM VOLUME DE CIMENTO E AREIA MÉDIA ÚMIDA) PARA CONTRAPISO, PREPARO MECÂNICO COM BETONEIRA 400 L. AF_08/2019 | C65: M3 | D65: 0.0431 | E65: 453.2946631 | F65: =IF(ISNUMBER(E65),E65*$D65,"") -> 19.53699998 | I65: 0
B66: Pedreiro com encargos complementares | C66: H | D66: 0.33 | E66: 19.475 | F66: =IF(ISNUMBER(E66),E66*$D66,"") -> 6.42675 | I66: 0
B67: Servente com encargos complementares | C67: H | D67: 0.165 | E67: 14.554 | F67: =IF(ISNUMBER(E67),E67*$D67,"") -> 2.40141 | I67: 0
F68: =IF(ISNUMBER(E68),E68*$D68,"") ->  | I68: 0
A69: ARGAMASSA TRAÇO 1:3 (EM VOLUME DE CIMENTO E AREIA GROSSA ÚMIDA) PARA CHAPISCO CONVENCIONAL, PREPARO MANUAL. AF_08/2019 | C69: M3 | F69: =IF(ISNUMBER(E69),E69*$D69,"") ->  | I69: 0.10044
F70: =IF(ISNUMBER(E70),E70*$D70,"") ->  | I70: 0.10044
B71: Areia grossa - posto jazida/fornecedor (retirado na jazida, sem transporte) | C71: M3 | D71: 0.94 | E71: 118.7025 | F71: =IF(ISNUMBER(E71),E71*$D71,"") -> 111.58035 | G71: =SUM(F71:F75) -> 493.2883155 | I71: 0.10044
B72: Cimento Portland composto CP II-32 | C72: KG | D72: 422.63 | E72: 0.4465 | F72: =IF(ISNUMBER(E72),E72*$D72,"") -> 188.704295 | I72: 0.10044
B73: Servente com encargos complementares | C73: H | D73: 11.02 | E73: 14.554 | F73: =IF(ISNUMBER(E73),E73*$D73,"") -> 160.38508 | I73: 0.10044
B74: CARGA, MANOBRA E DESCARGA DE SOLOS E MATERIAIS GRANULARES EM CAMINHÃO BASCULANTE 6 M³ - CARGA COM PÁ CARREGADEIRA (CAÇAMBA DE 1,7 A 2,8 M³ / 128 HP) E DESCARGA LIVRE (UNIDADE: M3). AF_07/2020 | C74: M3 | D74: =ROUND(1*D71,4) -> 0.94 | E74: 4.63096215 | F74: =IF(ISNUMBER(E74),E74*$D74,"") -> 4.353104421 | I74: 0.10044
B75: TRANSPORTE COM CAMINHÃO BASCULANTE DE 6 M³, EM VIA URBANA PAVIMENTADA, DMT ATÉ 30 KM (UNIDADE: M3XKM). AF_07/2020 | C75: M3xKM | D75: =ROUND(D71*20,4) -> 18.8 | E75: 1.5034833 | F75: =IF(ISNUMBER(E75),E75*$D75,"") -> 28.26548604 | I75: 0.10044
F76: =IF(ISNUMBER(E76),E76*$D76,"") ->  | I76: 0.10044
B77: Obs.: Considerando fornecedor de areia a 20 km do Senado Federal. | F77: =IF(ISNUMBER(E77),E77*$D77,"") ->  | I77: 0.10044
F78: =IF(ISNUMBER(E78),E78*$D78,"") ->  | I78: 0.10044
A79: ARGAMASSA INDUSTRIALIZADA PARA CHAPISCO COLANTE, PREPARO COM MISTURADOR DE EIXO HORIZONTAL DE 300 KG. AF_08/2019 | C79: M3 | F79: =IF(ISNUMBER(E79),E79*$D79,"") ->  | I79: 0
F80: =IF(ISNUMBER(E80),E80*$D80,"") ->  | I80: 0
B81: Argamassa industrializada para chapisco colante | C81: KG | D81: 1981.23 | E81: 0.8265 | F81: =IF(ISNUMBER(E81),E81*$D81,"") -> 1637.486595 | G81: =SUM(F81:F84) -> 1712.330255 | I81: 0
B82: Operador de betoneira estacionária/misturador com encargos complementares | C82: H | D82: 4.72 | E82: 14.6585 | F82: =IF(ISNUMBER(E82),E82*$D82,"") -> 69.18812 | I82: 0
B83: Misturador de argamassa, eixo horizontal, capacidade de mistura 300 kg, motor elétrico potência 5 cv - CHP diurno. af_06/2014 | C83: CHP | D83: 1.1 | E83: 3.078 | F83: =IF(ISNUMBER(E83),E83*$D83,"") -> 3.3858 | I83: 0
B84: Misturador de argamassa, eixo horizontal, capacidade de mistura 300 kg, motor elétrico potência 5 cv - CHI diurno. af_06/2014 | C84: CHI | D84: 3.62 | E84: 0.627 | F84: =IF(ISNUMBER(E84),E84*$D84,"") -> 2.26974 | I84: 0
F85: =IF(ISNUMBER(E85),E85*$D85,"") ->  | I85: 0
A86: ARGAMASSA TRAÇO 1:4 (EM VOLUME DE CIMENTO E AREIA MÉDIA ÚMIDA) PARA CONTRAPISO, PREPARO MANUAL. AF_08/2019 | C86: M3 | F86: =IF(ISNUMBER(E86),E86*$D86,"") ->  | I86: 0
F87: =IF(ISNUMBER(E87),E87*$D87,"") ->  | I87: 0
B88: Areia media - posto jazida/fornecedor (retirado na jazida, sem transporte) | C88: M3 | D88: 1.35 | E88: 93.8125 | F88: =IF(ISNUMBER(E88),E88*$D88,"") -> 126.646875 | G88: =SUM(F88:F92) -> 536.847773 | I88: 0
B89: Cimento Portland composto CP II-32 | C89: KG | D89: 454.58 | E89: 0.4465 | F89: =IF(ISNUMBER(E89),E89*$D89,"") -> 202.96997 | I89: 0
B90: Servente com encargos complementares | C90: H | D90: 11.02 | E90: 14.554 | F90: =IF(ISNUMBER(E90),E90*$D90,"") -> 160.38508 | I90: 0
B91: CARGA, MANOBRA E DESCARGA DE SOLOS E MATERIAIS GRANULARES EM CAMINHÃO BASCULANTE 6 M³ - CARGA COM PÁ CARREGADEIRA (CAÇAMBA DE 1,7 A 2,8 M³ / 128 HP) E DESCARGA LIVRE (UNIDADE: M3). AF_07/2020 | C91: M3 | D91: =ROUND(1*D88,4) -> 1.35 | E91: 4.63096215 | F91: =IF(ISNUMBER(E91),E91*$D91,"") -> 6.251798903 | I91: 0
B92: TRANSPORTE COM CAMINHÃO BASCULANTE DE 6 M³, EM VIA URBANA PAVIMENTADA, DMT ATÉ 30 KM (UNIDADE: M3XKM). AF_07/2020 | C92: M3xKM | D92: =ROUND(D88*20,4) -> 27 | E92: 1.5034833 | F92: =IF(ISNUMBER(E92),E92*$D92,"") -> 40.5940491 | I92: 0
F93: =IF(ISNUMBER(E93),E93*$D93,"") ->  | I93: 0
B94: Obs.: Considerando fornecedor de areia a 20 km do Senado Federal. | F94: =IF(ISNUMBER(E94),E94*$D94,"") ->  | I94: 0
F95: =IF(ISNUMBER(E95),E95*$D95,"") ->  | I95: 0
A96: ARGAMASSA TRAÇO 1:4 (EM VOLUME DE CIMENTO E AREIA MÉDIA ÚMIDA), PREPARO MANUAL. AF_08/2019 | C96: M3 | F96: =IF(ISNUMBER(E96),E96*$D96,"") ->  | I96: 0
F97: =IF(ISNUMBER(E97),E97*$D97,"") ->  | I97: 0
B98: Areia media - posto jazida/fornecedor (retirado na jazida, sem transporte) | C98: M3 | D98: 1.15 | E98: 93.8125 | F98: =IF(ISNUMBER(E98),E98*$D98,"") -> 107.884375 | G98: =SUM(F98:F102) -> 442.3723674 | I98: 0
B99: Cimento Portland composto CP II-32 | C99: KG | D99: 389.54 | E99: 0.4465 | F99: =IF(ISNUMBER(E99),E99*$D99,"") -> 173.92961 | I99: 0
B100: Servente com encargos complementares | C100: H | D100: 8.29 | E100: 14.554 | F100: =IF(ISNUMBER(E100),E100*$D100,"") -> 120.65266 | I100: 0
B101: CARGA, MANOBRA E DESCARGA DE SOLOS E MATERIAIS GRANULARES EM CAMINHÃO BASCULANTE 6 M³ - CARGA COM PÁ CARREGADEIRA (CAÇAMBA DE 1,7 A 2,8 M³ / 128 HP) E DESCARGA LIVRE (UNIDADE: M3). AF_07/2020 | C101: M3 | D101: =ROUND(1*D98,4) -> 1.15 | E101: 4.63096215 | F101: =IF(ISNUMBER(E101),E101*$D101,"") -> 5.325606472 | I101: 0
B102: TRANSPORTE COM CAMINHÃO BASCULANTE DE 6 M³, EM VIA URBANA PAVIMENTADA, DMT ATÉ 30 KM (UNIDADE: M3XKM). AF_07/2020 | C102: M3xKM | D102: =ROUND(D98*20,4) -> 23 | E102: 1.5034833 | F102: =IF(ISNUMBER(E102),E102*$D102,"") -> 34.5801159 | I102: 0
F103: =IF(ISNUMBER(E103),E103*$D103,"") ->  | I103: 0
B104: Obs.: Considerando fornecedor de areia a 20 km do Senado Federal. | F104: =IF(ISNUMBER(E104),E104*$D104,"") ->  | I104: 0
F105: =IF(ISNUMBER(E105),E105*$D105,"") ->  | I105: 0
A106: Fixação de tubos verticais de PPR diâmetros menores ou iguais a 40 mm com abraçadeira metálica rígida tipo D 1/2", fixada em perfilado em alvenaria. af_05/2015 | C106: M | F106: =IF(ISNUMBER(E106),E106*$D106,"") ->  | I106: 0
F107: =IF(ISNUMBER(E107),E107*$D107,"") ->  | I107: 0
B108: Abracadeira em aco para amarracao de eletrodutos, tipo D, com 1/2" e parafuso de fixacao | C108: UN | D108: 0.333 | E108: 1.0355 | F108: =IF(ISNUMBER(E108),E108*$D108,"") -> 0.3448215 | G108: =SUM(F108:F110) -> 1.0872465 | I108: 0
B109: Auxiliar de encanador ou bombeiro hidráulico com encargos complementares | C109: H | D109: 0.005 | E109: 15.0195 | F109: =IF(ISNUMBER(E109),E109*$D109,"") -> 0.0750975 | I109: 0
B110: Encanador ou bombeiro hidráulico com encargos complementares | C110: H | D110: 0.035 | E110: 19.0665 | F110: =IF(ISNUMBER(E110),E110*$D110,"") -> 0.6673275 | I110: 0
F111: =IF(ISNUMBER(E111),E111*$D111,"") ->  | I111: 0
A112: Luva de emenda para eletroduto, aço galvanizado, DN 20 mm (3/4''), aparente, instalada em parede - fornecimento e instalação. af_11/2016_p | C112: UN | F112: =IF(ISNUMBER(E112),E112*$D112,"") ->  | I112: 0
F113: =IF(ISNUMBER(E113),E113*$D113,"") ->  | I113: 0
B114: Luva para eletroduto, em aco galvanizado eletrolitico, diametro de 20 mm (3/4") | C114: UN | D114: 1 | E114: 1.4155 | F114: =IF(ISNUMBER(E114),E114*$D114,"") -> 1.4155 | G114: =SUM(F114:F116) -> 7.8269911 | I114: 0
B115: Auxiliar de eletricista com encargos complementares | C115: H | D115: 0.1827 | E115: 15.447 | F115: =IF(ISNUMBER(E115),E115*$D115,"") -> 2.8221669 | I115: 0
B116: Eletricista com encargos complementares | C116: H | D116: 0.1827 | E116: 19.646 | F116: =IF(ISNUMBER(E116),E116*$D116,"") -> 3.5893242 | I116: 0
F117: =IF(ISNUMBER(E117),E117*$D117,"") ->  | I117: 0
A118: Luva de emenda para eletroduto, aço galvanizado, DN 25 mm (1''), aparente, instalada em parede - fornecimento e instalação. af_11/2016_p | C118: UN | F118: =IF(ISNUMBER(E118),E118*$D118,"") ->  | I118: 0
F119: =IF(ISNUMBER(E119),E119*$D119,"") ->  | I119: 0
B120: Luva para eletroduto, em aco galvanizado eletrolitico, diametro de 25 mm (1") | C120: UN | D120: 1 | E120: 1.6435 | F120: =IF(ISNUMBER(E120),E120*$D120,"") -> 1.6435 | G120: =SUM(F120:F122) -> 8.7779069 | I120: 0
B121: Auxiliar de eletricista com encargos complementares | C121: H | D121: 0.2033 | E121: 15.447 | F121: =IF(ISNUMBER(E121),E121*$D121,"") -> 3.1403751 | I121: 0
B122: Eletricista com encargos complementares | C122: H | D122: 0.2033 | E122: 19.646 | F122: =IF(ISNUMBER(E122),E122*$D122,"") -> 3.9940318 | I122: 0
F123: =IF(ISNUMBER(E123),E123*$D123,"") ->  | I123: 0
A124: Luva de emenda para eletroduto, aço galvanizado, DN 32 mm (1 1/4''), aparente, instalada em parede - fornecimento e instalação. af_11/2016_p | C124: UN | F124: =IF(ISNUMBER(E124),E124*$D124,"") ->  | I124: 0
F125: =IF(ISNUMBER(E125),E125*$D125,"") ->  | I125: 0
B126: Luva para eletroduto, em aco galvanizado eletrolitico, diametro de 32 mm (1 1/4") | C126: UN | D126: 1 | E126: 2.9165 | F126: =IF(ISNUMBER(E126),E126*$D126,"") -> 2.9165 | G126: =SUM(F126:F128) -> 11.0650946 | I126: 0
B127: Auxiliar de eletricista com encargos complementares | C127: H | D127: 0.2322 | E127: 15.447 | F127: =IF(ISNUMBER(E127),E127*$D127,"") -> 3.5867934 | I127: 0
B128: Eletricista com encargos complementares | C128: H | D128: 0.2322 | E128: 19.646 | F128: =IF(ISNUMBER(E128),E128*$D128,"") -> 4.5618012 | I128: 0
F129: =IF(ISNUMBER(E129),E129*$D129,"") ->  | I129: 0
A130: Luva de emenda para eletroduto, aço galvanizado, DN 40 mm (1 1/2''), aparente, instalada em parede - fornecimento e instalação. af_11/2016_p | C130: UN | F130: =IF(ISNUMBER(E130),E130*$D130,"") ->  | I130: 0
F131: =IF(ISNUMBER(E131),E131*$D131,"") ->  | I131: 0
B132: Luva para eletroduto, em aco galvanizado eletrolitico, diametro de 40 mm (1 1/2") | C132: UN | D132: 1 | E132: 4.2275 | F132: =IF(ISNUMBER(E132),E132*$D132,"") -> 4.2275 | G132: =SUM(F132:F134) -> 13.5306543 | I132: 0
B133: Auxiliar de eletricista com encargos complementares | C133: H | D133: 0.2651 | E133: 15.447 | F133: =IF(ISNUMBER(E133),E133*$D133,"") -> 4.0949997 | I133: 0
B134: Eletricista com encargos complementares | C134: H | D134: 0.2651 | E134: 19.646 | F134: =IF(ISNUMBER(E134),E134*$D134,"") -> 5.2081546 | I134: 0
F135: =IF(ISNUMBER(E135),E135*$D135,"") ->  | I135: 0
A136: Luva de emenda para eletroduto, aço galvanizado, DN 50 mm (2''), aparente, instalada em parede - fornecimento e instalação. af_11/2016_p | C136: UN | F136: =IF(ISNUMBER(E136),E136*$D136,"") ->  | I136: 0
F137: =IF(ISNUMBER(E137),E137*$D137,"") ->  | I137: 0
B138: Luva para eletroduto, em aco galvanizado eletrolitico, diametro de 50 mm (2") | C138: UN | D138: 1 | E138: 5.8995 | F138: =IF(ISNUMBER(E138),E138*$D138,"") -> 5.8995 | G138: =SUM(F138:F140) -> 15.2026543 | I138: 0
B139: Auxiliar de eletricista com encargos complementares | C139: H | D139: 0.2651 | E139: 15.447 | F139: =IF(ISNUMBER(E139),E139*$D139,"") -> 4.0949997 | I139: 0
B140: Eletricista com encargos complementares | C140: H | D140: 0.2651 | E140: 19.646 | F140: =IF(ISNUMBER(E140),E140*$D140,"") -> 5.2081546 | I140: 0
F141: =IF(ISNUMBER(E141),E141*$D141,"") ->  | I141: 0
A142: Fixação de tubos verticais de PPR diâmetros maiores que 40 mm e menores ou iguais a 75 mm com abraçadeira metálica rígida tipo D 1 1/2", fixada em perfilado em alvenaria. af_05/2015 | C142: M | F142: =IF(ISNUMBER(E142),E142*$D142,"") ->  | I142: 0
F143: =IF(ISNUMBER(E143),E143*$D143,"") ->  | I143: 0
B144: Abracadeira em aco para amarracao de eletrodutos, tipo D, com 1 1/2" e parafuso de fixacao | C144: UN | D144: 0.333 | E144: 2.128 | F144: =IF(ISNUMBER(E144),E144*$D144,"") -> 0.708624 | G144: =SUM(F144:F146) -> 2.121255 | I144: 0
B145: Auxiliar de encanador ou bombeiro hidráulico com encargos complementares | C145: H | D145: 0.009 | E145: 15.0195 | F145: =IF(ISNUMBER(E145),E145*$D145,"") -> 0.1351755 | I145: 0
B146: Encanador ou bombeiro hidráulico com encargos complementares | C146: H | D146: 0.067 | E146: 19.0665 | F146: =IF(ISNUMBER(E146),E146*$D146,"") -> 1.2774555 | I146: 0
F147: =IF(ISNUMBER(E147),E147*$D147,"") ->  | I147: 0
A148: Fixação de tubos verticais de PPR diâmetros maiores que 40 mm e menores ou iguais a 75 mm com abraçadeira metálica rígida tipo D 2", fixada em perfilado em alvenaria. af_05/2015 | C148: M | F148: =IF(ISNUMBER(E148),E148*$D148,"") ->  | I148: 0
F149: =IF(ISNUMBER(E149),E149*$D149,"") ->  | I149: 0
B150: Abracadeira em aco para amarracao de eletrodutos, tipo D, com 2" e parafuso de fixacao | C150: UN | D150: 0.333 | E150: 2.356 | F150: =IF(ISNUMBER(E150),E150*$D150,"") -> 0.784548 | G150: =SUM(F150:F152) -> 2.197179 | I150: 0
B151: Auxiliar de encanador ou bombeiro hidráulico com encargos complementares | C151: H | D151: 0.009 | E151: 15.0195 | F151: =IF(ISNUMBER(E151),E151*$D151,"") -> 0.1351755 | I151: 0
B152: Encanador ou bombeiro hidráulico com encargos complementares | C152: H | D152: 0.067 | E152: 19.0665 | F152: =IF(ISNUMBER(E152),E152*$D152,"") -> 1.2774555 | I152: 0
F153: =IF(ISNUMBER(E153),E153*$D153,"") ->  | I153: 0
A154: ARGAMASSA TRAÇO 1:2:9 (EM VOLUME DE CIMENTO, CAL E AREIA MÉDIA ÚMIDA) PARA EMBOÇO/MASSA ÚNICA/ASSENTAMENTO DE ALVENARIA DE VEDAÇÃO, PREPARO MECÂNICO COM BETONEIRA 600 L. AF_08/2019 | C154: M3 | F154: =IF(ISNUMBER(E154),E154*$D154,"") ->  | I154: 0
F155: =IF(ISNUMBER(E155),E155*$D155,"") ->  | I155: 0
B156: Areia media - posto jazida/fornecedor (retirado na jazida, sem transporte) | C156: M3 | D156: 1.18 | E156: 93.8125 | F156: =IF(ISNUMBER(E156),E156*$D156,"") -> 110.69875 | G156: =SUM(F156:F164) -> 420.7607312 | I156: 0
B157: Cal hidratada CH-I para argamassas | C157: KG | D157: 157.44 | E157: 0.76 | F157: =IF(ISNUMBER(E157),E157*$D157,"") -> 119.6544 | I157: 0
B158: Cimento Portland composto CP II-32 | C158: KG | D158: 177.12 | E158: 0.4465 | F158: =IF(ISNUMBER(E158),E158*$D158,"") -> 79.08408 | I158: 0
B159: Servente com encargos complementares | C159: H | D159: 0.79 | E159: 14.554 | F159: =IF(ISNUMBER(E159),E159*$D159,"") -> 11.49766 | I159: 0
B160: Operador de betoneira estacionária/misturador com encargos complementares | C160: H | D160: 3.65 | E160: 14.6585 | F160: =IF(ISNUMBER(E160),E160*$D160,"") -> 53.503525 | I160: 0
B161: Betoneira capacidade nominal de 600 L, capacidade de mistura 360 L, motor elétrico trifásico potência de 4 cv, sem carregador - CHP diurno. af_11/2014 | C161: CHP | D161: 0.85 | E161: 3.1635 | F161: =IF(ISNUMBER(E161),E161*$D161,"") -> 2.688975 | I161: 0
B162: Betoneira capacidade nominal de 600 L, capacidade de mistura 360 L, motor elétrico trifásico potência de 4 cv, sem carregador - CHI diurno. af_11/2014 | C162: CHI | D162: 2.8 | E162: 0.9595 | F162: =IF(ISNUMBER(E162),E162*$D162,"") -> 2.6866 | I162: 0
B163: CARGA, MANOBRA E DESCARGA DE SOLOS E MATERIAIS GRANULARES EM CAMINHÃO BASCULANTE 6 M³ - CARGA COM PÁ CARREGADEIRA (CAÇAMBA DE 1,7 A 2,8 M³ / 128 HP) E DESCARGA LIVRE (UNIDADE: M3). AF_07/2020 | C163: M3 | D163: =ROUND(1*D156,4) -> 1.18 | E163: 4.63096215 | F163: =IF(ISNUMBER(E163),E163*$D163,"") -> 5.464535337 | I163: 0
B164: TRANSPORTE COM CAMINHÃO BASCULANTE DE 6 M³, EM VIA URBANA PAVIMENTADA, DMT ATÉ 30 KM (UNIDADE: M3XKM). AF_07/2020 | C164: M3xKM | D164: =ROUND(D156*20,4) -> 23.6 | E164: 1.5034833 | F164: =IF(ISNUMBER(E164),E164*$D164,"") -> 35.48220588 | I164: 0
F165: =IF(ISNUMBER(E165),E165*$D165,"") ->  | I165: 0
B166: Obs.: Considerando fornecedor de areia a 20 km do Senado Federal. | F166: =IF(ISNUMBER(E166),E166*$D166,"") ->  | I166: 0
F167: =IF(ISNUMBER(E167),E167*$D167,"") ->  | I167: 0
A168: ARGAMASSA TRAÇO 1:4 (EM VOLUME DE CIMENTO E AREIA MÉDIA ÚMIDA) PARA CONTRAPISO, PREPARO MECÂNICO COM BETONEIRA 400 L. AF_08/2019 | C168: M3 | F168: =IF(ISNUMBER(E168),E168*$D168,"") ->  | I168: 0
F169: =IF(ISNUMBER(E169),E169*$D169,"") ->  | I169: 0
B170: Areia media - posto jazida/fornecedor (retirado na jazida, sem transporte) | C170: M3 | D170: 1.36 | E170: 93.8125 | F170: =IF(ISNUMBER(E170),E170*$D170,"") -> 127.585 | G170: =SUM(F170:F176) -> 453.3094943 | I170: 0
B171: Cimento Portland composto CP II-32 | C171: KG | D171: 459.85 | E171: 0.4465 | F171: =IF(ISNUMBER(E171),E171*$D171,"") -> 205.323025 | I171: 0
B172: Operador de betoneira estacionária/misturador com encargos complementares | C172: H | D172: 4.85 | E172: 14.6585 | F172: =IF(ISNUMBER(E172),E172*$D172,"") -> 71.093725 | I172: 0
B173: Betoneira capacidade nominal de 400 L, capacidade de mistura 280 L, motor elétrico trifásico potência de 2 cv, sem carregador - CHP diurno. af_10/2014 | C173: CHP | D173: 1.13 | E173: 1.121 | F173: =IF(ISNUMBER(E173),E173*$D173,"") -> 1.26673 | I173: 0
B174: Betoneira capacidade nominal de 400 L, capacidade de mistura 280 L, motor elétrico trifásico potência de 2 cv, sem carregador - CHI diurno. af_10/2014 | C174: CHI | D174: 3.72 | E174: 0.228 | F174: =IF(ISNUMBER(E174),E174*$D174,"") -> 0.84816 | I174: 0
B175: CARGA, MANOBRA E DESCARGA DE SOLOS E MATERIAIS GRANULARES EM CAMINHÃO BASCULANTE 6 M³ - CARGA COM PÁ CARREGADEIRA (CAÇAMBA DE 1,7 A 2,8 M³ / 128 HP) E DESCARGA LIVRE (UNIDADE: M3). AF_07/2020 | C175: M3 | D175: =ROUND(1*D170,4) -> 1.36 | E175: 4.63096215 | F175: =IF(ISNUMBER(E175),E175*$D175,"") -> 6.298108524 | I175: 0
B176: TRANSPORTE COM CAMINHÃO BASCULANTE DE 6 M³, EM VIA URBANA PAVIMENTADA, DMT ATÉ 30 KM (UNIDADE: M3XKM). AF_07/2020 | C176: M3xKM | D176: =ROUND(D170*20,4) -> 27.2 | E176: 1.5034833 | F176: =IF(ISNUMBER(E176),E176*$D176,"") -> 40.89474576 | I176: 0
F177: =IF(ISNUMBER(E177),E177*$D177,"") ->  | I177: 0
B178: Obs.: Considerando fornecedor de areia a 20 km do Senado Federal. | F178: =IF(ISNUMBER(E178),E178*$D178,"") ->  | I178: 0
F179: =IF(ISNUMBER(E179),E179*$D179,"") ->  | I179: 0
A180: UMIDIFICAÇÃO DE MATERIAL PARA VALAS COM CAMINHÃO PIPA 10000L. AF_11/2016 | C180: M3 | F180: =IF(ISNUMBER(E180),E180*$D180,"") ->  | I180: 0
F181: =IF(ISNUMBER(E181),E181*$D181,"") ->  | I181: 0
B182: CAMINHÃO PIPA 10.000 L TRUCADO, PESO BRUTO TOTAL 23.000 KG, CARGA ÚTIL MÁXIMA 15.935 KG, DISTÂNCIA ENTRE EIXOS 4,8 M, POTÊNCIA 230 CV, INCLUSIVE TANQUE DE AÇO PARA TRANSPORTE DE ÁGUA - CHP DIURNO. AF_06/2014 | C182: CHP | D182: 0.006 | E182: 157.3865 | F182: =IF(ISNUMBER(E182),E182*$D182,"") -> 0.944319 | G182: =SUM(F182:F184) -> 1.1701245 | I182: 0
B183: CAMINHÃO PIPA 10.000 L TRUCADO, PESO BRUTO TOTAL 23.000 KG, CARGA ÚTIL MÁXIMA 15.935 KG, DISTÂNCIA ENTRE EIXOS 4,8 M, POTÊNCIA 230 CV, INCLUSIVE TANQUE DE AÇO PARA TRANSPORTE DE ÁGUA - CHI DIURNO. AF_06/2014 | C183: CHI | D183: 0.003 | E183: 31.6065 | F183: =IF(ISNUMBER(E183),E183*$D183,"") -> 0.0948195 | I183: 0
B184: SERVENTE COM ENCARGOS COMPLEMENTARES | C184: H | D184: 0.009 | E184: 14.554 | F184: =IF(ISNUMBER(E184),E184*$D184,"") -> 0.130986 | I184: 0
F185: =IF(ISNUMBER(E185),E185*$D185,"") ->  | I185: 0
A186: CORTE E DOBRA DE AÇO CA-50, DIÂMETRO DE 8,0 MM, UTILIZADO EM ESTRUTURAS DIVERSAS, EXCETO LAJES. AF_12/2015 | C186: KG | F186: =IF(ISNUMBER(E186),E186*$D186,"") ->  | I186: 0
F187: =IF(ISNUMBER(E187),E187*$D187,"") ->  | I187: 0
B188: ACO CA-50, 8,0 MM, VERGALHAO | C188: KG | D188: 1.11 | E188: 5.871 | F188: =IF(ISNUMBER(E188),E188*$D188,"") -> 6.51681 | G188: =SUM(F188:F190) -> 6.9995012 | I188: 0
B189: AJUDANTE DE ARMADOR COM ENCARGOS COMPLEMENTARES | C189: H | D189: 0.0032 | E189: 15.181 | F189: =IF(ISNUMBER(E189),E189*$D189,"") -> 0.0485792 | I189: 0
B190: ARMADOR COM ENCARGOS COMPLEMENTARES | C190: H | D190: 0.0224 | E190: 19.38 | F190: =IF(ISNUMBER(E190),E190*$D190,"") -> 0.434112 | I190: 0
F191: =IF(ISNUMBER(E191),E191*$D191,"") ->  | I191: 0
A192: CORTE E DOBRA DE AÇO CA-50, DIÂMETRO DE 12,5 MM, UTILIZADO EM ESTRUTURAS DIVERSAS, EXCETO LAJES. AF_12/2015 | C192: KG | F192: =IF(ISNUMBER(E192),E192*$D192,"") ->  | I192: 0
F193: =IF(ISNUMBER(E193),E193*$D193,"") ->  | I193: 0
B194: ACO CA-50, 12,5 MM OU 16,0 MM, VERGALHAO | C194: KG | D194: 1.11 | E194: 4.7975 | F194: =IF(ISNUMBER(E194),E194*$D194,"") -> 5.325225 | G194: =SUM(F194:F196) -> 5.476066 | I194: 0
B195: AJUDANTE DE ARMADOR COM ENCARGOS COMPLEMENTARES | C195: H | D195: 0.001 | E195: 15.181 | F195: =IF(ISNUMBER(E195),E195*$D195,"") -> 0.015181 | I195: 0
B196: ARMADOR COM ENCARGOS COMPLEMENTARES | C196: H | D196: 0.007 | E196: 19.38 | F196: =IF(ISNUMBER(E196),E196*$D196,"") -> 0.13566 | I196: 0
F197: =IF(ISNUMBER(E197),E197*$D197,"") ->  | I197: 0
A198: CORTE E DOBRA DE AÇO CA-50, DIÂMETRO DE 20,0 MM, UTILIZADO EM ESTRUTURAS DIVERSAS, EXCETO LAJES. AF_12/2015 | C198: KG | F198: =IF(ISNUMBER(E198),E198*$D198,"") ->  | I198: 0
F199: =IF(ISNUMBER(E199),E199*$D199,"") ->  | I199: 0
B200: ACO CA-50, 20,0 MM OU 25,0 MM, VERGALHAO | C200: KG | D200: 1.14 | E200: 5.529 | F200: =IF(ISNUMBER(E200),E200*$D200,"") -> 6.30306 | G200: =SUM(F200:F201) -> 6.34182 | I200: 0
B201: ARMADOR COM ENCARGOS COMPLEMENTARES | C201: H | D201: 0.002 | E201: 19.38 | F201: =IF(ISNUMBER(E201),E201*$D201,"") -> 0.03876 | I201: 0
... 225 more rows

Sheet Comp.Aux2
A1: =Composições!A1 -> Manutenção de revestimentos de mármore nas fachadas do Edifício Principal e do Anexo I do SF
A2: COMPOSIÇÕES DE CUSTO UNITÁRIO AUXILIARES DE 2º NÍVEL
A3: =Composições!A3 -> Data: Outubro de 2020
A5: DESCRIÇÃO | B5: DISCRIMINAÇÃO DA COMPOSIÇÃO | C5: UNIDADE | D5: COEFICIENTE | E5: CUSTO UNITÁRIO | F5: CUSTO TOTAL | G5: TOTAL | I5: QTD
A6: TRANSPORTE COM CAMINHÃO BASCULANTE DE 6 M³, EM VIA URBANA PAVIMENTADA, DMT ATÉ 30 KM (UNIDADE: M3XKM). AF_07/2020 | C6: M3xKM | F6: =IF(ISNUMBER(E6),ROUND(E6*$D6,2),"") ->  | I6: 29.284074
F7: =IF(ISNUMBER(E7),ROUND(E7*$D7,2),"") ->  | I7: 29.284074
B8: CAMINHÃO BASCULANTE 6 M3 TOCO, PESO BRUTO TOTAL 16.000 KG, CARGA ÚTIL MÁXIMA 11.130 KG, DISTÂNCIA ENTRE EIXOS 5,36 M, POTÊNCIA 185 CV, INCLUSIVE CAÇAMBA METÁLICA - CHP DIURNO. AF_06/2014 | C8: CHP | D8: 0.0139 | E8: 95.247 | F8: =IF(ISNUMBER(E8),ROUND(E8*$D8,2),"") -> 1.32 | G8: =SUM(F8:F9) -> 1.5 | I8: 29.284074
B9: CAMINHÃO BASCULANTE 6 M3 TOCO, PESO BRUTO TOTAL 16.000 KG, CARGA ÚTIL MÁXIMA 11.130 KG, DISTÂNCIA ENTRE EIXOS 5,36 M, POTÊNCIA 185 CV, INCLUSIVE CAÇAMBA METÁLICA - CHI DIURNO. AF_06/2014 | C9: CHI | D9: 0.006 | E9: 29.925 | F9: =IF(ISNUMBER(E9),ROUND(E9*$D9,2),"") -> 0.18 | I9: 29.284074
F10: =IF(ISNUMBER(E10),ROUND(E10*$D10,2),"") ->  | I10: 29.284074
A11: CORTE E DOBRA DE AÇO CA-60, DIÂMETRO DE 4,2 MM, UTILIZADO EM LAJE. AF_12/2015 | C11: KG | F11: =IF(ISNUMBER(E11),ROUND(E11*$D11,2),"") ->  | I11: 0
F12: =IF(ISNUMBER(E12),ROUND(E12*$D12,2),"") ->  | I12: 0
B13: ACO CA-60, 4,2 MM, OU 5,0 MM, OU 6,0 MM, OU 7,0 MM, VERGALHAO | C13: KG | D13: 1.07 | E13: 5.2345 | F13: =IF(ISNUMBER(E13),ROUND(E13*$D13,2),"") -> 5.6 | G13: =SUM(F13:F15) -> 7.61 | I13: 0
B14: AJUDANTE DE ARMADOR COM ENCARGOS COMPLEMENTARES | C14: H | D14: 0.0131 | E14: 15.181 | F14: =IF(ISNUMBER(E14),ROUND(E14*$D14,2),"") -> 0.2 | I14: 0
B15: ARMADOR COM ENCARGOS COMPLEMENTARES | C15: H | D15: 0.0933 | E15: 19.38 | F15: =IF(ISNUMBER(E15),ROUND(E15*$D15,2),"") -> 1.81 | I15: 0
F16: =IF(ISNUMBER(E16),ROUND(E16*$D16,2),"") ->  | I16: 0
A17: CARGA, MANOBRA E DESCARGA DE SOLOS E MATERIAIS GRANULARES EM CAMINHÃO BASCULANTE 6 M³ - CARGA COM PÁ CARREGADEIRA (CAÇAMBA DE 1,7 A 2,8 M³ / 128 HP) E DESCARGA LIVRE (UNIDADE: M3). AF_07/2020 | C17: M3 | F17: =IF(ISNUMBER(E17),ROUND(E17*$D17,2),"") ->  | I17: 1.4642037
F18: =IF(ISNUMBER(E18),ROUND(E18*$D18,2),"") ->  | I18: 1.4642037
B19: CAMINHÃO BASCULANTE 6 M3, PESO BRUTO TOTAL 16.000 KG, CARGA ÚTIL MÁXIMA 13.071 KG, DISTÂNCIA ENTRE EIXOS 4,80 M, POTÊNCIA 230 CV INCLUSIVE CAÇAMBA METÁLICA - CHP DIURNO. AF_06/2014 | C19: CHP | D19: 0.0083 | E19: 107.5685 | F19: =IF(ISNUMBER(E19),ROUND(E19*$D19,2),"") -> 0.89 | G19: =SUM(F19:F22) -> 4.6281436 | I19: 1.4642037
B20: PÁ CARREGADEIRA SOBRE RODAS, POTÊNCIA LÍQUIDA 128 HP, CAPACIDADE DA CAÇAMBA 1,7 A 2,8 M3, PESO OPERACIONAL 11632 KG - CHI DIURNO. AF_06/2014 | C20: CHI | D20: 0.0151 | E20: 38.912 | F20: =IF(ISNUMBER(E20),E20*$D20,"") -> 0.5875712 | I20: 1.4642037
B21: CAMINHÃO BASCULANTE 6 M3 TOCO, PESO BRUTO TOTAL 16.000 KG, CARGA ÚTIL MÁXIMA 11.130 KG, DISTÂNCIA ENTRE EIXOS 5,36 M, POTÊNCIA 185 CV, INCLUSIVE CAÇAMBA METÁLICA - CHP DIURNO. AF_06/2014 | C21: CHP | D21: 0.0267 | E21: 95.247 | F21: =IF(ISNUMBER(E21),E21*$D21,"") -> 2.5430949 | I21: 1.4642037
B22: CAMINHÃO BASCULANTE 6 M3 TOCO, PESO BRUTO TOTAL 16.000 KG, CARGA ÚTIL MÁXIMA 11.130 KG, DISTÂNCIA ENTRE EIXOS 5,36 M, POTÊNCIA 185 CV, INCLUSIVE CAÇAMBA METÁLICA - CHI DIURNO. AF_06/2014 | C22: CHI | D22: 0.0203 | E22: 29.925 | F22: =IF(ISNUMBER(E22),E22*$D22,"") -> 0.6074775 | I22: 1.4642037
F23: =IF(ISNUMBER(E23),ROUND(E23*$D23,2),"") ->  | I23: 1.4642037
A24: ARGAMASSA TRAÇO 1:4 (EM VOLUME DE CIMENTO E AREIA MÉDIA ÚMIDA) PARA CONTRAPISO, PREPARO MECÂNICO COM BETONEIRA 400 L. AF_08/2019 | C24: M3 | F24: =IF(ISNUMBER(E24),ROUND(E24*$D24,2),"") ->  | I24: 0
F25: =IF(ISNUMBER(E25),ROUND(E25*$D25,2),"") ->  | I25: 0
B26: Areia media - posto jazida/fornecedor (retirado na jazida, sem transporte) | C26: M3 | D26: 1.36 | E26: 93.8125 | F26: =IF(ISNUMBER(E26),ROUND(E26*$D26,2),"") -> 127.59 | G26: =SUM(F26:F36) -> 453.2913724 | I26: 0
B27: Cimento Portland composto CP II-32 | C27: KG | D27: 459.85 | E27: 0.4465 | F27: =IF(ISNUMBER(E27),ROUND(E27*$D27,2),"") -> 205.32 | I27: 0
B28: Operador de betoneira estacionária/misturador com encargos complementares | C28: H | D28: 4.85 | E28: 14.6585 | F28: =IF(ISNUMBER(E28),ROUND(E28*$D28,2),"") -> 71.09 | I28: 0
B29: Betoneira capacidade nominal de 400 L, capacidade de mistura 280 L, motor elétrico trifásico potência de 2 cv, sem carregador - CHP diurno. af_10/2014 | C29: CHP | D29: 1.13 | E29: 1.121 | F29: =IF(ISNUMBER(E29),ROUND(E29*$D29,2),"") -> 1.27 | I29: 0
B30: Betoneira capacidade nominal de 400 L, capacidade de mistura 280 L, motor elétrico trifásico potência de 2 cv, sem carregador - CHI diurno. af_10/2014 | C30: CHI | D30: 3.72 | E30: 0.228 | F30: =IF(ISNUMBER(E30),ROUND(E30*$D30,2),"") -> 0.85 | I30: 0
B31: PÁ CARREGADEIRA SOBRE RODAS, POTÊNCIA LÍQUIDA 128 HP, CAPACIDADE DA CAÇAMBA 1,7 A 2,8 M3, PESO OPERACIONAL 11632 KG - CHP DIURNO. AF_06/2014 | C31: CHP | D31: =ROUND(0.0083*D26,4) -> 0.0113 | E31: 106.2195 | F31: =IF(ISNUMBER(E31),E31*$D31,"") -> 1.20028035 | I31: 0
B32: PÁ CARREGADEIRA SOBRE RODAS, POTÊNCIA LÍQUIDA 128 HP, CAPACIDADE DA CAÇAMBA 1,7 A 2,8 M3, PESO OPERACIONAL 11632 KG - CHI DIURNO. AF_06/2014 | C32: CHI | D32: =ROUND(0.0151*D26,4) -> 0.0205 | E32: 38.912 | F32: =IF(ISNUMBER(E32),E32*$D32,"") -> 0.797696 | I32: 0
B33: CAMINHÃO BASCULANTE 6 M3 TOCO, PESO BRUTO TOTAL 16.000 KG, CARGA ÚTIL MÁXIMA 11.130 KG, DISTÂNCIA ENTRE EIXOS 5,36 M, POTÊNCIA 185 CV, INCLUSIVE CAÇAMBA METÁLICA - CHP DIURNO. AF_06/2014 | C33: CHP | D33: =ROUND(0.0267*D26,4) -> 0.0363 | E33: 95.247 | F33: =IF(ISNUMBER(E33),E33*$D33,"") -> 3.4574661 | I33: 0
B34: CAMINHÃO BASCULANTE 6 M3 TOCO, PESO BRUTO TOTAL 16.000 KG, CARGA ÚTIL MÁXIMA 11.130 KG, DISTÂNCIA ENTRE EIXOS 5,36 M, POTÊNCIA 185 CV, INCLUSIVE CAÇAMBA METÁLICA - CHI DIURNO. AF_06/2014 | C34: CHI | D34: =ROUND(0.0203*D26,4) -> 0.0276 | E34: 29.925 | F34: =IF(ISNUMBER(E34),E34*$D34,"") -> 0.82593 | I34: 0
B35: CAMINHÃO BASCULANTE 6 M3 TOCO, PESO BRUTO TOTAL 16.000 KG, CARGA ÚTIL MÁXIMA 11.130 KG, DISTÂNCIA ENTRE EIXOS 5,36 M, POTÊNCIA 185 CV, INCLUSIVE CAÇAMBA METÁLICA - CHP DIURNO. AF_06/2014 | C35: CHP | D35: =ROUND(0.0139*20*D26,4) -> 0.3781 | E35: 95.247 | F35: =IF(ISNUMBER(E35),ROUND(E35*$D35,2),"") -> 36.01 | I35: 0
B36: CAMINHÃO BASCULANTE 6 M3 TOCO, PESO BRUTO TOTAL 16.000 KG, CARGA ÚTIL MÁXIMA 11.130 KG, DISTÂNCIA ENTRE EIXOS 5,36 M, POTÊNCIA 185 CV, INCLUSIVE CAÇAMBA METÁLICA - CHI DIURNO. AF_06/2014 | C36: CHI | D36: =ROUND(0.006*20*D26,4) -> 0.1632 | E36: 29.925 | F36: =IF(ISNUMBER(E36),ROUND(E36*$D36,2),"") -> 4.88 | I36: 0
F37: =IF(ISNUMBER(E37),ROUND(E37*$D37,2),"") ->  | I37: 0
B38: Obs.: Considerando fornecedor de areia a 20 km do Senado Federal. | F38: =IF(ISNUMBER(E38),ROUND(E38*$D38,2),"") ->  | I38: 0
B39: Obs.2: Inclusão de composições (abertas) Sinapi 100973 e 97914. | F39: =IF(ISNUMBER(E39),ROUND(E39*$D39,2),"") ->  | I39: 0
A40: FABRICAÇÃO DE FÔRMA PARA PILARES E ESTRUTURAS SIMILARES, EM MADEIRA SERRADA, E=25 MM. AF_09/2020 | C40: M2 | F40: =IF(ISNUMBER(E40),ROUND(E40*$D40,2),"") ->  | I40: 0
F41: =IF(ISNUMBER(E41),ROUND(E41*$D41,2),"") ->  | I41: 0
B42: SARRAFO DE MADEIRA NAO APARELHADA *2,5 X 7,5* CM (1 X 3 ") PINUS, MISTA OU EQUIVALENTE DA REGIAO | C42: M | D42: 4.432 | E42: 1.3205 | F42: =IF(ISNUMBER(E42),ROUND(E42*$D42,2),"") -> 5.85 | G42: =SUM(F42:F48) -> 120.33 | I42: 0
B43: PREGO DE ACO POLIDO COM CABECA 17 X 21 (2 X 11) | C43: KG | D43: 0.086 | E43: 11.305 | F43: =IF(ISNUMBER(E43),ROUND(E43*$D43,2),"") -> 0.97 | I43: 0
B44: TABUA DE MADEIRA NAO APARELHADA *2,5 X 30* CM, CEDRINHO OU EQUIVALENTE DA REGIAO | C44: M | D44: 6.53 | E44: 14.554 | F44: =IF(ISNUMBER(E44),ROUND(E44*$D44,2),"") -> 95.04 | I44: 0
B45: AJUDANTE DE CARPINTEIRO COM ENCARGOS COMPLEMENTARES | C45: H | D45: 0.143 | E45: 16.416 | F45: =IF(ISNUMBER(E45),ROUND(E45*$D45,2),"") -> 2.35 | I45: 0
B46: CARPINTEIRO DE FORMAS COM ENCARGOS COMPLEMENTARES | C46: H | D46: 0.715 | E46: 19.342 | F46: =IF(ISNUMBER(E46),ROUND(E46*$D46,2),"") -> 13.83 | I46: 0
B47: SERRA CIRCULAR DE BANCADA COM MOTOR ELÉTRICO POTÊNCIA DE 5HP, COM COIFA PARA DISCO 10" - CHP DIURNO. AF_08/2015 | C47: CHP | D47: 0.05 | E47: 17.2045 | F47: =IF(ISNUMBER(E47),ROUND(E47*$D47,2),"") -> 0.86 | I47: 0
B48: SERRA CIRCULAR DE BANCADA COM MOTOR ELÉTRICO POTÊNCIA DE 5HP, COM COIFA PARA DISCO 10" - CHI DIURNO. AF_08/2015 | C48: CHI | D48: 0.093 | E48: 15.3805 | F48: =IF(ISNUMBER(E48),ROUND(E48*$D48,2),"") -> 1.43 | I48: 0
F49: =IF(ISNUMBER(E49),ROUND(E49*$D49,2),"") ->  | I49: 0
A50: ARGAMASSA TRAÇO 1:3 (EM VOLUME DE CIMENTO E AREIA GROSSA ÚMIDA) PARA CHAPISCO CONVENCIONAL, PREPARO MECÂNICO COM BETONEIRA 400 L. AF_08/2019 | C50: M3 | F50: =IF(ISNUMBER(E50),ROUND(E50*$D50,2),"") ->  | I50: 0
F51: =IF(ISNUMBER(E51),ROUND(E51*$D51,2),"") ->  | I51: 0
B52: AREIA GROSSA - POSTO JAZIDA/FORNECEDOR (RETIRADO NA JAZIDA, SEM TRANSPORTE) | C52: M3 | D52: 0.95 | E52: 118.7025 | F52: =IF(ISNUMBER(E52),ROUND(E52*$D52,2),"") -> 112.77 | G52: =SUM(F52:F65) -> 401.352402 | I52: 0
B53: CIMENTO PORTLAND COMPOSTO CP II-32 | C53: KG | D53: 426.49 | E53: 0.4465 | F53: =IF(ISNUMBER(E53),ROUND(E53*$D53,2),"") -> 190.43 | I53: 0
B54: OPERADOR DE BETONEIRA ESTACIONÁRIA/MISTURADOR COM ENCARGOS COMPLEMENTARES | C54: H | D54: 4.32 | E54: 14.6585 | F54: =IF(ISNUMBER(E54),ROUND(E54*$D54,2),"") -> 63.32 | I54: 0
B55: BETONEIRA CAPACIDADE NOMINAL DE 400 L, CAPACIDADE DE MISTURA 280 L, MOTOR ELÉTRICO TRIFÁSICO POTÊNCIA DE 2 CV, SEM CARREGADOR - CHP DIURNO. AF_10/2014 | C55: CHP | D55: 1.01 | E55: 1.121 | F55: =IF(ISNUMBER(E55),ROUND(E55*$D55,2),"") -> 1.13 | I55: 0
B56: BETONEIRA CAPACIDADE NOMINAL DE 400 L, CAPACIDADE DE MISTURA 280 L, MOTOR ELÉTRICO TRIFÁSICO POTÊNCIA DE 2 CV, SEM CARREGADOR - CHI DIURNO. AF_10/2014 | C56: CHI | D56: 3.31 | E56: 0.228 | F56: =IF(ISNUMBER(E56),ROUND(E56*$D56,2),"") -> 0.75 | I56: 0
B57: PÁ CARREGADEIRA SOBRE RODAS, POTÊNCIA LÍQUIDA 128 HP, CAPACIDADE DA CAÇAMBA 1,7 A 2,8 M3, PESO OPERACIONAL 11632 KG - CHP DIURNO. AF_06/2014 | C57: CHP | D57: =ROUND(0.0083*D52,4) -> 0.0079 | E57: 106.2195 | F57: =IF(ISNUMBER(E57),E57*$D57,"") -> 0.83913405 | I57: 0
B58: PÁ CARREGADEIRA SOBRE RODAS, POTÊNCIA LÍQUIDA 128 HP, CAPACIDADE DA CAÇAMBA 1,7 A 2,8 M3, PESO OPERACIONAL 11632 KG - CHI DIURNO. AF_06/2014 | C58: CHI | D58: =ROUND(0.0151*D52,4) -> 0.0143 | E58: 38.912 | F58: =IF(ISNUMBER(E58),E58*$D58,"") -> 0.5564416 | I58: 0
B59: CAMINHÃO BASCULANTE 6 M3 TOCO, PESO BRUTO TOTAL 16.000 KG, CARGA ÚTIL MÁXIMA 11.130 KG, DISTÂNCIA ENTRE EIXOS 5,36 M, POTÊNCIA 185 CV, INCLUSIVE CAÇAMBA METÁLICA - CHP DIURNO. AF_06/2014 | C59: CHP | D59: =ROUND(0.0267*D52,4) -> 0.0254 | E59: 95.247 | F59: =IF(ISNUMBER(E59),E59*$D59,"") -> 2.4192738 | I59: 0
B60: CAMINHÃO BASCULANTE 6 M3 TOCO, PESO BRUTO TOTAL 16.000 KG, CARGA ÚTIL MÁXIMA 11.130 KG, DISTÂNCIA ENTRE EIXOS 5,36 M, POTÊNCIA 185 CV, INCLUSIVE CAÇAMBA METÁLICA - CHI DIURNO. AF_06/2014 | C60: CHI | D60: =ROUND(0.0203*D52,4) -> 0.0193 | E60: 29.925 | F60: =IF(ISNUMBER(E60),E60*$D60,"") -> 0.5775525 | I60: 0
B61: CAMINHÃO BASCULANTE 6 M3 TOCO, PESO BRUTO TOTAL 16.000 KG, CARGA ÚTIL MÁXIMA 11.130 KG, DISTÂNCIA ENTRE EIXOS 5,36 M, POTÊNCIA 185 CV, INCLUSIVE CAÇAMBA METÁLICA - CHP DIURNO. AF_06/2014 | C61: CHP | D61: =ROUND(0.0139*20*D52,4) -> 0.2641 | E61: 95.247 | F61: =IF(ISNUMBER(E61),ROUND(E61*$D61,2),"") -> 25.15 | I61: 0
B62: CAMINHÃO BASCULANTE 6 M3 TOCO, PESO BRUTO TOTAL 16.000 KG, CARGA ÚTIL MÁXIMA 11.130 KG, DISTÂNCIA ENTRE EIXOS 5,36 M, POTÊNCIA 185 CV, INCLUSIVE CAÇAMBA METÁLICA - CHI DIURNO. AF_06/2014 | C62: CHI | D62: =ROUND(0.006*20*D52,4) -> 0.114 | E62: 29.925 | F62: =IF(ISNUMBER(E62),ROUND(E62*$D62,2),"") -> 3.41 | I62: 0
F63: =IF(ISNUMBER(E63),ROUND(E63*$D63,2),"") ->  | I63: 0
B64: Obs.: Considerando fornecedor de areia a 20 km do Senado Federal. | I64: 0
B65: Obs.2: Inclusão de composições (abertas) Sinapi 100973 e 97914. | I65: 0
F66: =IF(ISNUMBER(E66),ROUND(E66*$D66,2),"") ->  | I66: 0
A67: ARGAMASSA TRAÇO 1:3 (EM VOLUME DE CIMENTO E AREIA GROSSA ÚMIDA) PARA CHAPISCO CONVENCIONAL, PREPARO MECÂNICO COM BETONEIRA 400 L. AF_08/2019 | C67: M3 | I67: 0
I68: 0
B69: AREIA MEDIA - POSTO JAZIDA/FORNECEDOR (RETIRADO NA JAZIDA, SEM TRANSPORTE) | C69: M3 | D69: 1.16 | E69: 93.8125 | F69: 108.82 | G69: =SUM(F69:F82) -> 435.9765617 | I69: 0
B70: CAL HIDRATADA CH-I PARA ARGAMASSAS | C70: KG | D70: 174.1 | E70: 0.76 | F70: 132.32 | I70: 0
B71: CIMENTO PORTLAND COMPOSTO CP II-32 | C71: KG | D71: 195.86 | E71: 0.4465 | F71: 87.45 | I71: 0
B72: OPERADOR DE BETONEIRA ESTACIONÁRIA/MISTURADOR COM ENCARGOS COMPLEMENTARES | C72: H | D72: 4.5 | E72: 14.6585 | F72: 65.96 | I72: 0
B73: BETONEIRA CAPACIDADE NOMINAL DE 400 L, CAPACIDADE DE MISTURA 280 L, MOTOR ELÉTRICO TRIFÁSICO POTÊNCIA DE 2 CV, SEM CARREGADOR - CHP DIURNO. AF_10/2014 | C73: CHP | D73: 1.05 | E73: 1.121 | F73: 1.18 | I73: 0
B74: PÁ CARREGADEIRA SOBRE RODAS, POTÊNCIA LÍQUIDA 128 HP, CAPACIDADE DA CAÇAMBA 1,7 A 2,8 M3, PESO OPERACIONAL 11632 KG - CHP DIURNO. AF_06/2014 | C74: CHP | D74: =ROUND(0.0083*D69,4) -> 0.0096 | E74: 106.2195 | F74: =IF(ISNUMBER(E74),E74*$D74,"") -> 1.0197072 | I74: 0
B75: PÁ CARREGADEIRA SOBRE RODAS, POTÊNCIA LÍQUIDA 128 HP, CAPACIDADE DA CAÇAMBA 1,7 A 2,8 M3, PESO OPERACIONAL 11632 KG - CHI DIURNO. AF_06/2014 | C75: CHI | D75: =ROUND(0.0151*D69,4) -> 0.0175 | E75: 38.912 | F75: =IF(ISNUMBER(E75),E75*$D75,"") -> 0.68096 | I75: 0
B76: CAMINHÃO BASCULANTE 6 M3 TOCO, PESO BRUTO TOTAL 16.000 KG, CARGA ÚTIL MÁXIMA 11.130 KG, DISTÂNCIA ENTRE EIXOS 5,36 M, POTÊNCIA 185 CV, INCLUSIVE CAÇAMBA METÁLICA - CHP DIURNO. AF_06/2014 | C76: CHP | D76: =ROUND(0.0267*D69,4) -> 0.031 | E76: 95.247 | F76: =IF(ISNUMBER(E76),E76*$D76,"") -> 2.952657 | I76: 0
B77: CAMINHÃO BASCULANTE 6 M3 TOCO, PESO BRUTO TOTAL 16.000 KG, CARGA ÚTIL MÁXIMA 11.130 KG, DISTÂNCIA ENTRE EIXOS 5,36 M, POTÊNCIA 185 CV, INCLUSIVE CAÇAMBA METÁLICA - CHI DIURNO. AF_06/2014 | C77: CHI | D77: =ROUND(0.0203*D69,4) -> 0.0235 | E77: 29.925 | F77: =IF(ISNUMBER(E77),E77*$D77,"") -> 0.7032375 | I77: 0
B78: CAMINHÃO BASCULANTE 6 M3 TOCO, PESO BRUTO TOTAL 16.000 KG, CARGA ÚTIL MÁXIMA 11.130 KG, DISTÂNCIA ENTRE EIXOS 5,36 M, POTÊNCIA 185 CV, INCLUSIVE CAÇAMBA METÁLICA - CHP DIURNO. AF_06/2014 | C78: CHP | D78: =ROUND(0.0139*20*D69,4) -> 0.3225 | E78: 95.247 | F78: =IF(ISNUMBER(E78),ROUND(E78*$D78,2),"") -> 30.72 | I78: 0
B79: CAMINHÃO BASCULANTE 6 M3 TOCO, PESO BRUTO TOTAL 16.000 KG, CARGA ÚTIL MÁXIMA 11.130 KG, DISTÂNCIA ENTRE EIXOS 5,36 M, POTÊNCIA 185 CV, INCLUSIVE CAÇAMBA METÁLICA - CHI DIURNO. AF_06/2014 | C79: CHI | D79: =ROUND(0.006*20*D69,4) -> 0.1392 | E79: 29.925 | F79: =IF(ISNUMBER(E79),ROUND(E79*$D79,2),"") -> 4.17 | I79: 0
F80: =IF(ISNUMBER(E80),ROUND(E80*$D80,2),"") ->  | I80: 0
B81: Obs.: Considerando fornecedor de areia a 20 km do Senado Federal. | I81: 0
B82: Obs.2: Inclusão de composições (abertas) Sinapi 100973 e 97914. | I82: 0
I83: 0

Sheet Orçamentária
A1: Manutenção de revestimentos de mármore nas fachadas do Edifício Principal e do Anexo I do SF
A2: PLANILHA ORÇAMENTÁRIA
A3: Data: Outubro de 2020
A5: ITEM | B5: DESCRIÇÃO | C5: UNIDADE | D5: QUANTIDADE | E5: CUSTO UNITÁRIO | F5: CUSTO DIRETO | G5: BDI (%) | H5: PREÇO UNITÁRIO COM BDI | I5: CUSTO TOTAL
A6: SF-00001 | B6: Engenheiro(a) /Arquiteto(a) júnior | C6: hh | D6: 0 | E6: =OFFSET(INDEX(Composições!A:J,MATCH(Orçamentária!A6,Composições!A:A,0),8),2,0) -> 71.592 | F6: =IF(ISNUMBER(E6),D6*E6,"") -> 0 | G6: =IF(A6<>"",IF(AND(#REF!="Padrão",$H$4=#REF!),BDI!$B$17,IF(AND(#REF!="Padrão",$H$4=#REF!),BDI!$C$17,IF(AND(#REF!="Diferenciado",$H$4=#REF!),BDI!$G$17,IF(AND(#REF!="Diferenciado",$H$4=#REF!),BDI!$H$17,IF(#REF!="ZERO",0))))),"") ->  | H6: =IF(ISNUMBER(E6),ROUND(E6*(1+G6),2),"") ->  | I6: =IF(ISNUMBER(E6),ROUND(H6*D6,2),"") -> 
A7: SF-00002 | B7: Mestre de obras | C7: hh | D7: 0 | E7: =OFFSET(INDEX(Composições!A:J,MATCH(Orçamentária!A7,Composições!A:A,0),8),2,0) -> 22.5625 | F7: =IF(ISNUMBER(E7),D7*E7,"") -> 0 | G7: =IF(A7<>"",IF(AND(#REF!="Padrão",$H$4=#REF!),BDI!$B$17,IF(AND(#REF!="Padrão",$H$4=#REF!),BDI!$C$17,IF(AND(#REF!="Diferenciado",$H$4=#REF!),BDI!$G$17,IF(AND(#REF!="Diferenciado",$H$4=#REF!),BDI!$H$17,IF(#REF!="ZERO",0))))),"") ->  | H7: =IF(ISNUMBER(E7),ROUND(E7*(1+G7),2),"") ->  | I7: =IF(ISNUMBER(E7),ROUND(H7*D7,2),"") -> 
A8: SF-00003 | B8: Planejamento físico-financeiro | C8: un | D8: 1 | E8: =OFFSET(INDEX(Composições!A:J,MATCH(Orçamentária!A8,Composições!A:A,0),8),2,0) -> 1301.424 | F8: 1301.424 | G8: =BDI!$C$17 -> 0.25 | H8: 1626.78 | I8: 1626.78
A9: SF-00004 | B9: Projetos de segurança do trabalho | C9: un | D9: 1 | E9: =OFFSET(INDEX(Composições!A:J,MATCH(Orçamentária!A9,Composições!A:A,0),8),2,0) -> 1866.23 | F9: 1866.23 | G9: =BDI!$C$17 -> 0.25 | H9: 2332.79 | I9: 2332.79
A10: SF-00005 | B10: Demolição de alvenarias | C10: m3 | D10: 0 | E10: =OFFSET(INDEX(Composições!A:J,MATCH(Orçamentária!A10,Composições!A:A,0),8),2,0) -> 38.2170142 | F10: 0 | G10: =IF(A10<>"",IF(AND(#REF!="Padrão",$H$4=#REF!),BDI!$B$17,IF(AND(#REF!="Padrão",$H$4=#REF!),BDI!$C$17,IF(AND(#REF!="Diferenciado",$H$4=#REF!),BDI!$G$17,IF(AND(#REF!="Diferenciado",$H$4=#REF!),BDI!$H$17,IF(#REF!="ZERO",0))))),"") -> 
A11: SF-00006 | B11: Demolição de concreto simples | C11: m3 | D11: 0 | E11: =OFFSET(INDEX(Composições!A:J,MATCH(Orçamentária!A11,Composições!A:A,0),8),2,0) -> 214.5195 | F11: 0 | G11: =IF(A11<>"",IF(AND(#REF!="Padrão",$H$4=#REF!),BDI!$B$17,IF(AND(#REF!="Padrão",$H$4=#REF!),BDI!$C$17,IF(AND(#REF!="Diferenciado",$H$4=#REF!),BDI!$G$17,IF(AND(#REF!="Diferenciado",$H$4=#REF!),BDI!$H$17,IF(#REF!="ZERO",0))))),"") -> 
A12: SF-00007 | B12: Demolição de contrapiso | C12: m2 | D12: 0 | E12: =OFFSET(INDEX(Composições!A:J,MATCH(Orçamentária!A12,Composições!A:A,0),8),2,0) -> 10.1878 | F12: 0 | G12: =IF(A12<>"",IF(AND(#REF!="Padrão",$H$4=#REF!),BDI!$B$17,IF(AND(#REF!="Padrão",$H$4=#REF!),BDI!$C$17,IF(AND(#REF!="Diferenciado",$H$4=#REF!),BDI!$G$17,IF(AND(#REF!="Diferenciado",$H$4=#REF!),BDI!$H$17,IF(#REF!="ZERO",0))))),"") -> 
A13: SF-00008 | B13: Demolição de fechamento ou parede em gesso acartonado | C13: m2 | D13: 0 | E13: =OFFSET(INDEX(Composições!A:J,MATCH(Orçamentária!A13,Composições!A:A,0),8),2,0) -> 5.1641791 | F13: 0 | G13: =IF(A13<>"",IF(AND(#REF!="Padrão",$H$4=#REF!),BDI!$B$17,IF(AND(#REF!="Padrão",$H$4=#REF!),BDI!$C$17,IF(AND(#REF!="Diferenciado",$H$4=#REF!),BDI!$G$17,IF(AND(#REF!="Diferenciado",$H$4=#REF!),BDI!$H$17,IF(#REF!="ZERO",0))))),"") -> 
A14: SF-00009 | B14: Demolição de forro de gesso | C14: m2 | D14: 0 | E14: =OFFSET(INDEX(Composições!A:J,MATCH(Orçamentária!A14,Composições!A:A,0),8),2,0) -> 1.1239203 | F14: 0 | G14: =IF(A14<>"",IF(AND(#REF!="Padrão",$H$4=#REF!),BDI!$B$17,IF(AND(#REF!="Padrão",$H$4=#REF!),BDI!$C$17,IF(AND(#REF!="Diferenciado",$H$4=#REF!),BDI!$G$17,IF(AND(#REF!="Diferenciado",$H$4=#REF!),BDI!$H$17,IF(#REF!="ZERO",0))))),"") -> 
A15: SF-00010 | B15: Demolição de infraestrutura elétrica (eletrodutos, eletrocalhas, cabos) | C15: m | D15: 0 | E15: =OFFSET(INDEX(Composições!A:J,MATCH(Orçamentária!A15,Composições!A:A,0),8),2,0) -> 2.311084 | F15: 0 | G15: =IF(A15<>"",IF(AND(#REF!="Padrão",$H$4=#REF!),BDI!$B$17,IF(AND(#REF!="Padrão",$H$4=#REF!),BDI!$C$17,IF(AND(#REF!="Diferenciado",$H$4=#REF!),BDI!$G$17,IF(AND(#REF!="Diferenciado",$H$4=#REF!),BDI!$H$17,IF(#REF!="ZERO",0))))),"") -> 
A16: SF-00011 | B16: Demolição de revestimento cerâmico, granito, mármore ou granitina | C16: m2 | D16: 0 | E16: =OFFSET(INDEX(Composições!A:J,MATCH(Orçamentária!A16,Composições!A:A,0),8),2,0) -> 8.44156035 | F16: 0 | G16: =IF(A16<>"",IF(AND(#REF!="Padrão",$H$4=#REF!),BDI!$B$17,IF(AND(#REF!="Padrão",$H$4=#REF!),BDI!$C$17,IF(AND(#REF!="Diferenciado",$H$4=#REF!),BDI!$G$17,IF(AND(#REF!="Diferenciado",$H$4=#REF!),BDI!$H$17,IF(#REF!="ZERO",0))))),"") -> 
A17: SF-00012 | B17: Demolição de revestimento em argamassa | C17: m2 | D17: 231.21 | E17: =OFFSET(INDEX(Composições!A:J,MATCH(Orçamentária!A17,Composições!A:A,0),8),2,0) -> 2.2609012 | F17: 522.7429665 | G17: =BDI!$C$17 -> 0.25 | H17: 2.83 | I17: 654.32
A18: SF-00013 | B18: Demolição de tubulação hidrossanitária embutida com conexões e acessórios | C18: m | D18: 0 | E18: =OFFSET(INDEX(Composições!A:J,MATCH(Orçamentária!A18,Composições!A:A,0),8),2,0) -> 0.33912815 | F18: 0 | G18: =IF(A18<>"",IF(AND(#REF!="Padrão",$H$4=#REF!),BDI!$B$17,IF(AND(#REF!="Padrão",$H$4=#REF!),BDI!$C$17,IF(AND(#REF!="Diferenciado",$H$4=#REF!),BDI!$G$17,IF(AND(#REF!="Diferenciado",$H$4=#REF!),BDI!$H$17,IF(#REF!="ZERO",0))))),"") -> 
A19: SF-00014 | B19: Demolição em concreto armado | C19: m3 | D19: 0 | E19: =OFFSET(INDEX(Composições!A:J,MATCH(Orçamentária!A19,Composições!A:A,0),8),2,0) -> 194.0587933 | F19: 0 | G19: =IF(A19<>"",IF(AND(#REF!="Padrão",$H$4=#REF!),BDI!$B$17,IF(AND(#REF!="Padrão",$H$4=#REF!),BDI!$C$17,IF(AND(#REF!="Diferenciado",$H$4=#REF!),BDI!$G$17,IF(AND(#REF!="Diferenciado",$H$4=#REF!),BDI!$H$17,IF(#REF!="ZERO",0))))),"") -> 
A20: SF-00015 | B20: Locação de caçambas | C20: un | D20: 15 | E20: 300 | F20: 4500 | G20: =BDI!$H$17 -> 0.1671 | H20: 350.13 | I20: 5251.95
A21: SF-00016 | B21: Remoção de armários | C21: m2 | D21: 0 | E21: =OFFSET(INDEX(Composições!A:J,MATCH(Orçamentária!A21,Composições!A:A,0),8),2,0) -> 11.873575 | F21: 0 | G21: =IF(A21<>"",IF(AND(#REF!="Padrão",$H$4=#REF!),BDI!$B$17,IF(AND(#REF!="Padrão",$H$4=#REF!),BDI!$C$17,IF(AND(#REF!="Diferenciado",$H$4=#REF!),BDI!$G$17,IF(AND(#REF!="Diferenciado",$H$4=#REF!),BDI!$H$17,IF(#REF!="ZERO",0))))),"") -> 
A22: SF-00017 | B22: Remoção de bancadas | C22: m2 | D22: 0 | E22: =OFFSET(INDEX(Composições!A:J,MATCH(Orçamentária!A22,Composições!A:A,0),8),2,0) -> 17.47525 | F22: 0 | G22: =IF(A22<>"",IF(AND(#REF!="Padrão",$H$4=#REF!),BDI!$B$17,IF(AND(#REF!="Padrão",$H$4=#REF!),BDI!$C$17,IF(AND(#REF!="Diferenciado",$H$4=#REF!),BDI!$G$17,IF(AND(#REF!="Diferenciado",$H$4=#REF!),BDI!$H$17,IF(#REF!="ZERO",0))))),"") -> 
A23: SF-00018 | B23: Remoção de batentes de madeira | C23: un | D23: 0 | E23: =OFFSET(INDEX(Composições!A:J,MATCH(Orçamentária!A23,Composições!A:A,0),8),2,0) -> 6.6006 | F23: 0 | G23: =IF(A23<>"",IF(AND(#REF!="Padrão",$H$4=#REF!),BDI!$B$17,IF(AND(#REF!="Padrão",$H$4=#REF!),BDI!$C$17,IF(AND(#REF!="Diferenciado",$H$4=#REF!),BDI!$G$17,IF(AND(#REF!="Diferenciado",$H$4=#REF!),BDI!$H$17,IF(#REF!="ZERO",0))))),"") -> 
A24: SF-00019 | B24: Remoção de canaleta em alumínio | C24: m | D24: 0 | E24: =OFFSET(INDEX(Composições!A:J,MATCH(Orçamentária!A24,Composições!A:A,0),8),2,0) -> 3.65655 | F24: 0 | G24: =IF(A24<>"",IF(AND(#REF!="Padrão",$H$4=#REF!),BDI!$B$17,IF(AND(#REF!="Padrão",$H$4=#REF!),BDI!$C$17,IF(AND(#REF!="Diferenciado",$H$4=#REF!),BDI!$G$17,IF(AND(#REF!="Diferenciado",$H$4=#REF!),BDI!$H$17,IF(#REF!="ZERO",0))))),"") -> 
A25: SF-00020 | B25: Remoção de carpete | C25: m2 | D25: 0 | E25: =OFFSET(INDEX(Composições!A:J,MATCH(Orçamentária!A25,Composições!A:A,0),8),2,0) -> 1.65015 | F25: 0 | G25: =IF(A25<>"",IF(AND(#REF!="Padrão",$H$4=#REF!),BDI!$B$17,IF(AND(#REF!="Padrão",$H$4=#REF!),BDI!$C$17,IF(AND(#REF!="Diferenciado",$H$4=#REF!),BDI!$G$17,IF(AND(#REF!="Diferenciado",$H$4=#REF!),BDI!$H$17,IF(#REF!="ZERO",0))))),"") -> 
A26: SF-00021 | B26: Remoção de cortinas | C26: m | D26: 0 | E26: =OFFSET(INDEX(Composições!A:J,MATCH(Orçamentária!A26,Composições!A:A,0),8),2,0) -> 2.86482285 | F26: 0 | G26: =IF(A26<>"",IF(AND(#REF!="Padrão",$H$4=#REF!),BDI!$B$17,IF(AND(#REF!="Padrão",$H$4=#REF!),BDI!$C$17,IF(AND(#REF!="Diferenciado",$H$4=#REF!),BDI!$G$17,IF(AND(#REF!="Diferenciado",$H$4=#REF!),BDI!$H$17,IF(#REF!="ZERO",0))))),"") -> 
A27: SF-00022 | B27: Remoção de difusores, grelhas e acessórios de climatização | C27: un | D27: 0 | E27: =OFFSET(INDEX(Composições!A:J,MATCH(Orçamentária!A27,Composições!A:A,0),8),2,0) -> 18.0462 | F27: 0 | G27: =IF(A27<>"",IF(AND(#REF!="Padrão",$H$4=#REF!),BDI!$B$17,IF(AND(#REF!="Padrão",$H$4=#REF!),BDI!$C$17,IF(AND(#REF!="Diferenciado",$H$4=#REF!),BDI!$G$17,IF(AND(#REF!="Diferenciado",$H$4=#REF!),BDI!$H$17,IF(#REF!="ZERO",0))))),"") -> 
A28: SF-00023 | B28: Remoção de divisória de mármore ou granito | C28: m2 | D28: 0 | E28: =OFFSET(INDEX(Composições!A:J,MATCH(Orçamentária!A28,Composições!A:A,0),8),2,0) -> 27.2631 | F28: 0 | G28: =IF(A28<>"",IF(AND(#REF!="Padrão",$H$4=#REF!),BDI!$B$17,IF(AND(#REF!="Padrão",$H$4=#REF!),BDI!$C$17,IF(AND(#REF!="Diferenciado",$H$4=#REF!),BDI!$G$17,IF(AND(#REF!="Diferenciado",$H$4=#REF!),BDI!$H$17,IF(#REF!="ZERO",0))))),"") -> 
A29: SF-00024 | B29: Remoção de divisórias de MDF e gesso acartonado | C29: m2 | D29: 0 | E29: =OFFSET(INDEX(Composições!A:J,MATCH(Orçamentária!A29,Composições!A:A,0),8),2,0) -> 23.2446 | F29: 0 | G29: =IF(A29<>"",IF(AND(#REF!="Padrão",$H$4=#REF!),BDI!$B$17,IF(AND(#REF!="Padrão",$H$4=#REF!),BDI!$C$17,IF(AND(#REF!="Diferenciado",$H$4=#REF!),BDI!$G$17,IF(AND(#REF!="Diferenciado",$H$4=#REF!),BDI!$H$17,IF(#REF!="ZERO",0))))),"") -> 
A30: SF-00025 | B30: Remoção de dutos/tubulações | C30: m | D30: 0 | E30: =OFFSET(INDEX(Composições!A:J,MATCH(Orçamentária!A30,Composições!A:A,0),8),2,0) -> 7.7028375 | F30: 0 | G30: =IF(A30<>"",IF(AND(#REF!="Padrão",$H$4=#REF!),BDI!$B$17,IF(AND(#REF!="Padrão",$H$4=#REF!),BDI!$C$17,IF(AND(#REF!="Diferenciado",$H$4=#REF!),BDI!$G$17,IF(AND(#REF!="Diferenciado",$H$4=#REF!),BDI!$H$17,IF(#REF!="ZERO",0))))),"") -> 
A31: SF-00026 | B31: Remoção de esquadrias metálicas | C31: m2 | D31: 0 | E31: =OFFSET(INDEX(Composições!A:J,MATCH(Orçamentária!A31,Composições!A:A,0),8),2,0) -> 8.25075 | F31: 0 | G31: =IF(A31<>"",IF(AND(#REF!="Padrão",$H$4=#REF!),BDI!$B$17,IF(AND(#REF!="Padrão",$H$4=#REF!),BDI!$C$17,IF(AND(#REF!="Diferenciado",$H$4=#REF!),BDI!$G$17,IF(AND(#REF!="Diferenciado",$H$4=#REF!),BDI!$H$17,IF(#REF!="ZERO",0))))),"") -> 
A32: SF-00027 | B32: Remoção de exaustor | C32: un | D32: 0 | E32: =OFFSET(INDEX(Composições!A:J,MATCH(Orçamentária!A32,Composições!A:A,0),8),2,0) -> 5.8938 | F32: 0 | G32: =IF(A32<>"",IF(AND(#REF!="Padrão",$H$4=#REF!),BDI!$B$17,IF(AND(#REF!="Padrão",$H$4=#REF!),BDI!$C$17,IF(AND(#REF!="Diferenciado",$H$4=#REF!),BDI!$G$17,IF(AND(#REF!="Diferenciado",$H$4=#REF!),BDI!$H$17,IF(#REF!="ZERO",0))))),"") -> 
A33: SF-00028 | B33: Remoção de fechadura/puxador de porta | C33: un | D33: 0 | E33: =OFFSET(INDEX(Composições!A:J,MATCH(Orçamentária!A33,Composições!A:A,0),8),2,0) -> 4.842625 | F33: 0 | G33: =IF(A33<>"",IF(AND(#REF!="Padrão",$H$4=#REF!),BDI!$B$17,IF(AND(#REF!="Padrão",$H$4=#REF!),BDI!$C$17,IF(AND(#REF!="Diferenciado",$H$4=#REF!),BDI!$G$17,IF(AND(#REF!="Diferenciado",$H$4=#REF!),BDI!$H$17,IF(#REF!="ZERO",0))))),"") -> 
A34: SF-00029 | B34: Remoção de folha de porta e dobradiças | C34: un | D34: 0 | E34: =OFFSET(INDEX(Composições!A:J,MATCH(Orçamentária!A34,Composições!A:A,0),8),2,0) -> 6.3188053 | F34: 0 | G34: =IF(A34<>"",IF(AND(#REF!="Padrão",$H$4=#REF!),BDI!$B$17,IF(AND(#REF!="Padrão",$H$4=#REF!),BDI!$C$17,IF(AND(#REF!="Diferenciado",$H$4=#REF!),BDI!$G$17,IF(AND(#REF!="Diferenciado",$H$4=#REF!),BDI!$H$17,IF(#REF!="ZERO",0))))),"") -> 
A35: SF-00030 | B35: Remoção de laminado melamínico (LDAP), em PVC ou vinílico | C35: m2 | D35: 0 | E35: =OFFSET(INDEX(Composições!A:J,MATCH(Orçamentária!A35,Composições!A:A,0),8),2,0) -> 14.85135 | F35: 0 | G35: =IF(A35<>"",IF(AND(#REF!="Padrão",$H$4=#REF!),BDI!$B$17,IF(AND(#REF!="Padrão",$H$4=#REF!),BDI!$C$17,IF(AND(#REF!="Diferenciado",$H$4=#REF!),BDI!$G$17,IF(AND(#REF!="Diferenciado",$H$4=#REF!),BDI!$H$17,IF(#REF!="ZERO",0))))),"") -> 
A36: SF-00031 | B36: Remoção de louças | C36: un | D36: 0 | E36: =OFFSET(INDEX(Composições!A:J,MATCH(Orçamentária!A36,Composições!A:A,0),8),2,0) -> 8.36438995 | F36: 0 | G36: =IF(A36<>"",IF(AND(#REF!="Padrão",$H$4=#REF!),BDI!$B$17,IF(AND(#REF!="Padrão",$H$4=#REF!),BDI!$C$17,IF(AND(#REF!="Diferenciado",$H$4=#REF!),BDI!$G$17,IF(AND(#REF!="Diferenciado",$H$4=#REF!),BDI!$H$17,IF(#REF!="ZERO",0))))),"") -> 
A37: SF-00032 | B37: Remoção de luminária | C37: un | D37: 0 | E37: =OFFSET(INDEX(Composições!A:J,MATCH(Orçamentária!A37,Composições!A:A,0),8),2,0) -> 4.410052 | F37: 0 | G37: =IF(A37<>"",IF(AND(#REF!="Padrão",$H$4=#REF!),BDI!$B$17,IF(AND(#REF!="Padrão",$H$4=#REF!),BDI!$C$17,IF(AND(#REF!="Diferenciado",$H$4=#REF!),BDI!$G$17,IF(AND(#REF!="Diferenciado",$H$4=#REF!),BDI!$H$17,IF(#REF!="ZERO",0))))),"") -> 
A38: SF-00033 | B38: Remoção de metais e acessórios | C38: un | D38: 0 | E38: =OFFSET(INDEX(Composições!A:J,MATCH(Orçamentária!A38,Composições!A:A,0),8),2,0) -> 6.0993876 | F38: 0 | G38: =IF(A38<>"",IF(AND(#REF!="Padrão",$H$4=#REF!),BDI!$B$17,IF(AND(#REF!="Padrão",$H$4=#REF!),BDI!$C$17,IF(AND(#REF!="Diferenciado",$H$4=#REF!),BDI!$G$17,IF(AND(#REF!="Diferenciado",$H$4=#REF!),BDI!$H$17,IF(#REF!="ZERO",0))))),"") -> 
A39: SF-00034 | B39: Remoção de painéis de vidro temperado | C39: m2 | D39: 0 | E39: =OFFSET(INDEX(Composições!A:J,MATCH(Orçamentária!A39,Composições!A:A,0),8),2,0) -> 11.91015 | F39: 0 | G39: =IF(A39<>"",IF(AND(#REF!="Padrão",$H$4=#REF!),BDI!$B$17,IF(AND(#REF!="Padrão",$H$4=#REF!),BDI!$C$17,IF(AND(#REF!="Diferenciado",$H$4=#REF!),BDI!$G$17,IF(AND(#REF!="Diferenciado",$H$4=#REF!),BDI!$H$17,IF(#REF!="ZERO",0))))),"") -> 
A40: SF-00035 | B40: Remoção de película | C40: m2 | D40: 0 | E40: =OFFSET(INDEX(Composições!A:J,MATCH(Orçamentária!A40,Composições!A:A,0),8),2,0) -> 7.258 | F40: 0 | G40: =IF(A40<>"",IF(AND(#REF!="Padrão",$H$4=#REF!),BDI!$B$17,IF(AND(#REF!="Padrão",$H$4=#REF!),BDI!$C$17,IF(AND(#REF!="Diferenciado",$H$4=#REF!),BDI!$G$17,IF(AND(#REF!="Diferenciado",$H$4=#REF!),BDI!$H$17,IF(#REF!="ZERO",0))))),"") -> 
A41: SF-00036 | B41: Remoção de persianas | C41: m | D41: 0 | E41: =OFFSET(INDEX(Composições!A:J,MATCH(Orçamentária!A41,Composições!A:A,0),8),2,0) -> 2.86482285 | F41: 0 | G41: =IF(A41<>"",IF(AND(#REF!="Padrão",$H$4=#REF!),BDI!$B$17,IF(AND(#REF!="Padrão",$H$4=#REF!),BDI!$C$17,IF(AND(#REF!="Diferenciado",$H$4=#REF!),BDI!$G$17,IF(AND(#REF!="Diferenciado",$H$4=#REF!),BDI!$H$17,IF(#REF!="ZERO",0))))),"") -> 
A42: SF-00037 | B42: Remoção de pintura ou textura | C42: m2 | D42: 0 | E42: =OFFSET(INDEX(Composições!A:J,MATCH(Orçamentária!A42,Composições!A:A,0),8),2,0) -> 5.8216 | F42: 0 | G42: =IF(A42<>"",IF(AND(#REF!="Padrão",$H$4=#REF!),BDI!$B$17,IF(AND(#REF!="Padrão",$H$4=#REF!),BDI!$C$17,IF(AND(#REF!="Diferenciado",$H$4=#REF!),BDI!$G$17,IF(AND(#REF!="Diferenciado",$H$4=#REF!),BDI!$H$17,IF(#REF!="ZERO",0))))),"") -> 
A43: SF-00038 | B43: Remoção de placas de forro | C43: m2 | D43: 0 | E43: =OFFSET(INDEX(Composições!A:J,MATCH(Orçamentária!A43,Composições!A:A,0),8),2,0) -> 3.3717609 | F43: 0 | G43: =IF(A43<>"",IF(AND(#REF!="Padrão",$H$4=#REF!),BDI!$B$17,IF(AND(#REF!="Padrão",$H$4=#REF!),BDI!$C$17,IF(AND(#REF!="Diferenciado",$H$4=#REF!),BDI!$G$17,IF(AND(#REF!="Diferenciado",$H$4=#REF!),BDI!$H$17,IF(#REF!="ZERO",0))))),"") -> 
A44: SF-00039 | B44: Remoção de quadros de elétricos ou de telecomunicações | C44: un | D44: 0 | E44: =OFFSET(INDEX(Composições!A:J,MATCH(Orçamentária!A44,Composições!A:A,0),8),2,0) -> 51.5755 | F44: 0 | G44: =IF(A44<>"",IF(AND(#REF!="Padrão",$H$4=#REF!),BDI!$B$17,IF(AND(#REF!="Padrão",$H$4=#REF!),BDI!$C$17,IF(AND(#REF!="Diferenciado",$H$4=#REF!),BDI!$G$17,IF(AND(#REF!="Diferenciado",$H$4=#REF!),BDI!$H$17,IF(#REF!="ZERO",0))))),"") -> 
A45: SF-00040 | B45: Remoção de revestimento acústico | C45: m2 | D45: 0 | E45: =OFFSET(INDEX(Composições!A:J,MATCH(Orçamentária!A45,Composições!A:A,0),8),2,0) -> 2.9108 | F45: 0 | G45: =IF(A45<>"",IF(AND(#REF!="Padrão",$H$4=#REF!),BDI!$B$17,IF(AND(#REF!="Padrão",$H$4=#REF!),BDI!$C$17,IF(AND(#REF!="Diferenciado",$H$4=#REF!),BDI!$G$17,IF(AND(#REF!="Diferenciado",$H$4=#REF!),BDI!$H$17,IF(#REF!="ZERO",0))))),"") -> 
A46: SF-00041 | B46: Remoção de rodapé/rodabanca de mármore ou granito | C46: m | D46: 0 | E46: =OFFSET(INDEX(Composições!A:J,MATCH(Orçamentária!A46,Composições!A:A,0),8),2,0) -> 1.2720196 | F46: 0 | G46: =IF(A46<>"",IF(AND(#REF!="Padrão",$H$4=#REF!),BDI!$B$17,IF(AND(#REF!="Padrão",$H$4=#REF!),BDI!$C$17,IF(AND(#REF!="Diferenciado",$H$4=#REF!),BDI!$G$17,IF(AND(#REF!="Diferenciado",$H$4=#REF!),BDI!$H$17,IF(#REF!="ZERO",0))))),"") -> 
A47: SF-00042 | B47: Remoção de rodapés de madeira | C47: m2 | D47: 0 | E47: =OFFSET(INDEX(Composições!A:J,MATCH(Orçamentária!A47,Composições!A:A,0),8),2,0) -> 5.19935 | F47: 0 | G47: =IF(A47<>"",IF(AND(#REF!="Padrão",$H$4=#REF!),BDI!$B$17,IF(AND(#REF!="Padrão",$H$4=#REF!),BDI!$C$17,IF(AND(#REF!="Diferenciado",$H$4=#REF!),BDI!$G$17,IF(AND(#REF!="Diferenciado",$H$4=#REF!),BDI!$H$17,IF(#REF!="ZERO",0))))),"") -> 
A48: SF-00043 | B48: Remoção de soleira de mármore ou granito | C48: m | D48: 0 | E48: =OFFSET(INDEX(Composições!A:J,MATCH(Orçamentária!A48,Composições!A:A,0),8),2,0) -> 8.0047 | F48: 0 | G48: =IF(A48<>"",IF(AND(#REF!="Padrão",$H$4=#REF!),BDI!$B$17,IF(AND(#REF!="Padrão",$H$4=#REF!),BDI!$C$17,IF(AND(#REF!="Diferenciado",$H$4=#REF!),BDI!$G$17,IF(AND(#REF!="Diferenciado",$H$4=#REF!),BDI!$H$17,IF(#REF!="ZERO",0))))),"") -> 
A49: SF-00044 | B49: Remoção de split/fancolete/ACJ (equipamento unitário) | C49: un | D49: 0 | E49: =OFFSET(INDEX(Composições!A:J,MATCH(Orçamentária!A49,Composições!A:A,0),8),2,0) -> 35.853 | F49: 0 | G49: =IF(A49<>"",IF(AND(#REF!="Padrão",$H$4=#REF!),BDI!$B$17,IF(AND(#REF!="Padrão",$H$4=#REF!),BDI!$C$17,IF(AND(#REF!="Diferenciado",$H$4=#REF!),BDI!$G$17,IF(AND(#REF!="Diferenciado",$H$4=#REF!),BDI!$H$17,IF(#REF!="ZERO",0))))),"") -> 
A50: SF-00045 | B50: Remoção de vidro comum / espelho | C50: m2 | D50: 0 | E50: =OFFSET(INDEX(Composições!A:J,MATCH(Orçamentária!A50,Composições!A:A,0),8),2,0) -> 11.9833 | F50: 0 | G50: =IF(A50<>"",IF(AND(#REF!="Padrão",$H$4=#REF!),BDI!$B$17,IF(AND(#REF!="Padrão",$H$4=#REF!),BDI!$C$17,IF(AND(#REF!="Diferenciado",$H$4=#REF!),BDI!$G$17,IF(AND(#REF!="Diferenciado",$H$4=#REF!),BDI!$H$17,IF(#REF!="ZERO",0))))),"") -> 
A51: SF-00046 | B51: Retirada de entulhos | C51: m3 | D51: 0 | E51: =OFFSET(INDEX(Composições!A:J,MATCH(Orçamentária!A51,Composições!A:A,0),8),2,0) -> 14.554 | F51: 0 | G51: =IF(A51<>"",IF(AND(#REF!="Padrão",$H$4=#REF!),BDI!$B$17,IF(AND(#REF!="Padrão",$H$4=#REF!),BDI!$C$17,IF(AND(#REF!="Diferenciado",$H$4=#REF!),BDI!$G$17,IF(AND(#REF!="Diferenciado",$H$4=#REF!),BDI!$H$17,IF(#REF!="ZERO",0))))),"") -> 
A52: SF-00047 | B52: Absorvedor de energia para linha de vida | C52: un | D52: 0 | G52: =IF(A52<>"",IF(AND(#REF!="Padrão",$H$4=#REF!),BDI!$B$17,IF(AND(#REF!="Padrão",$H$4=#REF!),BDI!$C$17,IF(AND(#REF!="Diferenciado",$H$4=#REF!),BDI!$G$17,IF(AND(#REF!="Diferenciado",$H$4=#REF!),BDI!$H$17,IF(#REF!="ZERO",0))))),"") -> 
A53: SF-00048 | B53: Andaime fachadeiro | C53: m2 x mês | D53: 809.75 | E53: =OFFSET(INDEX(Composições!A:J,MATCH(Orçamentária!A53,Composições!A:A,0),8),2,0) -> 3.7905 | F53: 3069.357375 | G53: =BDI!$C$17 -> 0.25 | H53: 4.74 | I53: 3838.22
A54: SF-00049 | B54: Andaime tubular (aluguel/mês) | C54: m x mês | D54: 0 | E54: =OFFSET(INDEX(Composições!A:J,MATCH(Orçamentária!A54,Composições!A:A,0),8),2,0) -> 11.4 | F54: 0 | G54: =IF(A54<>"",IF(AND(#REF!="Padrão",$H$4=#REF!),BDI!$B$17,IF(AND(#REF!="Padrão",$H$4=#REF!),BDI!$C$17,IF(AND(#REF!="Diferenciado",$H$4=#REF!),BDI!$G$17,IF(AND(#REF!="Diferenciado",$H$4=#REF!),BDI!$H$17,IF(#REF!="ZERO",0))))),"") -> 
A55: SF-00050 | B55: Cabo de aço com 8 mm de diâmetro galvanizado para linha de vida | C55: m | D55: 200 | E55: 21 | F55: 4200 | G55: =BDI!$C$17 -> 0.25 | H55: 26.25 | I55: 5250
A56: SF-00051 | B56: Corda de poliamida 12 mm tipo bombeiro, para trabalho em altura | C56: m | D56: 440 | E56: =OFFSET(INDEX(Composições!A:J,MATCH(Orçamentária!A56,Composições!A:A,0),8),2,0) -> 4.41978 | F56: 1944.7032 | G56: =BDI!$C$17 -> 0.25 | H56: 5.52 | I56: 2428.8
A57: SF-00052 | B57: Ensaio de ponto de ancoragem existente | C57: un | D57: 28 | E57: 264.64 | F57: 7409.92 | G57: =BDI!$H$17 -> 0.1671 | H57: 308.86 | I57: 8648.08
A58: SF-00053 | B58: Escadas de acesso para andaime tubular | C58: m x mês | D58: 0 | G58: =IF(A58<>"",IF(AND(#REF!="Padrão",$H$4=#REF!),BDI!$B$17,IF(AND(#REF!="Padrão",$H$4=#REF!),BDI!$C$17,IF(AND(#REF!="Diferenciado",$H$4=#REF!),BDI!$G$17,IF(AND(#REF!="Diferenciado",$H$4=#REF!),BDI!$H$17,IF(#REF!="ZERO",0))))),"") -> 
A59: SF-00054 | B59: Esticador de cabo de aço | C59: un | D59: 0 | G59: =IF(A59<>"",IF(AND(#REF!="Padrão",$H$4=#REF!),BDI!$B$17,IF(AND(#REF!="Padrão",$H$4=#REF!),BDI!$C$17,IF(AND(#REF!="Diferenciado",$H$4=#REF!),BDI!$G$17,IF(AND(#REF!="Diferenciado",$H$4=#REF!),BDI!$H$17,IF(#REF!="ZERO",0))))),"") -> 
A60: SF-00055 | B60: Guarda-corpo com rodapé para andaime tubular | C60: m x mês | D60: 0 | G60: =IF(A60<>"",IF(AND(#REF!="Padrão",$H$4=#REF!),BDI!$B$17,IF(AND(#REF!="Padrão",$H$4=#REF!),BDI!$C$17,IF(AND(#REF!="Diferenciado",$H$4=#REF!),BDI!$G$17,IF(AND(#REF!="Diferenciado",$H$4=#REF!),BDI!$H$17,IF(#REF!="ZERO",0))))),"") -> 
A61: SF-00056 | B61: Indicador de tensão | C61: un | D61: 0 | G61: =IF(A61<>"",IF(AND(#REF!="Padrão",$H$4=#REF!),BDI!$B$17,IF(AND(#REF!="Padrão",$H$4=#REF!),BDI!$C$17,IF(AND(#REF!="Diferenciado",$H$4=#REF!),BDI!$G$17,IF(AND(#REF!="Diferenciado",$H$4=#REF!),BDI!$H$17,IF(#REF!="ZERO",0))))),"") -> 
A62: SF-00057 | B62: Isolamento de obra com tela plástica com malha de 5mm e estrutura de madeira pontaleteada | C62: m2 | D62: 150 | E62: =OFFSET(INDEX(Composições!A:J,MATCH(Orçamentária!A62,Composições!A:A,0),8),2,0) -> 16.712875 | F62: 2506.93125 | G62: =BDI!$C$17 -> 0.25 | H62: 20.89 | I62: 3133.5
A63: SF-00058 | B63: Suporte intermediário curvo para linha de vida | C63: un | D63: 0 | G63: =IF(A63<>"",IF(AND(#REF!="Padrão",$H$4=#REF!),BDI!$B$17,IF(AND(#REF!="Padrão",$H$4=#REF!),BDI!$C$17,IF(AND(#REF!="Diferenciado",$H$4=#REF!),BDI!$G$17,IF(AND(#REF!="Diferenciado",$H$4=#REF!),BDI!$H$17,IF(#REF!="ZERO",0))))),"") -> 
A64: SF-00059 | B64: Kit de linha de vida para escada de marinheiro | C64: un | D64: 0 | G64: =IF(A64<>"",IF(AND(#REF!="Padrão",$H$4=#REF!),BDI!$B$17,IF(AND(#REF!="Padrão",$H$4=#REF!),BDI!$C$17,IF(AND(#REF!="Diferenciado",$H$4=#REF!),BDI!$G$17,IF(AND(#REF!="Diferenciado",$H$4=#REF!),BDI!$H$17,IF(#REF!="ZERO",0))))),"") -> 
A65: SF-00060 | B65: Kit para montagem de dois olhais | C65: un | D65: 6 | E65: 250.53 | F65: 1503.18 | G65: =BDI!$C$17 -> 0.25 | H65: 313.16 | I65: 1878.96
A66: SF-00061 | B66: Manilha com travamento por porca e cupilha | C66: un | D66: 0 | G66: =IF(A66<>"",IF(AND(#REF!="Padrão",$H$4=#REF!),BDI!$B$17,IF(AND(#REF!="Padrão",$H$4=#REF!),BDI!$C$17,IF(AND(#REF!="Diferenciado",$H$4=#REF!),BDI!$G$17,IF(AND(#REF!="Diferenciado",$H$4=#REF!),BDI!$H$17,IF(#REF!="ZERO",0))))),"") -> 
A67: SF-00062 | B67: Pilar de ancoragem para linha de vida | C67: un | D67: 0 | G67: =IF(A67<>"",IF(AND(#REF!="Padrão",$H$4=#REF!),BDI!$B$17,IF(AND(#REF!="Padrão",$H$4=#REF!),BDI!$C$17,IF(AND(#REF!="Diferenciado",$H$4=#REF!),BDI!$G$17,IF(AND(#REF!="Diferenciado",$H$4=#REF!),BDI!$H$17,IF(#REF!="ZERO",0))))),"") -> 
A68: SF-00063 | B68: Piso metálico para andaime tubular | C68: m2 x mês | D68: 0 | G68: =IF(A68<>"",IF(AND(#REF!="Padrão",$H$4=#REF!),BDI!$B$17,IF(AND(#REF!="Padrão",$H$4=#REF!),BDI!$C$17,IF(AND(#REF!="Diferenciado",$H$4=#REF!),BDI!$G$17,IF(AND(#REF!="Diferenciado",$H$4=#REF!),BDI!$H$17,IF(#REF!="ZERO",0))))),"") -> 
A69: SF-00064 | B69: Placa de ancoragem para extremidade | C69: un | D69: 0 | G69: =IF(A69<>"",IF(AND(#REF!="Padrão",$H$4=#REF!),BDI!$B$17,IF(AND(#REF!="Padrão",$H$4=#REF!),BDI!$C$17,IF(AND(#REF!="Diferenciado",$H$4=#REF!),BDI!$G$17,IF(AND(#REF!="Diferenciado",$H$4=#REF!),BDI!$H$17,IF(#REF!="ZERO",0))))),"") -> 
A70: SF-00065 | B70: Placa de ancoragem para montagem no pilar | C70: un | D70: 0 | G70: =IF(A70<>"",IF(AND(#REF!="Padrão",$H$4=#REF!),BDI!$B$17,IF(AND(#REF!="Padrão",$H$4=#REF!),BDI!$C$17,IF(AND(#REF!="Diferenciado",$H$4=#REF!),BDI!$G$17,IF(AND(#REF!="Diferenciado",$H$4=#REF!),BDI!$H$17,IF(#REF!="ZERO",0))))),"") -> 
A71: SF-00066 | B71: Ponto de ancoragem | C71: un | D71: 15 | E71: 378.79 | F71: =IF(ISNUMBER(E71),D71*E71,"") -> 5681.85 | G71: =BDI!$H$17 -> 0.1671 | H71: =IF(ISNUMBER(E71),ROUND(E71*(1+G71),2),"") -> 442.09 | I71: =IF(ISNUMBER(E71),ROUND(H71*D71,2),"") -> 6631.35
A72: SF-00067 | B72: Sapatas e rodízios para andaime tubular | C72: conj x mês | D72: 0 | G72: =IF(A72<>"",IF(AND(#REF!="Padrão",$H$4=#REF!),BDI!$B$17,IF(AND(#REF!="Padrão",$H$4=#REF!),BDI!$C$17,IF(AND(#REF!="Diferenciado",$H$4=#REF!),BDI!$G$17,IF(AND(#REF!="Diferenciado",$H$4=#REF!),BDI!$H$17,IF(#REF!="ZERO",0))))),"") -> 
A73: SF-00068 | B73: Sistema Guarda-corpo-Rodapé (GcR) metálico | C73: m x mês | D73: 140.66 | E73: 11 | F73: 1547.26 | G73: =BDI!$C$17 -> 0.25 | H73: 13.75 | I73: 1934.08
A74: SF-00069 | B74: Suporte intermediário para linha de vida | C74: un | D74: 0 | G74: =IF(A74<>"",IF(AND(#REF!="Padrão",$H$4=#REF!),BDI!$B$17,IF(AND(#REF!="Padrão",$H$4=#REF!),BDI!$C$17,IF(AND(#REF!="Diferenciado",$H$4=#REF!),BDI!$G$17,IF(AND(#REF!="Diferenciado",$H$4=#REF!),BDI!$H$17,IF(#REF!="ZERO",0))))),"") -> 
A75: SF-00070 | B75: Tapume | C75: m2 | D75: 0 | E75: =OFFSET(INDEX(Composições!A:J,MATCH(Orçamentária!A75,Composições!A:A,0),8),2,0) -> 52.048999 | F75: 0 | G75: =IF(A75<>"",IF(AND(#REF!="Padrão",$H$4=#REF!),BDI!$B$17,IF(AND(#REF!="Padrão",$H$4=#REF!),BDI!$C$17,IF(AND(#REF!="Diferenciado",$H$4=#REF!),BDI!$G$17,IF(AND(#REF!="Diferenciado",$H$4=#REF!),BDI!$H$17,IF(#REF!="ZERO",0))))),"") -> 
A76: SF-00071 | B76: Trole para linha de vida horizontal | C76: un | D76: 0 | G76: =IF(A76<>"",IF(AND(#REF!="Padrão",$H$4=#REF!),BDI!$B$17,IF(AND(#REF!="Padrão",$H$4=#REF!),BDI!$C$17,IF(AND(#REF!="Diferenciado",$H$4=#REF!),BDI!$G$17,IF(AND(#REF!="Diferenciado",$H$4=#REF!),BDI!$H$17,IF(#REF!="ZERO",0))))),"") -> 
A77: SF-00072 | B77: Trole para travaqueda retrátil | C77: un | D77: 0 | G77: =IF(A77<>"",IF(AND(#REF!="Padrão",$H$4=#REF!),BDI!$B$17,IF(AND(#REF!="Padrão",$H$4=#REF!),BDI!$C$17,IF(AND(#REF!="Diferenciado",$H$4=#REF!),BDI!$G$17,IF(AND(#REF!="Diferenciado",$H$4=#REF!),BDI!$H$17,IF(#REF!="ZERO",0))))),"") -> 
A78: SF-00073 | B78: Limpeza final de obra | C78: m2 | D78: 0 | E78: =OFFSET(INDEX(Composições!A:J,MATCH(Orçamentária!A78,Composições!A:A,0),8),2,0) -> 1.775588 | F78: 0 | G78: =IF(A78<>"",IF(AND(#REF!="Padrão",$H$4=#REF!),BDI!$B$17,IF(AND(#REF!="Padrão",$H$4=#REF!),BDI!$C$17,IF(AND(#REF!="Diferenciado",$H$4=#REF!),BDI!$G$17,IF(AND(#REF!="Diferenciado",$H$4=#REF!),BDI!$H$17,IF(#REF!="ZERO",0))))),"") -> 
A79: SF-00074 | B79: Abertura/fechamento rasgo em alvenaria | C79: m | D79: 0 | E79: =OFFSET(INDEX(Composições!A:J,MATCH(Orçamentária!A79,Composições!A:A,0),8),2,0) -> 14.4834434 | F79: 0 | G79: =IF(A79<>"",IF(AND(#REF!="Padrão",$H$4=#REF!),BDI!$B$17,IF(AND(#REF!="Padrão",$H$4=#REF!),BDI!$C$17,IF(AND(#REF!="Diferenciado",$H$4=#REF!),BDI!$G$17,IF(AND(#REF!="Diferenciado",$H$4=#REF!),BDI!$H$17,IF(#REF!="ZERO",0))))),"") -> 
A80: SF-00075 | B80: Furo em concreto de até 75mm de diâmetro | C80: un | D80: 0 | E80: =OFFSET(INDEX(Composições!A:J,MATCH(Orçamentária!A80,Composições!A:A,0),8),2,0) -> 72.377194 | F80: 0 | G80: =IF(A80<>"",IF(AND(#REF!="Padrão",$H$4=#REF!),BDI!$B$17,IF(AND(#REF!="Padrão",$H$4=#REF!),BDI!$C$17,IF(AND(#REF!="Diferenciado",$H$4=#REF!),BDI!$G$17,IF(AND(#REF!="Diferenciado",$H$4=#REF!),BDI!$H$17,IF(#REF!="ZERO",0))))),"") -> 
A81: SF-00076 | B81: Furo em concreto para diâmetros maiores que 75mm | C81: un | D81: 0 | E81: =OFFSET(INDEX(Composições!A:J,MATCH(Orçamentária!A81,Composições!A:A,0),8),2,0) -> 92.441346 | F81: 0 | G81: =IF(A81<>"",IF(AND(#REF!="Padrão",$H$4=#REF!),BDI!$B$17,IF(AND(#REF!="Padrão",$H$4=#REF!),BDI!$C$17,IF(AND(#REF!="Diferenciado",$H$4=#REF!),BDI!$G$17,IF(AND(#REF!="Diferenciado",$H$4=#REF!),BDI!$H$17,IF(#REF!="ZERO",0))))),"") -> 
A82: SF-00077 | B82: Concreto virado em betoneira, fck = 15 MPa | C82: m3 | D82: 0 | E82: =OFFSET(INDEX(Composições!A:J,MATCH(Orçamentária!A82,Composições!A:A,0),8),2,0) -> 499.3989206 | F82: 0 | G82: =IF(A82<>"",IF(AND(#REF!="Padrão",$H$4=#REF!),BDI!$B$17,IF(AND(#REF!="Padrão",$H$4=#REF!),BDI!$C$17,IF(AND(#REF!="Diferenciado",$H$4=#REF!),BDI!$G$17,IF(AND(#REF!="Diferenciado",$H$4=#REF!),BDI!$H$17,IF(#REF!="ZERO",0))))),"") -> 
A83: SF-00078 | B83: Concreto virado em betoneira, fck = 25MPa | C83: m3 | D83: 0 | E83: =OFFSET(INDEX(Composições!A:J,MATCH(Orçamentária!A83,Composições!A:A,0),8),2,0) -> 529.9689393 | F83: 0 | G83: =IF(A83<>"",IF(AND(#REF!="Padrão",$H$4=#REF!),BDI!$B$17,IF(AND(#REF!="Padrão",$H$4=#REF!),BDI!$C$17,IF(AND(#REF!="Diferenciado",$H$4=#REF!),BDI!$G$17,IF(AND(#REF!="Diferenciado",$H$4=#REF!),BDI!$H$17,IF(#REF!="ZERO",0))))),"") -> 
A84: SF-00079 | B84: Escoramento metálico | C84: m2 x mês | D84: 0 | E84: =OFFSET(INDEX(Composições!A:J,MATCH(Orçamentária!A84,Composições!A:A,0),8),2,0) -> 11.770975 | F84: 0 | G84: =IF(A84<>"",IF(AND(#REF!="Padrão",$H$4=#REF!),BDI!$B$17,IF(AND(#REF!="Padrão",$H$4=#REF!),BDI!$C$17,IF(AND(#REF!="Diferenciado",$H$4=#REF!),BDI!$G$17,IF(AND(#REF!="Diferenciado",$H$4=#REF!),BDI!$H$17,IF(#REF!="ZERO",0))))),"") -> 
A85: SF-00080 | B85: Estrutura metálica em aço | C85: kg | D85: 0 | E85: =OFFSET(INDEX(Composições!A:J,MATCH(Orçamentária!A85,Composições!A:A,0),8),2,0) -> 10.0523775 | F85: 0 | G85: =IF(A85<>"",IF(AND(#REF!="Padrão",$H$4=#REF!),BDI!$B$17,IF(AND(#REF!="Padrão",$H$4=#REF!),BDI!$C$17,IF(AND(#REF!="Diferenciado",$H$4=#REF!),BDI!$G$17,IF(AND(#REF!="Diferenciado",$H$4=#REF!),BDI!$H$17,IF(#REF!="ZERO",0))))),"") -> 
A86: SF-00081 | B86: Forma para estruturas de concreto | C86: m2 | D86: 0 | E86: =OFFSET(INDEX(Composições!A:J,MATCH(Orçamentária!A86,Composições!A:A,0),8),2,0) -> 106.048459 | F86: 0 | G86: =IF(A86<>"",IF(AND(#REF!="Padrão",$H$4=#REF!),BDI!$B$17,IF(AND(#REF!="Padrão",$H$4=#REF!),BDI!$C$17,IF(AND(#REF!="Diferenciado",$H$4=#REF!),BDI!$G$17,IF(AND(#REF!="Diferenciado",$H$4=#REF!),BDI!$H$17,IF(#REF!="ZERO",0))))),"") -> 
A87: SF-00082 | B87: Verga/contraverga/cinta em bloco de concreto canaleta 11,5 x 19 x 39 cm | C87: m | D87: 0 | E87: =OFFSET(INDEX(Composições!A:J,MATCH(Orçamentária!A87,Composições!A:A,0),8),2,0) -> 17.72272863 | F87: 0 | G87: =IF(A87<>"",IF(AND(#REF!="Padrão",$H$4=#REF!),BDI!$B$17,IF(AND(#REF!="Padrão",$H$4=#REF!),BDI!$C$17,IF(AND(#REF!="Diferenciado",$H$4=#REF!),BDI!$G$17,IF(AND(#REF!="Diferenciado",$H$4=#REF!),BDI!$H$17,IF(#REF!="ZERO",0))))),"") -> 
A88: SF-00083 | B88: Impermeabilização de superfície com revestimento bicomponente semi flexível | C88: m2 | D88: 0 | E88: =OFFSET(INDEX(Composições!A:J,MATCH(Orçamentária!A88,Composições!A:A,0),8),2,0) -> 19.664734 | F88: 0 | G88: =IF(A88<>"",IF(AND(#REF!="Padrão",$H$4=#REF!),BDI!$B$17,IF(AND(#REF!="Padrão",$H$4=#REF!),BDI!$C$17,IF(AND(#REF!="Diferenciado",$H$4=#REF!),BDI!$G$17,IF(AND(#REF!="Diferenciado",$H$4=#REF!),BDI!$H$17,IF(#REF!="ZERO",0))))),"") -> 
A89: SF-00084 | B89: Alvenaria de vedação | C89: m2 | D89: 0 | E89: =OFFSET(INDEX(Composições!A:J,MATCH(Orçamentária!A89,Composições!A:A,0),8),2,0) -> 61.08080141 | F89: 0 | G89: =IF(A89<>"",IF(AND(#REF!="Padrão",$H$4=#REF!),BDI!$B$17,IF(AND(#REF!="Padrão",$H$4=#REF!),BDI!$C$17,IF(AND(#REF!="Diferenciado",$H$4=#REF!),BDI!$G$17,IF(AND(#REF!="Diferenciado",$H$4=#REF!),BDI!$H$17,IF(#REF!="ZERO",0))))),"") -> 
A90: SF-00085 | B90: Fechamento ou shaft em gesso acartonado tipo drywall | C90: m2 | D90: 0 | E90: =OFFSET(INDEX(Composições!A:J,MATCH(Orçamentária!A90,Composições!A:A,0),8),2,0) -> 47.0340744 | F90: 0 | G90: =IF(A90<>"",IF(AND(#REF!="Padrão",$H$4=#REF!),BDI!$B$17,IF(AND(#REF!="Padrão",$H$4=#REF!),BDI!$C$17,IF(AND(#REF!="Diferenciado",$H$4=#REF!),BDI!$G$17,IF(AND(#REF!="Diferenciado",$H$4=#REF!),BDI!$H$17,IF(#REF!="ZERO",0))))),"") -> 
A91: SF-00086 | B91: Fixação (encunhamento) de Alvenaria de Vedação | C91: m | D91: 0 | E91: =OFFSET(INDEX(Composições!A:J,MATCH(Orçamentária!A91,Composições!A:A,0),8),2,0) -> 20.6297548 | F91: 0 | G91: =IF(A91<>"",IF(AND(#REF!="Padrão",$H$4=#REF!),BDI!$B$17,IF(AND(#REF!="Padrão",$H$4=#REF!),BDI!$C$17,IF(AND(#REF!="Diferenciado",$H$4=#REF!),BDI!$G$17,IF(AND(#REF!="Diferenciado",$H$4=#REF!),BDI!$H$17,IF(#REF!="ZERO",0))))),"") -> 
A92: SF-00087 | B92: Parede em gesso acartonado (drywall) | C92: m2 | D92: 0 | E92: =OFFSET(INDEX(Composições!A:J,MATCH(Orçamentária!A92,Composições!A:A,0),8),2,0) -> 74.76896055 | F92: 0 | G92: =IF(A92<>"",IF(AND(#REF!="Padrão",$H$4=#REF!),BDI!$B$17,IF(AND(#REF!="Padrão",$H$4=#REF!),BDI!$C$17,IF(AND(#REF!="Diferenciado",$H$4=#REF!),BDI!$G$17,IF(AND(#REF!="Diferenciado",$H$4=#REF!),BDI!$H$17,IF(#REF!="ZERO",0))))),"") -> 
A93: SF-00088 | B93: Reparos superficiais em painéis de gesso acartonado | C93: m2 | D93: 0 | E93: =OFFSET(INDEX(Composições!A:J,MATCH(Orçamentária!A93,Composições!A:A,0),8),2,0) -> 5.0946334 | F93: 0 | G93: =IF(A93<>"",IF(AND(#REF!="Padrão",$H$4=#REF!),BDI!$B$17,IF(AND(#REF!="Padrão",$H$4=#REF!),BDI!$C$17,IF(AND(#REF!="Diferenciado",$H$4=#REF!),BDI!$G$17,IF(AND(#REF!="Diferenciado",$H$4=#REF!),BDI!$H$17,IF(#REF!="ZERO",0))))),"") -> 
A94: SF-00089 | B94: Sóculo h=10 cm | C94: m2 | D94: 0 | E94: =OFFSET(INDEX(Composições!A:J,MATCH(Orçamentária!A94,Composições!A:A,0),8),2,0) -> 66.49361081 | F94: 0 | G94: =IF(A94<>"",IF(AND(#REF!="Padrão",$H$4=#REF!),BDI!$B$17,IF(AND(#REF!="Padrão",$H$4=#REF!),BDI!$C$17,IF(AND(#REF!="Diferenciado",$H$4=#REF!),BDI!$G$17,IF(AND(#REF!="Diferenciado",$H$4=#REF!),BDI!$H$17,IF(#REF!="ZERO",0))))),"") -> 
A95: SF-00090 | B95: Chapisco colante industrializado em vigas e pilares | C95: m2 | D95: 0 | E95: =OFFSET(INDEX(Composições!A:J,MATCH(Orçamentária!A95,Composições!A:A,0),8),2,0) -> 8.430643216 | F95: 0 | G95: =IF(A95<>"",IF(AND(#REF!="Padrão",$H$4=#REF!),BDI!$B$17,IF(AND(#REF!="Padrão",$H$4=#REF!),BDI!$C$17,IF(AND(#REF!="Diferenciado",$H$4=#REF!),BDI!$G$17,IF(AND(#REF!="Diferenciado",$H$4=#REF!),BDI!$H$17,IF(#REF!="ZERO",0))))),"") -> 
A96: SF-00091 | B96: Chapisco com argamassa traço 1:3 | C96: m2 | D96: 0 | E96: =OFFSET(INDEX(Composições!A:J,MATCH(Orçamentária!A96,Composições!A:A,0),8),2,0) -> 3.536938925 | F96: 0 | G96: =IF(A96<>"",IF(AND(#REF!="Padrão",$H$4=#REF!),BDI!$B$17,IF(AND(#REF!="Padrão",$H$4=#REF!),BDI!$C$17,IF(AND(#REF!="Diferenciado",$H$4=#REF!),BDI!$G$17,IF(AND(#REF!="Diferenciado",$H$4=#REF!),BDI!$H$17,IF(#REF!="ZERO",0))))),"") -> 
A97: SF-00092 | B97: Gesso cola | C97: m2 | D97: 0 | E97: =OFFSET(INDEX(Composições!A:J,MATCH(Orçamentária!A97,Composições!A:A,0),8),2,0) -> 8.91632 | F97: 0 | G97: =IF(A97<>"",IF(AND(#REF!="Padrão",$H$4=#REF!),BDI!$B$17,IF(AND(#REF!="Padrão",$H$4=#REF!),BDI!$C$17,IF(AND(#REF!="Diferenciado",$H$4=#REF!),BDI!$G$17,IF(AND(#REF!="Diferenciado",$H$4=#REF!),BDI!$H$17,IF(#REF!="ZERO",0))))),"") -> 
A98: SF-00093 | B98: Reboco com argamassa industrializada e=2,0 cm | C98: m2 | D98: 165.34 | E98: =OFFSET(INDEX(Composições!A:J,MATCH(Orçamentária!A98,Composições!A:A,0),8),2,0) -> 31.2161792 | F98: 5161.283069 | G98: =BDI!$C$17 -> 0.25 | H98: 39.02 | I98: 6451.57
A99: SF-00094 | B99: Regularização com argamassa industrializada e=0,5 cm | C99: m2 | D99: 0 | E99: =OFFSET(INDEX(Composições!A:J,MATCH(Orçamentária!A99,Composições!A:A,0),8),2,0) -> 10.6657127 | F99: 0 | G99: =IF(A99<>"",IF(AND(#REF!="Padrão",$H$4=#REF!),BDI!$B$17,IF(AND(#REF!="Padrão",$H$4=#REF!),BDI!$C$17,IF(AND(#REF!="Diferenciado",$H$4=#REF!),BDI!$G$17,IF(AND(#REF!="Diferenciado",$H$4=#REF!),BDI!$H$17,IF(#REF!="ZERO",0))))),"") -> 
A100: SF-00095 | B100: Tratamento de trincas superficiais | C100: m | D100: 0 | E100: =OFFSET(INDEX(Composições!A:J,MATCH(Orçamentária!A100,Composições!A:A,0),8),2,0) -> 17.8733494 | F100: 0 | G100: =IF(A100<>"",IF(AND(#REF!="Padrão",$H$4=#REF!),BDI!$B$17,IF(AND(#REF!="Padrão",$H$4=#REF!),BDI!$C$17,IF(AND(#REF!="Diferenciado",$H$4=#REF!),BDI!$G$17,IF(AND(#REF!="Diferenciado",$H$4=#REF!),BDI!$H$17,IF(#REF!="ZERO",0))))),"") -> 
A101: SF-00096 | B101: Aplicação de fundo selador base água | C101: m2 | D101: 0 | E101: =OFFSET(INDEX(Composições!A:J,MATCH(Orçamentária!A101,Composições!A:A,0),8),2,0) -> 2.568078 | F101: 0 | G101: =IF(A101<>"",IF(AND(#REF!="Padrão",$H$4=#REF!),BDI!$B$17,IF(AND(#REF!="Padrão",$H$4=#REF!),BDI!$C$17,IF(AND(#REF!="Diferenciado",$H$4=#REF!),BDI!$G$17,IF(AND(#REF!="Diferenciado",$H$4=#REF!),BDI!$H$17,IF(#REF!="ZERO",0))))),"") -> 
A102: SF-00097 | B102: Fundo anticorrosivo e de aderência (base água) | C102: m2 | D102: 0 | E102: =OFFSET(INDEX(Composições!A:J,MATCH(Orçamentária!A102,Composições!A:A,0),8),2,0) -> 8.819496 | F102: 0 | G102: =IF(A102<>"",IF(AND(#REF!="Padrão",$H$4=#REF!),BDI!$B$17,IF(AND(#REF!="Padrão",$H$4=#REF!),BDI!$C$17,IF(AND(#REF!="Diferenciado",$H$4=#REF!),BDI!$G$17,IF(AND(#REF!="Diferenciado",$H$4=#REF!),BDI!$H$17,IF(#REF!="ZERO",0))))),"") -> 
A103: SF-00098 | B103: Massa acrílica | C103: m2 | D103: 0 | E103: =OFFSET(INDEX(Composições!A:J,MATCH(Orçamentária!A103,Composições!A:A,0),8),2,0) -> 15.4071 | F103: 0 | G103: =IF(A103<>"",IF(AND(#REF!="Padrão",$H$4=#REF!),BDI!$B$17,IF(AND(#REF!="Padrão",$H$4=#REF!),BDI!$C$17,IF(AND(#REF!="Diferenciado",$H$4=#REF!),BDI!$G$17,IF(AND(#REF!="Diferenciado",$H$4=#REF!),BDI!$H$17,IF(#REF!="ZERO",0))))),"") -> 
A104: SF-00099 | B104: Massa corrida | C104: m2 | D104: 0 | E104: =OFFSET(INDEX(Composições!A:J,MATCH(Orçamentária!A104,Composições!A:A,0),8),2,0) -> 11.768068 | F104: 0 | G104: =IF(A104<>"",IF(AND(#REF!="Padrão",$H$4=#REF!),BDI!$B$17,IF(AND(#REF!="Padrão",$H$4=#REF!),BDI!$C$17,IF(AND(#REF!="Diferenciado",$H$4=#REF!),BDI!$G$17,IF(AND(#REF!="Diferenciado",$H$4=#REF!),BDI!$H$17,IF(#REF!="ZERO",0))))),"") -> 
A105: SF-00100 | B105: Pintura com tinta látex acrílica Premium (paredes) | C105: m2 | D105: 0 | E105: =OFFSET(INDEX(Composições!A:J,MATCH(Orçamentária!A105,Composições!A:A,0),8),2,0) -> 11.387346 | F105: 0 | G105: =IF(A105<>"",IF(AND(#REF!="Padrão",$H$4=#REF!),BDI!$B$17,IF(AND(#REF!="Padrão",$H$4=#REF!),BDI!$C$17,IF(AND(#REF!="Diferenciado",$H$4=#REF!),BDI!$G$17,IF(AND(#REF!="Diferenciado",$H$4=#REF!),BDI!$H$17,IF(#REF!="ZERO",0))))),"") -> 
A106: SF-00101 | B106: Pintura em verniz sintético | C106: m2 | D106: 0 | E106: =OFFSET(INDEX(Composições!A:J,MATCH(Orçamentária!A106,Composições!A:A,0),8),2,0) -> 13.2202 | F106: 0 | G106: =IF(A106<>"",IF(AND(#REF!="Padrão",$H$4=#REF!),BDI!$B$17,IF(AND(#REF!="Padrão",$H$4=#REF!),BDI!$C$17,IF(AND(#REF!="Diferenciado",$H$4=#REF!),BDI!$G$17,IF(AND(#REF!="Diferenciado",$H$4=#REF!),BDI!$H$17,IF(#REF!="ZERO",0))))),"") -> 
A107: SF-00102 | B107: Pintura esmalte acetinado (metais e madeiras) | C107: m2 | D107: 3.24 | E107: =OFFSET(INDEX(Composições!A:J,MATCH(Orçamentária!A107,Composições!A:A,0),8),2,0) -> 14.93544 | F107: 48.3908256 | G107: =BDI!$C$17 -> 0.25 | H107: 18.67 | I107: 60.49
A108: SF-00103 | B108: Pintura tinta látex acrílica standard (tetos) | C108: m2 | D108: 0 | E108: =OFFSET(INDEX(Composições!A:J,MATCH(Orçamentária!A108,Composições!A:A,0),8),2,0) -> 12.848066 | F108: 0 | G108: =IF(A108<>"",IF(AND(#REF!="Padrão",$H$4=#REF!),BDI!$B$17,IF(AND(#REF!="Padrão",$H$4=#REF!),BDI!$C$17,IF(AND(#REF!="Diferenciado",$H$4=#REF!),BDI!$G$17,IF(AND(#REF!="Diferenciado",$H$4=#REF!),BDI!$H$17,IF(#REF!="ZERO",0))))),"") -> 
A109: SF-00104 | B109: Cerâmica para revestimento de superfícies internas ou externas – Linha Administrativa | C109: m2 | D109: 0 | E109: =OFFSET(INDEX(Composições!A:J,MATCH(Orçamentária!A109,Composições!A:A,0),8),2,0) -> 61.02971 | F109: 0 | G109: =IF(A109<>"",IF(AND(#REF!="Padrão",$H$4=#REF!),BDI!$B$17,IF(AND(#REF!="Padrão",$H$4=#REF!),BDI!$C$17,IF(AND(#REF!="Diferenciado",$H$4=#REF!),BDI!$G$17,IF(AND(#REF!="Diferenciado",$H$4=#REF!),BDI!$H$17,IF(#REF!="ZERO",0))))),"") -> 
A110: SF-00105 | B110: Contrapiso em argamassa | C110: m2 | D110: 0 | E110: =OFFSET(INDEX(Composições!A:J,MATCH(Orçamentária!A110,Composições!A:A,0),8),2,0) -> 43.26176947 | F110: 0 | G110: =IF(A110<>"",IF(AND(#REF!="Padrão",$H$4=#REF!),BDI!$B$17,IF(AND(#REF!="Padrão",$H$4=#REF!),BDI!$C$17,IF(AND(#REF!="Diferenciado",$H$4=#REF!),BDI!$G$17,IF(AND(#REF!="Diferenciado",$H$4=#REF!),BDI!$H$17,IF(#REF!="ZERO",0))))),"") -> 
A111: SF-00106 | B111: Contrapiso em argamassa (e=2cm) ou Regularização de contrapiso existente | C111: m2 | D111: 0 | E111: =OFFSET(INDEX(Composições!A:J,MATCH(Orçamentária!A111,Composições!A:A,0),8),2,0) -> 29.57847846 | F111: 0 | G111: =IF(A111<>"",IF(AND(#REF!="Padrão",$H$4=#REF!),BDI!$B$17,IF(AND(#REF!="Padrão",$H$4=#REF!),BDI!$C$17,IF(AND(#REF!="Diferenciado",$H$4=#REF!),BDI!$G$17,IF(AND(#REF!="Diferenciado",$H$4=#REF!),BDI!$H$17,IF(#REF!="ZERO",0))))),"") -> 
A112: SF-00107 | B112: Granito cinza andorinha para piso | C112: m2 | D112: 0 | E112: =OFFSET(INDEX(Composições!A:J,MATCH(Orçamentária!A112,Composições!A:A,0),8),2,0) -> 39.19035 | F112: 0 | G112: =IF(A112<>"",IF(AND(#REF!="Padrão",$H$4=#REF!),BDI!$B$17,IF(AND(#REF!="Padrão",$H$4=#REF!),BDI!$C$17,IF(AND(#REF!="Diferenciado",$H$4=#REF!),BDI!$G$17,IF(AND(#REF!="Diferenciado",$H$4=#REF!),BDI!$H$17,IF(#REF!="ZERO",0))))),"") -> 
A113: SF-00108 | B113: Granito Cinza Andorinha para rodapé | C113: m2 | D113: 0 | E113: =OFFSET(INDEX(Composições!A:J,MATCH(Orçamentária!A113,Composições!A:A,0),8),2,0) -> 84.333951 | F113: 0 | G113: =IF(A113<>"",IF(AND(#REF!="Padrão",$H$4=#REF!),BDI!$B$17,IF(AND(#REF!="Padrão",$H$4=#REF!),BDI!$C$17,IF(AND(#REF!="Diferenciado",$H$4=#REF!),BDI!$G$17,IF(AND(#REF!="Diferenciado",$H$4=#REF!),BDI!$H$17,IF(#REF!="ZERO",0))))),"") -> 
A114: SF-00109 | B114: Granito Cinza Andorinha para soleira e peitoril | C114: m2 | D114: 0 | E114: =OFFSET(INDEX(Composições!A:J,MATCH(Orçamentária!A114,Composições!A:A,0),8),2,0) -> 96.82511435 | F114: 0 | G114: =IF(A114<>"",IF(AND(#REF!="Padrão",$H$4=#REF!),BDI!$B$17,IF(AND(#REF!="Padrão",$H$4=#REF!),BDI!$C$17,IF(AND(#REF!="Diferenciado",$H$4=#REF!),BDI!$G$17,IF(AND(#REF!="Diferenciado",$H$4=#REF!),BDI!$H$17,IF(#REF!="ZERO",0))))),"") -> 
A115: SF-00110 | B115: Granito Preto São Gabriel para piso | C115: m2 | D115: 0 | E115: =OFFSET(INDEX(Composições!A:J,MATCH(Orçamentária!A115,Composições!A:A,0),8),2,0) -> 39.19035 | F115: 0 | G115: =IF(A115<>"",IF(AND(#REF!="Padrão",$H$4=#REF!),BDI!$B$17,IF(AND(#REF!="Padrão",$H$4=#REF!),BDI!$C$17,IF(AND(#REF!="Diferenciado",$H$4=#REF!),BDI!$G$17,IF(AND(#REF!="Diferenciado",$H$4=#REF!),BDI!$H$17,IF(#REF!="ZERO",0))))),"") -> 
A116: SF-00111 | B116: Granito Preto São Gabriel para rodapé | C116: m2 | D116: 0 | E116: =OFFSET(INDEX(Composições!A:J,MATCH(Orçamentária!A116,Composições!A:A,0),8),2,0) -> 84.333951 | F116: 0 | G116: =IF(A116<>"",IF(AND(#REF!="Padrão",$H$4=#REF!),BDI!$B$17,IF(AND(#REF!="Padrão",$H$4=#REF!),BDI!$C$17,IF(AND(#REF!="Diferenciado",$H$4=#REF!),BDI!$G$17,IF(AND(#REF!="Diferenciado",$H$4=#REF!),BDI!$H$17,IF(#REF!="ZERO",0))))),"") -> 
A117: SF-00112 | B117: Granito Preto São Gabriel para soleira e peitoril | C117: m2 | D117: 0 | E117: =OFFSET(INDEX(Composições!A:J,MATCH(Orçamentária!A117,Composições!A:A,0),8),2,0) -> 96.82511435 | F117: 0 | G117: =IF(A117<>"",IF(AND(#REF!="Padrão",$H$4=#REF!),BDI!$B$17,IF(AND(#REF!="Padrão",$H$4=#REF!),BDI!$C$17,IF(AND(#REF!="Diferenciado",$H$4=#REF!),BDI!$G$17,IF(AND(#REF!="Diferenciado",$H$4=#REF!),BDI!$H$17,IF(#REF!="ZERO",0))))),"") -> 
A118: SF-00113 | B118: Instalação de rodapé de madeira reaproveitado | C118: m | D118: 0 | E118: =OFFSET(INDEX(Composições!A:J,MATCH(Orçamentária!A118,Composições!A:A,0),8),2,0) -> 11.0392736 | F118: 0 | G118: =IF(A118<>"",IF(AND(#REF!="Padrão",$H$4=#REF!),BDI!$B$17,IF(AND(#REF!="Padrão",$H$4=#REF!),BDI!$C$17,IF(AND(#REF!="Diferenciado",$H$4=#REF!),BDI!$G$17,IF(AND(#REF!="Diferenciado",$H$4=#REF!),BDI!$H$17,IF(#REF!="ZERO",0))))),"") -> 
A119: SF-00114 | B119: Mármore Bege Bahia para piso e parede | C119: m2 | D119: 0 | E119: =OFFSET(INDEX(Composições!A:J,MATCH(Orçamentária!A119,Composições!A:A,0),8),2,0) -> 39.19035 | F119: 0 | G119: =IF(A119<>"",IF(AND(#REF!="Padrão",$H$4=#REF!),BDI!$B$17,IF(AND(#REF!="Padrão",$H$4=#REF!),BDI!$C$17,IF(AND(#REF!="Diferenciado",$H$4=#REF!),BDI!$G$17,IF(AND(#REF!="Diferenciado",$H$4=#REF!),BDI!$H$17,IF(#REF!="ZERO",0))))),"") -> 
A120: SF-00115 | B120: Mármore Branco Especial para piso e parede | C120: m2 | D120: 0 | E120: =OFFSET(INDEX(Composições!A:J,MATCH(Orçamentária!A120,Composições!A:A,0),8),2,0) -> 39.19035 | F120: 0 | G120: =IF(A120<>"",IF(AND(#REF!="Padrão",$H$4=#REF!),BDI!$B$17,IF(AND(#REF!="Padrão",$H$4=#REF!),BDI!$C$17,IF(AND(#REF!="Diferenciado",$H$4=#REF!),BDI!$G$17,IF(AND(#REF!="Diferenciado",$H$4=#REF!),BDI!$H$17,IF(#REF!="ZERO",0))))),"") -> 
A121: SF-00116 | B121: Rodapé de madeira | C121: m | D121: 0 | E121: =OFFSET(INDEX(Composições!A:J,MATCH(Orçamentária!A121,Composições!A:A,0),8),2,0) -> 20.9995961 | F121: 0 | G121: =IF(A121<>"",IF(AND(#REF!="Padrão",$H$4=#REF!),BDI!$B$17,IF(AND(#REF!="Padrão",$H$4=#REF!),BDI!$C$17,IF(AND(#REF!="Diferenciado",$H$4=#REF!),BDI!$G$17,IF(AND(#REF!="Diferenciado",$H$4=#REF!),BDI!$H$17,IF(#REF!="ZERO",0))))),"") -> 
A122: SF-00117 | B122: Acabamento abaulado em placas de granito ou mármore reaproveitadas | C122: m | D122: 0 | E122: =OFFSET(INDEX(Composições!A:J,MATCH(Orçamentária!A122,Composições!A:A,0),8),2,0) -> 32.661 | F122: 0 | G122: =IF(A122<>"",IF(AND(#REF!="Padrão",$H$4=#REF!),BDI!$B$17,IF(AND(#REF!="Padrão",$H$4=#REF!),BDI!$C$17,IF(AND(#REF!="Diferenciado",$H$4=#REF!),BDI!$G$17,IF(AND(#REF!="Diferenciado",$H$4=#REF!),BDI!$H$17,IF(#REF!="ZERO",0))))),"") -> 
A123: SF-00118 | B123: Acabamento em meia esquadria em placas de granito ou mármore reaproveitadas | C123: m | D123: 0 | E123: =OFFSET(INDEX(Composições!A:J,MATCH(Orçamentária!A123,Composições!A:A,0),8),2,0) -> 28.578375 | F123: 0 | G123: =IF(A123<>"",IF(AND(#REF!="Padrão",$H$4=#REF!),BDI!$B$17,IF(AND(#REF!="Padrão",$H$4=#REF!),BDI!$C$17,IF(AND(#REF!="Diferenciado",$H$4=#REF!),BDI!$G$17,IF(AND(#REF!="Diferenciado",$H$4=#REF!),BDI!$H$17,IF(#REF!="ZERO",0))))),"") -> 
A124: SF-00119 | B124: Acabamento reto em placas de granito ou mármore reaproveitadas | C124: m | D124: 0 | E124: =OFFSET(INDEX(Composições!A:J,MATCH(Orçamentária!A124,Composições!A:A,0),8),2,0) -> 16.3305 | F124: 0 | G124: =IF(A124<>"",IF(AND(#REF!="Padrão",$H$4=#REF!),BDI!$B$17,IF(AND(#REF!="Padrão",$H$4=#REF!),BDI!$C$17,IF(AND(#REF!="Diferenciado",$H$4=#REF!),BDI!$G$17,IF(AND(#REF!="Diferenciado",$H$4=#REF!),BDI!$H$17,IF(#REF!="ZERO",0))))),"") -> 
A125: SF-00120 | B125: Corte de peça de granito ou mármore reaproveitada | C125: m | D125: 0 | E125: =OFFSET(INDEX(Composições!A:J,MATCH(Orçamentária!A125,Composições!A:A,0),8),2,0) -> 20.413125 | F125: 0 | G125: =IF(A125<>"",IF(AND(#REF!="Padrão",$H$4=#REF!),BDI!$B$17,IF(AND(#REF!="Padrão",$H$4=#REF!),BDI!$C$17,IF(AND(#REF!="Diferenciado",$H$4=#REF!),BDI!$G$17,IF(AND(#REF!="Diferenciado",$H$4=#REF!),BDI!$H$17,IF(#REF!="ZERO",0))))),"") -> 
A126: SF-00121 | B126: Corte em placas de granito ou mármore reaproveitadas, para instalação de cubas | C126: un | D126: 0 | E126: =OFFSET(INDEX(Composições!A:J,MATCH(Orçamentária!A126,Composições!A:A,0),8),2,0) -> 69.597 | F126: 0 | G126: =IF(A126<>"",IF(AND(#REF!="Padrão",$H$4=#REF!),BDI!$B$17,IF(AND(#REF!="Padrão",$H$4=#REF!),BDI!$C$17,IF(AND(#REF!="Diferenciado",$H$4=#REF!),BDI!$G$17,IF(AND(#REF!="Diferenciado",$H$4=#REF!),BDI!$H$17,IF(#REF!="ZERO",0))))),"") -> 
A127: SF-00122 | B127: Furo em placas de granito ou mármore reaproveitadas, para instalação de torneira ou misturador | C127: un | D127: 0 | E127: =OFFSET(INDEX(Composições!A:J,MATCH(Orçamentária!A127,Composições!A:A,0),8),2,0) -> 10.431 | F127: 0 | G127: =IF(A127<>"",IF(AND(#REF!="Padrão",$H$4=#REF!),BDI!$B$17,IF(AND(#REF!="Padrão",$H$4=#REF!),BDI!$C$17,IF(AND(#REF!="Diferenciado",$H$4=#REF!),BDI!$G$17,IF(AND(#REF!="Diferenciado",$H$4=#REF!),BDI!$H$17,IF(#REF!="ZERO",0))))),"") -> 
A128: SF-00123 | B128: Granito Cinza Andorinha 20mm para rodabancada | C128: m2 | D128: 0 | E128: =OFFSET(INDEX(Composições!A:J,MATCH(Orçamentária!A128,Composições!A:A,0),8),2,0) -> 56.22213145 | F128: 0 | G128: =IF(A128<>"",IF(AND(#REF!="Padrão",$H$4=#REF!),BDI!$B$17,IF(AND(#REF!="Padrão",$H$4=#REF!),BDI!$C$17,IF(AND(#REF!="Diferenciado",$H$4=#REF!),BDI!$G$17,IF(AND(#REF!="Diferenciado",$H$4=#REF!),BDI!$H$17,IF(#REF!="ZERO",0))))),"") -> 
A129: SF-00124 | B129: Granito Cinza Andorinha 20mm para bancadas | C129: m2 | D129: 0 | E129: =OFFSET(INDEX(Composições!A:J,MATCH(Orçamentária!A129,Composições!A:A,0),8),2,0) -> 91.95883245 | F129: 0 | G129: =IF(A129<>"",IF(AND(#REF!="Padrão",$H$4=#REF!),BDI!$B$17,IF(AND(#REF!="Padrão",$H$4=#REF!),BDI!$C$17,IF(AND(#REF!="Diferenciado",$H$4=#REF!),BDI!$G$17,IF(AND(#REF!="Diferenciado",$H$4=#REF!),BDI!$H$17,IF(#REF!="ZERO",0))))),"") -> 
A130: SF-00125 | B130: Granito Cinza Andorinha 20mm para divisória | C130: m2 | D130: 0 | E130: =OFFSET(INDEX(Composições!A:J,MATCH(Orçamentária!A130,Composições!A:A,0),8),2,0) -> 115.1824288 | F130: 0 | G130: =IF(A130<>"",IF(AND(#REF!="Padrão",$H$4=#REF!),BDI!$B$17,IF(AND(#REF!="Padrão",$H$4=#REF!),BDI!$C$17,IF(AND(#REF!="Diferenciado",$H$4=#REF!),BDI!$G$17,IF(AND(#REF!="Diferenciado",$H$4=#REF!),BDI!$H$17,IF(#REF!="ZERO",0))))),"") -> 
A131: SF-00126 | B131: Granito Preto São Gabriel 20mm para rodabancada | C131: m2 | D131: 0 | E131: =OFFSET(INDEX(Composições!A:J,MATCH(Orçamentária!A131,Composições!A:A,0),8),2,0) -> 56.22213145 | F131: 0 | G131: =IF(A131<>"",IF(AND(#REF!="Padrão",$H$4=#REF!),BDI!$B$17,IF(AND(#REF!="Padrão",$H$4=#REF!),BDI!$C$17,IF(AND(#REF!="Diferenciado",$H$4=#REF!),BDI!$G$17,IF(AND(#REF!="Diferenciado",$H$4=#REF!),BDI!$H$17,IF(#REF!="ZERO",0))))),"") -> 
A132: SF-00127 | B132: Granito Preto São Gabriel 20mm para bancadas | C132: m2 | D132: 0 | E132: =OFFSET(INDEX(Composições!A:J,MATCH(Orçamentária!A132,Composições!A:A,0),8),2,0) -> 91.95883245 | F132: 0 | G132: =IF(A132<>"",IF(AND(#REF!="Padrão",$H$4=#REF!),BDI!$B$17,IF(AND(#REF!="Padrão",$H$4=#REF!),BDI!$C$17,IF(AND(#REF!="Diferenciado",$H$4=#REF!),BDI!$G$17,IF(AND(#REF!="Diferenciado",$H$4=#REF!),BDI!$H$17,IF(#REF!="ZERO",0))))),"") -> 
A133: SF-00128 | B133: Instalação de bancada de granito ou mármore reaproveitada | C133: m2 | D133: 0 | E133: =OFFSET(INDEX(Composições!A:J,MATCH(Orçamentária!A133,Composições!A:A,0),8),2,0) -> 91.95883245 | F133: 0 | G133: =IF(A133<>"",IF(AND(#REF!="Padrão",$H$4=#REF!),BDI!$B$17,IF(AND(#REF!="Padrão",$H$4=#REF!),BDI!$C$17,IF(AND(#REF!="Diferenciado",$H$4=#REF!),BDI!$G$17,IF(AND(#REF!="Diferenciado",$H$4=#REF!),BDI!$H$17,IF(#REF!="ZERO",0))))),"") -> 
A134: SF-00129 | B134: Instalação de rodapé reaproveitado, de mármore ou granito | C134: m2 | D134: 0 | E134: =OFFSET(INDEX(Composições!A:J,MATCH(Orçamentária!A134,Composições!A:A,0),8),2,0) -> 8.4333951 | F134: 0 | G134: =IF(A134<>"",IF(AND(#REF!="Padrão",$H$4=#REF!),BDI!$B$17,IF(AND(#REF!="Padrão",$H$4=#REF!),BDI!$C$17,IF(AND(#REF!="Diferenciado",$H$4=#REF!),BDI!$G$17,IF(AND(#REF!="Diferenciado",$H$4=#REF!),BDI!$H$17,IF(#REF!="ZERO",0))))),"") -> 
A135: SF-00130 | B135: Instalação de soleira ou peitoril, de mármore ou granito, reaproveitados | C135: m2 | D135: 0 | E135: =OFFSET(INDEX(Composições!A:J,MATCH(Orçamentária!A135,Composições!A:A,0),8),2,0) -> 38.85519 | F135: =IF(ISNUMBER(E135),D135*E135,"") -> 0 | G135: =IF(A135<>"",IF(AND(#REF!="Padrão",$H$4=#REF!),BDI!$B$17,IF(AND(#REF!="Padrão",$H$4=#REF!),BDI!$C$17,IF(AND(#REF!="Diferenciado",$H$4=#REF!),BDI!$G$17,IF(AND(#REF!="Diferenciado",$H$4=#REF!),BDI!$H$17,IF(#REF!="ZERO",0))))),"") ->  | H135: =IF(ISNUMBER(E135),ROUND(E135*(1+G135),2),"") ->  | I135: =IF(ISNUMBER(E135),ROUND(H135*D135,2),"") -> 
A136: SF-00131 | B136: Mármore Branco Especial 20mm para rodabancada | C136: m2 | D136: 0 | E136: =OFFSET(INDEX(Composições!A:J,MATCH(Orçamentária!A136,Composições!A:A,0),8),2,0) -> 39.19035 | F136: 0 | G136: =IF(A136<>"",IF(AND(#REF!="Padrão",$H$4=#REF!),BDI!$B$17,IF(AND(#REF!="Padrão",$H$4=#REF!),BDI!$C$17,IF(AND(#REF!="Diferenciado",$H$4=#REF!),BDI!$G$17,IF(AND(#REF!="Diferenciado",$H$4=#REF!),BDI!$H$17,IF(#REF!="ZERO",0))))),"") -> 
A137: SF-00132 | B137: Divisória em gesso acartonado revestido - Painel liso cego - Ed. Anexo I | C137: m2 | D137: 0 | G137: =IF(A137<>"",IF(AND(#REF!="Padrão",$H$4=#REF!),BDI!$B$17,IF(AND(#REF!="Padrão",$H$4=#REF!),BDI!$C$17,IF(AND(#REF!="Diferenciado",$H$4=#REF!),BDI!$G$17,IF(AND(#REF!="Diferenciado",$H$4=#REF!),BDI!$H$17,IF(#REF!="ZERO",0))))),"") -> 
A138: SF-00133 | B138: Divisória em gesso acartonado revestido - Painel liso, painel de vidro e bandeira – ed. Anexo I | C138: m2 | D138: 0 | G138: =IF(A138<>"",IF(AND(#REF!="Padrão",$H$4=#REF!),BDI!$B$17,IF(AND(#REF!="Padrão",$H$4=#REF!),BDI!$C$17,IF(AND(#REF!="Diferenciado",$H$4=#REF!),BDI!$G$17,IF(AND(#REF!="Diferenciado",$H$4=#REF!),BDI!$H$17,IF(#REF!="ZERO",0))))),"") -> 
A139: SF-00134 | B139: Divisória MDF com painel liso cego e bandeira | C139: m2 | D139: 0 | G139: =IF(A139<>"",IF(AND(#REF!="Padrão",$H$4=#REF!),BDI!$B$17,IF(AND(#REF!="Padrão",$H$4=#REF!),BDI!$C$17,IF(AND(#REF!="Diferenciado",$H$4=#REF!),BDI!$G$17,IF(AND(#REF!="Diferenciado",$H$4=#REF!),BDI!$H$17,IF(#REF!="ZERO",0))))),"") -> 
A140: SF-00135 | B140: Divisória MDF com painel liso, painel de vidro e bandeira | C140: m2 | D140: 0 | G140: =IF(A140<>"",IF(AND(#REF!="Padrão",$H$4=#REF!),BDI!$B$17,IF(AND(#REF!="Padrão",$H$4=#REF!),BDI!$C$17,IF(AND(#REF!="Diferenciado",$H$4=#REF!),BDI!$G$17,IF(AND(#REF!="Diferenciado",$H$4=#REF!),BDI!$H$17,IF(#REF!="ZERO",0))))),"") -> 
A141: SF-00136 | B141: Divisória MDF com painel paginado cego e bandeira - Interlegis | C141: m2 | D141: 0 | G141: =IF(A141<>"",IF(AND(#REF!="Padrão",$H$4=#REF!),BDI!$B$17,IF(AND(#REF!="Padrão",$H$4=#REF!),BDI!$C$17,IF(AND(#REF!="Diferenciado",$H$4=#REF!),BDI!$G$17,IF(AND(#REF!="Diferenciado",$H$4=#REF!),BDI!$H$17,IF(#REF!="ZERO",0))))),"") -> 
A142: SF-00137 | B142: Divisória MDF com painel paginado, painel de vidro e bandeira - Interlegis | C142: m2 | D142: 0 | G142: =IF(A142<>"",IF(AND(#REF!="Padrão",$H$4=#REF!),BDI!$B$17,IF(AND(#REF!="Padrão",$H$4=#REF!),BDI!$C$17,IF(AND(#REF!="Diferenciado",$H$4=#REF!),BDI!$G$17,IF(AND(#REF!="Diferenciado",$H$4=#REF!),BDI!$H$17,IF(#REF!="ZERO",0))))),"") -> 
A143: SF-00138 | B143: Instalação de divisória e porta de divisória com dobradiça reaproveitadas | C143: m2 | D143: 0 | E143: =OFFSET(INDEX(Composições!A:J,MATCH(Orçamentária!A143,Composições!A:A,0),8),2,0) -> 0.95 | F143: 0 | G143: =IF(A143<>"",IF(AND(#REF!="Padrão",$H$4=#REF!),BDI!$B$17,IF(AND(#REF!="Padrão",$H$4=#REF!),BDI!$C$17,IF(AND(#REF!="Diferenciado",$H$4=#REF!),BDI!$G$17,IF(AND(#REF!="Diferenciado",$H$4=#REF!),BDI!$H$17,IF(#REF!="ZERO",0))))),"") -> 
A144: SF-00139 | B144: Alçapão em forro de gesso acartonado | C144: m2 | D144: 0 | E144: =OFFSET(INDEX(Composições!A:J,MATCH(Orçamentária!A144,Composições!A:A,0),8),2,0) -> 45.14856 | F144: 0 | G144: =IF(A144<>"",IF(AND(#REF!="Padrão",$H$4=#REF!),BDI!$B$17,IF(AND(#REF!="Padrão",$H$4=#REF!),BDI!$C$17,IF(AND(#REF!="Diferenciado",$H$4=#REF!),BDI!$G$17,IF(AND(#REF!="Diferenciado",$H$4=#REF!),BDI!$H$17,IF(#REF!="ZERO",0))))),"") -> 
A145: SF-00140 | B145: Forro de PVC em réguas de 100 x 6000mm | C145: m2 | D145: 0 | E145: =OFFSET(INDEX(Composições!A:J,MATCH(Orçamentária!A145,Composições!A:A,0),8),2,0) -> 39.52015865 | F145: 0 | G145: =IF(A145<>"",IF(AND(#REF!="Padrão",$H$4=#REF!),BDI!$B$17,IF(AND(#REF!="Padrão",$H$4=#REF!),BDI!$C$17,IF(AND(#REF!="Diferenciado",$H$4=#REF!),BDI!$G$17,IF(AND(#REF!="Diferenciado",$H$4=#REF!),BDI!$H$17,IF(#REF!="ZERO",0))))),"") -> 
A146: SF-00141 | B146: Forro de PVC em réguas de 100 x 6000mm, sem estrutura | C146: m2 | D146: 0 | E146: =OFFSET(INDEX(Composições!A:J,MATCH(Orçamentária!A146,Composições!A:A,0),8),2,0) -> 18.7696041 | F146: 0 | G146: =IF(A146<>"",IF(AND(#REF!="Padrão",$H$4=#REF!),BDI!$B$17,IF(AND(#REF!="Padrão",$H$4=#REF!),BDI!$C$17,IF(AND(#REF!="Diferenciado",$H$4=#REF!),BDI!$G$17,IF(AND(#REF!="Diferenciado",$H$4=#REF!),BDI!$H$17,IF(#REF!="ZERO",0))))),"") -> 
A147: SF-00142 | B147: Forro de PVC modular em placas | C147: m2 | D147: 0 | E147: =OFFSET(INDEX(Composições!A:J,MATCH(Orçamentária!A147,Composições!A:A,0),8),2,0) -> 23.38744865 | F147: 0 | G147: =IF(A147<>"",IF(AND(#REF!="Padrão",$H$4=#REF!),BDI!$B$17,IF(AND(#REF!="Padrão",$H$4=#REF!),BDI!$C$17,IF(AND(#REF!="Diferenciado",$H$4=#REF!),BDI!$G$17,IF(AND(#REF!="Diferenciado",$H$4=#REF!),BDI!$H$17,IF(#REF!="ZERO",0))))),"") -> 
A148: SF-00143 | B148: Forro em chapas metálicas | C148: m2 | D148: 0 | E148: =OFFSET(INDEX(Composições!A:J,MATCH(Orçamentária!A148,Composições!A:A,0),8),2,0) -> 15.24275 | F148: 0 | G148: =IF(A148<>"",IF(AND(#REF!="Padrão",$H$4=#REF!),BDI!$B$17,IF(AND(#REF!="Padrão",$H$4=#REF!),BDI!$C$17,IF(AND(#REF!="Diferenciado",$H$4=#REF!),BDI!$G$17,IF(AND(#REF!="Diferenciado",$H$4=#REF!),BDI!$H$17,IF(#REF!="ZERO",0))))),"") -> 
A149: SF-00144 | B149: Forro em gesso acartonado monolítico | C149: m2 | D149: 0 | E149: =OFFSET(INDEX(Composições!A:J,MATCH(Orçamentária!A149,Composições!A:A,0),8),2,0) -> 54.5418598 | F149: 0 | G149: =IF(A149<>"",IF(AND(#REF!="Padrão",$H$4=#REF!),BDI!$B$17,IF(AND(#REF!="Padrão",$H$4=#REF!),BDI!$C$17,IF(AND(#REF!="Diferenciado",$H$4=#REF!),BDI!$G$17,IF(AND(#REF!="Diferenciado",$H$4=#REF!),BDI!$H$17,IF(#REF!="ZERO",0))))),"") -> 
A150: SF-00145 | B150: Forro em gesso acartonado monolítico, sem estrutura | C150: m2 | D150: 0 | E150: =OFFSET(INDEX(Composições!A:J,MATCH(Orçamentária!A150,Composições!A:A,0),8),2,0) -> 40.2168269 | F150: 0 | G150: =IF(A150<>"",IF(AND(#REF!="Padrão",$H$4=#REF!),BDI!$B$17,IF(AND(#REF!="Padrão",$H$4=#REF!),BDI!$C$17,IF(AND(#REF!="Diferenciado",$H$4=#REF!),BDI!$G$17,IF(AND(#REF!="Diferenciado",$H$4=#REF!),BDI!$H$17,IF(#REF!="ZERO",0))))),"") -> 
A151: SF-00146 | B151: Forro mineral modulado | C151: m2 | D151: 0 | E151: =OFFSET(INDEX(Composições!A:J,MATCH(Orçamentária!A151,Composições!A:A,0),8),2,0) -> 89.2145 | F151: 0 | G151: =IF(A151<>"",IF(AND(#REF!="Padrão",$H$4=#REF!),BDI!$B$17,IF(AND(#REF!="Padrão",$H$4=#REF!),BDI!$C$17,IF(AND(#REF!="Diferenciado",$H$4=#REF!),BDI!$G$17,IF(AND(#REF!="Diferenciado",$H$4=#REF!),BDI!$H$17,IF(#REF!="ZERO",0))))),"") -> 
A152: SF-00147 | B152: Forro mineral modulado, sem estrutura | C152: m2 | D152: 0 | E152: =OFFSET(INDEX(Composições!A:J,MATCH(Orçamentária!A152,Composições!A:A,0),8),2,0) -> 25.02965 | F152: 0 | G152: =IF(A152<>"",IF(AND(#REF!="Padrão",$H$4=#REF!),BDI!$B$17,IF(AND(#REF!="Padrão",$H$4=#REF!),BDI!$C$17,IF(AND(#REF!="Diferenciado",$H$4=#REF!),BDI!$G$17,IF(AND(#REF!="Diferenciado",$H$4=#REF!),BDI!$H$17,IF(#REF!="ZERO",0))))),"") -> 
A153: SF-00148 | B153: Instalação de forro de PVC reaproveitado | C153: m2 | D153: 0 | E153: =OFFSET(INDEX(Composições!A:J,MATCH(Orçamentária!A153,Composições!A:A,0),8),2,0) -> 2.2413825 | F153: 0 | G153: =IF(A153<>"",IF(AND(#REF!="Padrão",$H$4=#REF!),BDI!$B$17,IF(AND(#REF!="Padrão",$H$4=#REF!),BDI!$C$17,IF(AND(#REF!="Diferenciado",$H$4=#REF!),BDI!$G$17,IF(AND(#REF!="Diferenciado",$H$4=#REF!),BDI!$H$17,IF(#REF!="ZERO",0))))),"") -> 
A154: SF-00149 | B154: Instalação de forro mineral reaproveitado | C154: m2 | D154: 0 | E154: =OFFSET(INDEX(Composições!A:J,MATCH(Orçamentária!A154,Composições!A:A,0),8),2,0) -> 38.5776 | F154: 0 | G154: =IF(A154<>"",IF(AND(#REF!="Padrão",$H$4=#REF!),BDI!$B$17,IF(AND(#REF!="Padrão",$H$4=#REF!),BDI!$C$17,IF(AND(#REF!="Diferenciado",$H$4=#REF!),BDI!$G$17,IF(AND(#REF!="Diferenciado",$H$4=#REF!),BDI!$H$17,IF(#REF!="ZERO",0))))),"") -> 
A155: SF-00150 | B155: Tabica metálica em forro de gesso acartonado | C155: m | D155: 0 | E155: =OFFSET(INDEX(Composições!A:J,MATCH(Orçamentária!A155,Composições!A:A,0),8),2,0) -> 8.4304501 | F155: 0 | G155: =IF(A155<>"",IF(AND(#REF!="Padrão",$H$4=#REF!),BDI!$B$17,IF(AND(#REF!="Padrão",$H$4=#REF!),BDI!$C$17,IF(AND(#REF!="Diferenciado",$H$4=#REF!),BDI!$G$17,IF(AND(#REF!="Diferenciado",$H$4=#REF!),BDI!$H$17,IF(#REF!="ZERO",0))))),"") -> 
A156: SF-00151 | B156: Instalação de revestimento de piso têxtil (carpete) reaproveitado | C156: m2 | D156: 0 | E156: =OFFSET(INDEX(Composições!A:J,MATCH(Orçamentária!A156,Composições!A:A,0),8),2,0) -> 5.78265 | F156: 0 | G156: =IF(A156<>"",IF(AND(#REF!="Padrão",$H$4=#REF!),BDI!$B$17,IF(AND(#REF!="Padrão",$H$4=#REF!),BDI!$C$17,IF(AND(#REF!="Diferenciado",$H$4=#REF!),BDI!$G$17,IF(AND(#REF!="Diferenciado",$H$4=#REF!),BDI!$H$17,IF(#REF!="ZERO",0))))),"") -> 
A157: SF-00152 | B157: Baguetes metálicos | C157: m | D157: 0 | E157: =OFFSET(INDEX(Composições!A:J,MATCH(Orçamentária!A157,Composições!A:A,0),8),2,0) -> 4.53625 | F157: 0 | G157: =IF(A157<>"",IF(AND(#REF!="Padrão",$H$4=#REF!),BDI!$B$17,IF(AND(#REF!="Padrão",$H$4=#REF!),BDI!$C$17,IF(AND(#REF!="Diferenciado",$H$4=#REF!),BDI!$G$17,IF(AND(#REF!="Diferenciado",$H$4=#REF!),BDI!$H$17,IF(#REF!="ZERO",0))))),"") -> 
A158: SF-00153 | B158: Cordão de massa de vidraceiro | C158: m | D158: 0 | E158: =OFFSET(INDEX(Composições!A:J,MATCH(Orçamentária!A158,Composições!A:A,0),8),2,0) -> 16.6041 | F158: 0 | G158: =IF(A158<>"",IF(AND(#REF!="Padrão",$H$4=#REF!),BDI!$B$17,IF(AND(#REF!="Padrão",$H$4=#REF!),BDI!$C$17,IF(AND(#REF!="Diferenciado",$H$4=#REF!),BDI!$G$17,IF(AND(#REF!="Diferenciado",$H$4=#REF!),BDI!$H$17,IF(#REF!="ZERO",0))))),"") -> 
A159: SF-00154 | B159: Espelho cristal, e=5 mm | C159: m2 | D159: 0 | E159: =OFFSET(INDEX(Composições!A:J,MATCH(Orçamentária!A159,Composições!A:A,0),8),2,0) -> 56.1336 | F159: 0 | G159: =IF(A159<>"",IF(AND(#REF!="Padrão",$H$4=#REF!),BDI!$B$17,IF(AND(#REF!="Padrão",$H$4=#REF!),BDI!$C$17,IF(AND(#REF!="Diferenciado",$H$4=#REF!),BDI!$G$17,IF(AND(#REF!="Diferenciado",$H$4=#REF!),BDI!$H$17,IF(#REF!="ZERO",0))))),"") -> 
A160: SF-00155 | B160: Instalação de vidro reaproveitado | C160: m2 | D160: 0 | E160: =OFFSET(INDEX(Composições!A:J,MATCH(Orçamentária!A160,Composições!A:A,0),8),2,0) -> 25.09615 | F160: 0 | G160: =IF(A160<>"",IF(AND(#REF!="Padrão",$H$4=#REF!),BDI!$B$17,IF(AND(#REF!="Padrão",$H$4=#REF!),BDI!$C$17,IF(AND(#REF!="Diferenciado",$H$4=#REF!),BDI!$G$17,IF(AND(#REF!="Diferenciado",$H$4=#REF!),BDI!$H$17,IF(#REF!="ZERO",0))))),"") -> 
A161: SF-00156 | B161: Substituição da calafetação com selante | C161: m | D161: 0 | E161: =OFFSET(INDEX(Composições!A:J,MATCH(Orçamentária!A161,Composições!A:A,0),8),2,0) -> 18.0874623 | F161: 0 | G161: =IF(A161<>"",IF(AND(#REF!="Padrão",$H$4=#REF!),BDI!$B$17,IF(AND(#REF!="Padrão",$H$4=#REF!),BDI!$C$17,IF(AND(#REF!="Diferenciado",$H$4=#REF!),BDI!$G$17,IF(AND(#REF!="Diferenciado",$H$4=#REF!),BDI!$H$17,IF(#REF!="ZERO",0))))),"") -> 
A162: SF-00157 | B162: Vidro liso comum transparente 4mm | C162: m2 | D162: 0 | E162: =OFFSET(INDEX(Composições!A:J,MATCH(Orçamentária!A162,Composições!A:A,0),8),2,0) -> 127.23065 | F162: 0 | G162: =IF(A162<>"",IF(AND(#REF!="Padrão",$H$4=#REF!),BDI!$B$17,IF(AND(#REF!="Padrão",$H$4=#REF!),BDI!$C$17,IF(AND(#REF!="Diferenciado",$H$4=#REF!),BDI!$G$17,IF(AND(#REF!="Diferenciado",$H$4=#REF!),BDI!$H$17,IF(#REF!="ZERO",0))))),"") -> 
A163: SF-00158 | B163: Vidro liso comum transparente 6mm | C163: m2 | D163: 0 | E163: =OFFSET(INDEX(Composições!A:J,MATCH(Orçamentária!A163,Composições!A:A,0),8),2,0) -> 178.7368 | F163: 0 | G163: =IF(A163<>"",IF(AND(#REF!="Padrão",$H$4=#REF!),BDI!$B$17,IF(AND(#REF!="Padrão",$H$4=#REF!),BDI!$C$17,IF(AND(#REF!="Diferenciado",$H$4=#REF!),BDI!$G$17,IF(AND(#REF!="Diferenciado",$H$4=#REF!),BDI!$H$17,IF(#REF!="ZERO",0))))),"") -> 
A164: SF-00159 | B164: Instalação de painéis de vidro temperado reaproveitados | C164: m2 | D164: 0 | E164: =OFFSET(INDEX(Composições!A:J,MATCH(Orçamentária!A164,Composições!A:A,0),8),2,0) -> 35.9689 | F164: 0 | G164: =IF(A164<>"",IF(AND(#REF!="Padrão",$H$4=#REF!),BDI!$B$17,IF(AND(#REF!="Padrão",$H$4=#REF!),BDI!$C$17,IF(AND(#REF!="Diferenciado",$H$4=#REF!),BDI!$G$17,IF(AND(#REF!="Diferenciado",$H$4=#REF!),BDI!$H$17,IF(#REF!="ZERO",0))))),"") -> 
A165: SF-00160 | B165: Mola hidráulica de piso | C165: un | D165: 0 | E165: =OFFSET(INDEX(Composições!A:J,MATCH(Orçamentária!A165,Composições!A:A,0),8),2,0) -> 17.97495 | F165: 0 | G165: =IF(A165<>"",IF(AND(#REF!="Padrão",$H$4=#REF!),BDI!$B$17,IF(AND(#REF!="Padrão",$H$4=#REF!),BDI!$C$17,IF(AND(#REF!="Diferenciado",$H$4=#REF!),BDI!$G$17,IF(AND(#REF!="Diferenciado",$H$4=#REF!),BDI!$H$17,IF(#REF!="ZERO",0))))),"") -> 
A166: SF-00161 | B166: Instalação de persianas reaproveitadas | C166: m | D166: 0 | E166: =OFFSET(INDEX(Composições!A:J,MATCH(Orçamentária!A166,Composições!A:A,0),8),2,0) -> 5.72792715 | F166: 0 | G166: =IF(A166<>"",IF(AND(#REF!="Padrão",$H$4=#REF!),BDI!$B$17,IF(AND(#REF!="Padrão",$H$4=#REF!),BDI!$C$17,IF(AND(#REF!="Diferenciado",$H$4=#REF!),BDI!$G$17,IF(AND(#REF!="Diferenciado",$H$4=#REF!),BDI!$H$17,IF(#REF!="ZERO",0))))),"") -> 
A167: SF-00162 | B167: Persiana vertical em alumínio 90 mm, cor verde claro | C167: m2 | D167: 0 | G167: =IF(A167<>"",IF(AND(#REF!="Padrão",$H$4=#REF!),BDI!$B$17,IF(AND(#REF!="Padrão",$H$4=#REF!),BDI!$C$17,IF(AND(#REF!="Diferenciado",$H$4=#REF!),BDI!$G$17,IF(AND(#REF!="Diferenciado",$H$4=#REF!),BDI!$H$17,IF(#REF!="ZERO",0))))),"") -> 
A168: SF-00163 | B168: Persiana vertical em tecido Juta Resinado sem blecaute de 90mm, cor bege | C168: m2 | D168: 0 | G168: =IF(A168<>"",IF(AND(#REF!="Padrão",$H$4=#REF!),BDI!$B$17,IF(AND(#REF!="Padrão",$H$4=#REF!),BDI!$C$17,IF(AND(#REF!="Diferenciado",$H$4=#REF!),BDI!$G$17,IF(AND(#REF!="Diferenciado",$H$4=#REF!),BDI!$H$17,IF(#REF!="ZERO",0))))),"") -> 
A169: SF-00164 | B169: Persiana vertical em tecido sintético sem blecaute de 90mm, cores verde escuro ou branca | C169: m2 | D169: 0 | G169: =IF(A169<>"",IF(AND(#REF!="Padrão",$H$4=#REF!),BDI!$B$17,IF(AND(#REF!="Padrão",$H$4=#REF!),BDI!$C$17,IF(AND(#REF!="Diferenciado",$H$4=#REF!),BDI!$G$17,IF(AND(#REF!="Diferenciado",$H$4=#REF!),BDI!$H$17,IF(#REF!="ZERO",0))))),"") -> 
A170: SF-00165 | B170: Película jateada | C170: m2 | D170: 0 | G170: =IF(A170<>"",IF(AND(#REF!="Padrão",$H$4=#REF!),BDI!$B$17,IF(AND(#REF!="Padrão",$H$4=#REF!),BDI!$C$17,IF(AND(#REF!="Diferenciado",$H$4=#REF!),BDI!$G$17,IF(AND(#REF!="Diferenciado",$H$4=#REF!),BDI!$H$17,IF(#REF!="ZERO",0))))),"") -> 
A171: SF-00166 | B171: Tubo de ligação para bacia sanitária | C171: un | D171: 0 | E171: =OFFSET(INDEX(Composições!A:J,MATCH(Orçamentária!A171,Composições!A:A,0),8),2,0) -> 5.5898 | F171: 0 | G171: =IF(A171<>"",IF(AND(#REF!="Padrão",$H$4=#REF!),BDI!$B$17,IF(AND(#REF!="Padrão",$H$4=#REF!),BDI!$C$17,IF(AND(#REF!="Diferenciado",$H$4=#REF!),BDI!$G$17,IF(AND(#REF!="Diferenciado",$H$4=#REF!),BDI!$H$17,IF(#REF!="ZERO",0))))),"") -> 
A172: SF-00167 | B172: Tubo PVC esgoto ou aguas pluviais predial DN 100mm | C172: m | D172: 0 | E172: =OFFSET(INDEX(Composições!A:J,MATCH(Orçamentária!A172,Composições!A:A,0),8),2,0) -> 44.3449113 | F172: 0 | G172: =IF(A172<>"",IF(AND(#REF!="Padrão",$H$4=#REF!),BDI!$B$17,IF(AND(#REF!="Padrão",$H$4=#REF!),BDI!$C$17,IF(AND(#REF!="Diferenciado",$H$4=#REF!),BDI!$G$17,IF(AND(#REF!="Diferenciado",$H$4=#REF!),BDI!$H$17,IF(#REF!="ZERO",0))))),"") -> 
A173: SF-00168 | B173: Tubo PVC esgoto ou aguas pluviais predial DN 40mm | C173: m | D173: 0 | E173: =OFFSET(INDEX(Composições!A:J,MATCH(Orçamentária!A173,Composições!A:A,0),8),2,0) -> 13.8254165 | F173: 0 | G173: =IF(A173<>"",IF(AND(#REF!="Padrão",$H$4=#REF!),BDI!$B$17,IF(AND(#REF!="Padrão",$H$4=#REF!),BDI!$C$17,IF(AND(#REF!="Diferenciado",$H$4=#REF!),BDI!$G$17,IF(AND(#REF!="Diferenciado",$H$4=#REF!),BDI!$H$17,IF(#REF!="ZERO",0))))),"") -> 
A174: SF-00169 | B174: Tubo PVC esgoto ou aguas pluviais predial DN 50mm | C174: m | D174: 0 | E174: =OFFSET(INDEX(Composições!A:J,MATCH(Orçamentária!A174,Composições!A:A,0),8),2,0) -> 18.9681902 | F174: 0 | G174: =IF(A174<>"",IF(AND(#REF!="Padrão",$H$4=#REF!),BDI!$B$17,IF(AND(#REF!="Padrão",$H$4=#REF!),BDI!$C$17,IF(AND(#REF!="Diferenciado",$H$4=#REF!),BDI!$G$17,IF(AND(#REF!="Diferenciado",$H$4=#REF!),BDI!$H$17,IF(#REF!="ZERO",0))))),"") -> 
A175: SF-00170 | B175: Tubo PVC esgoto ou aguas pluviais predial DN 75mm | C175: m | D175: 0 | E175: =OFFSET(INDEX(Composições!A:J,MATCH(Orçamentária!A175,Composições!A:A,0),8),2,0) -> 28.2947639 | F175: 0 | G175: =IF(A175<>"",IF(AND(#REF!="Padrão",$H$4=#REF!),BDI!$B$17,IF(AND(#REF!="Padrão",$H$4=#REF!),BDI!$C$17,IF(AND(#REF!="Diferenciado",$H$4=#REF!),BDI!$G$17,IF(AND(#REF!="Diferenciado",$H$4=#REF!),BDI!$H$17,IF(#REF!="ZERO",0))))),"") -> 
A176: SF-00171 | B176: Tubo PVC soldável agua fria DN 25mm | C176: m | D176: 0 | E176: =OFFSET(INDEX(Composições!A:J,MATCH(Orçamentária!A176,Composições!A:A,0),8),2,0) -> 3.3575565 | F176: 0 | G176: =IF(A176<>"",IF(AND(#REF!="Padrão",$H$4=#REF!),BDI!$B$17,IF(AND(#REF!="Padrão",$H$4=#REF!),BDI!$C$17,IF(AND(#REF!="Diferenciado",$H$4=#REF!),BDI!$G$17,IF(AND(#REF!="Diferenciado",$H$4=#REF!),BDI!$H$17,IF(#REF!="ZERO",0))))),"") -> 
A177: SF-00172 | B177: Tubo PVC soldável agua fria DN 32mm | C177: m | D177: 0 | E177: =OFFSET(INDEX(Composições!A:J,MATCH(Orçamentária!A177,Composições!A:A,0),8),2,0) -> 6.991487 | F177: 0 | G177: =IF(A177<>"",IF(AND(#REF!="Padrão",$H$4=#REF!),BDI!$B$17,IF(AND(#REF!="Padrão",$H$4=#REF!),BDI!$C$17,IF(AND(#REF!="Diferenciado",$H$4=#REF!),BDI!$G$17,IF(AND(#REF!="Diferenciado",$H$4=#REF!),BDI!$H$17,IF(#REF!="ZERO",0))))),"") -> 
A178: SF-00173 | B178: Tubo PVC soldável agua fria DN 40mm | C178: m | D178: 0 | E178: =OFFSET(INDEX(Composições!A:J,MATCH(Orçamentária!A178,Composições!A:A,0),8),2,0) -> 10.023564 | F178: 0 | G178: =IF(A178<>"",IF(AND(#REF!="Padrão",$H$4=#REF!),BDI!$B$17,IF(AND(#REF!="Padrão",$H$4=#REF!),BDI!$C$17,IF(AND(#REF!="Diferenciado",$H$4=#REF!),BDI!$G$17,IF(AND(#REF!="Diferenciado",$H$4=#REF!),BDI!$H$17,IF(#REF!="ZERO",0))))),"") -> 
A179: SF-00174 | B179: Tubo PVC soldável agua fria DN 50mm | C179: m | D179: 0 | E179: =OFFSET(INDEX(Composições!A:J,MATCH(Orçamentária!A179,Composições!A:A,0),8),2,0) -> 11.5378165 | F179: 0 | G179: =IF(A179<>"",IF(AND(#REF!="Padrão",$H$4=#REF!),BDI!$B$17,IF(AND(#REF!="Padrão",$H$4=#REF!),BDI!$C$17,IF(AND(#REF!="Diferenciado",$H$4=#REF!),BDI!$G$17,IF(AND(#REF!="Diferenciado",$H$4=#REF!),BDI!$H$17,IF(#REF!="ZERO",0))))),"") -> 
A180: SF-00175 | B180: Base registro gaveta 3/4" | C180: un | D180: 0 | E180: =OFFSET(INDEX(Composições!A:J,MATCH(Orçamentária!A180,Composições!A:A,0),8),2,0) -> 9.3269575 | F180: 0 | G180: =IF(A180<>"",IF(AND(#REF!="Padrão",$H$4=#REF!),BDI!$B$17,IF(AND(#REF!="Padrão",$H$4=#REF!),BDI!$C$17,IF(AND(#REF!="Diferenciado",$H$4=#REF!),BDI!$G$17,IF(AND(#REF!="Diferenciado",$H$4=#REF!),BDI!$H$17,IF(#REF!="ZERO",0))))),"") -> 
A181: SF-00176 | B181: Caixa sifonada de PVC DN 150mm | C181: un | D181: 0 | E181: =OFFSET(INDEX(Composições!A:J,MATCH(Orçamentária!A181,Composições!A:A,0),8),2,0) -> 52.6198844 | F181: 0 | G181: =IF(A181<>"",IF(AND(#REF!="Padrão",$H$4=#REF!),BDI!$B$17,IF(AND(#REF!="Padrão",$H$4=#REF!),BDI!$C$17,IF(AND(#REF!="Diferenciado",$H$4=#REF!),BDI!$G$17,IF(AND(#REF!="Diferenciado",$H$4=#REF!),BDI!$H$17,IF(#REF!="ZERO",0))))),"") -> 
A182: SF-00177 | B182: Caixa sifonada de PVC DN 250mm | C182: un | D182: 0 | E182: =OFFSET(INDEX(Composições!A:J,MATCH(Orçamentária!A182,Composições!A:A,0),8),2,0) -> 90.5533844 | F182: 0 | G182: =IF(A182<>"",IF(AND(#REF!="Padrão",$H$4=#REF!),BDI!$B$17,IF(AND(#REF!="Padrão",$H$4=#REF!),BDI!$C$17,IF(AND(#REF!="Diferenciado",$H$4=#REF!),BDI!$G$17,IF(AND(#REF!="Diferenciado",$H$4=#REF!),BDI!$H$17,IF(#REF!="ZERO",0))))),"") -> 
A183: SF-00178 | B183: Grelha quadrada para ralo 10x10cm | C183: un | D183: 0 | E183: =OFFSET(INDEX(Composições!A:J,MATCH(Orçamentária!A183,Composições!A:A,0),8),2,0) -> 2.1831 | F183: 0 | G183: =IF(A183<>"",IF(AND(#REF!="Padrão",$H$4=#REF!),BDI!$B$17,IF(AND(#REF!="Padrão",$H$4=#REF!),BDI!$C$17,IF(AND(#REF!="Diferenciado",$H$4=#REF!),BDI!$G$17,IF(AND(#REF!="Diferenciado",$H$4=#REF!),BDI!$H$17,IF(#REF!="ZERO",0))))),"") -> 
A184: SF-00179 | B184: Grelha quadrada para ralo 15x15cm | C184: un | D184: 0 | E184: =OFFSET(INDEX(Composições!A:J,MATCH(Orçamentária!A184,Composições!A:A,0),8),2,0) -> 2.1831 | F184: 0 | G184: =IF(A184<>"",IF(AND(#REF!="Padrão",$H$4=#REF!),BDI!$B$17,IF(AND(#REF!="Padrão",$H$4=#REF!),BDI!$C$17,IF(AND(#REF!="Diferenciado",$H$4=#REF!),BDI!$G$17,IF(AND(#REF!="Diferenciado",$H$4=#REF!),BDI!$H$17,IF(#REF!="ZERO",0))))),"") -> 
A185: SF-00180 | B185: Ralo seco PVC DN 100x40mm | C185: un | D185: 0 | E185: =OFFSET(INDEX(Composições!A:J,MATCH(Orçamentária!A185,Composições!A:A,0),8),2,0) -> 8.66614795 | F185: 0 | G185: =IF(A185<>"",IF(AND(#REF!="Padrão",$H$4=#REF!),BDI!$B$17,IF(AND(#REF!="Padrão",$H$4=#REF!),BDI!$C$17,IF(AND(#REF!="Diferenciado",$H$4=#REF!),BDI!$G$17,IF(AND(#REF!="Diferenciado",$H$4=#REF!),BDI!$H$17,IF(#REF!="ZERO",0))))),"") -> 
A186: SF-00181 | B186: Assento para bacia convencional – Linha Administrativa | C186: un | D186: 0 | E186: =OFFSET(INDEX(Composições!A:J,MATCH(Orçamentária!A186,Composições!A:A,0),8),2,0) -> 1.4554 | F186: 0 | G186: =IF(A186<>"",IF(AND(#REF!="Padrão",$H$4=#REF!),BDI!$B$17,IF(AND(#REF!="Padrão",$H$4=#REF!),BDI!$C$17,IF(AND(#REF!="Diferenciado",$H$4=#REF!),BDI!$G$17,IF(AND(#REF!="Diferenciado",$H$4=#REF!),BDI!$H$17,IF(#REF!="ZERO",0))))),"") -> 
A187: SF-00182 | B187: Bacia convencional – Linha Administrativa | C187: un | D187: 0 | E187: =OFFSET(INDEX(Composições!A:J,MATCH(Orçamentária!A187,Composições!A:A,0),8),2,0) -> 165.5142431 | F187: 0 | G187: =IF(A187<>"",IF(AND(#REF!="Padrão",$H$4=#REF!),BDI!$B$17,IF(AND(#REF!="Padrão",$H$4=#REF!),BDI!$C$17,IF(AND(#REF!="Diferenciado",$H$4=#REF!),BDI!$G$17,IF(AND(#REF!="Diferenciado",$H$4=#REF!),BDI!$H$17,IF(#REF!="ZERO",0))))),"") -> 
A188: SF-00183 | B188: Bacia convencional com saída horizontal | C188: un | D188: 0 | E188: =OFFSET(INDEX(Composições!A:J,MATCH(Orçamentária!A188,Composições!A:A,0),8),2,0) -> 55.36174305 | F188: 0 | G188: =IF(A188<>"",IF(AND(#REF!="Padrão",$H$4=#REF!),BDI!$B$17,IF(AND(#REF!="Padrão",$H$4=#REF!),BDI!$C$17,IF(AND(#REF!="Diferenciado",$H$4=#REF!),BDI!$G$17,IF(AND(#REF!="Diferenciado",$H$4=#REF!),BDI!$H$17,IF(#REF!="ZERO",0))))),"") -> 
A189: SF-00184 | B189: Cuba oval de embutir | C189: un | D189: 0 | E189: =OFFSET(INDEX(Composições!A:J,MATCH(Orçamentária!A189,Composições!A:A,0),8),2,0) -> 31.08590665 | F189: 0 | G189: =IF(A189<>"",IF(AND(#REF!="Padrão",$H$4=#REF!),BDI!$B$17,IF(AND(#REF!="Padrão",$H$4=#REF!),BDI!$C$17,IF(AND(#REF!="Diferenciado",$H$4=#REF!),BDI!$G$17,IF(AND(#REF!="Diferenciado",$H$4=#REF!),BDI!$H$17,IF(#REF!="ZERO",0))))),"") -> 
A190: SF-00185 | B190: Cuba retangular em aço inox – Linha Administrativa | C190: un | D190: 0 | E190: =OFFSET(INDEX(Composições!A:J,MATCH(Orçamentária!A190,Composições!A:A,0),8),2,0) -> 17.5427798 | F190: 0 | G190: =IF(A190<>"",IF(AND(#REF!="Padrão",$H$4=#REF!),BDI!$B$17,IF(AND(#REF!="Padrão",$H$4=#REF!),BDI!$C$17,IF(AND(#REF!="Diferenciado",$H$4=#REF!),BDI!$G$17,IF(AND(#REF!="Diferenciado",$H$4=#REF!),BDI!$H$17,IF(#REF!="ZERO",0))))),"") -> 
A191: SF-00186 | B191: Cuba semiencaixe quadrada com mesa | C191: un | D191: 0 | E191: =OFFSET(INDEX(Composições!A:J,MATCH(Orçamentária!A191,Composições!A:A,0),8),2,0) -> 31.08590665 | F191: 0 | G191: =IF(A191<>"",IF(AND(#REF!="Padrão",$H$4=#REF!),BDI!$B$17,IF(AND(#REF!="Padrão",$H$4=#REF!),BDI!$C$17,IF(AND(#REF!="Diferenciado",$H$4=#REF!),BDI!$G$17,IF(AND(#REF!="Diferenciado",$H$4=#REF!),BDI!$H$17,IF(#REF!="ZERO",0))))),"") -> 
A192: SF-00187 | B192: Instalação de lavatório reaproveitado | C192: un | D192: 0 | E192: =OFFSET(INDEX(Composições!A:J,MATCH(Orçamentária!A192,Composições!A:A,0),8),2,0) -> 37.2711695 | F192: 0 | G192: =IF(A192<>"",IF(AND(#REF!="Padrão",$H$4=#REF!),BDI!$B$17,IF(AND(#REF!="Padrão",$H$4=#REF!),BDI!$C$17,IF(AND(#REF!="Diferenciado",$H$4=#REF!),BDI!$G$17,IF(AND(#REF!="Diferenciado",$H$4=#REF!),BDI!$H$17,IF(#REF!="ZERO",0))))),"") -> 
A193: SF-00188 | B193: Instalação de mictório reaproveitado | C193: un | D193: 0 | E193: =OFFSET(INDEX(Composições!A:J,MATCH(Orçamentária!A193,Composições!A:A,0),8),2,0) -> 37.6612965 | F193: 0 | G193: =IF(A193<>"",IF(AND(#REF!="Padrão",$H$4=#REF!),BDI!$B$17,IF(AND(#REF!="Padrão",$H$4=#REF!),BDI!$C$17,IF(AND(#REF!="Diferenciado",$H$4=#REF!),BDI!$G$17,IF(AND(#REF!="Diferenciado",$H$4=#REF!),BDI!$H$17,IF(#REF!="ZERO",0))))),"") -> 
A194: SF-00189 | B194: Instalação de vaso sanitário reaproveitado | C194: un | D194: 0 | E194: =OFFSET(INDEX(Composições!A:J,MATCH(Orçamentária!A194,Composições!A:A,0),8),2,0) -> 55.32742335 | F194: 0 | G194: =IF(A194<>"",IF(AND(#REF!="Padrão",$H$4=#REF!),BDI!$B$17,IF(AND(#REF!="Padrão",$H$4=#REF!),BDI!$C$17,IF(AND(#REF!="Diferenciado",$H$4=#REF!),BDI!$G$17,IF(AND(#REF!="Diferenciado",$H$4=#REF!),BDI!$H$17,IF(#REF!="ZERO",0))))),"") -> 
A195: SF-00190 | B195: Lavatório suspenso | C195: un | D195: 0 | E195: =OFFSET(INDEX(Composições!A:J,MATCH(Orçamentária!A195,Composições!A:A,0),8),2,0) -> 109.1576695 | F195: 0 | G195: =IF(A195<>"",IF(AND(#REF!="Padrão",$H$4=#REF!),BDI!$B$17,IF(AND(#REF!="Padrão",$H$4=#REF!),BDI!$C$17,IF(AND(#REF!="Diferenciado",$H$4=#REF!),BDI!$G$17,IF(AND(#REF!="Diferenciado",$H$4=#REF!),BDI!$H$17,IF(#REF!="ZERO",0))))),"") -> 
A196: SF-00191 | B196: Mictório – Linha Administrativa | C196: un | D196: 0 | E196: =OFFSET(INDEX(Composições!A:J,MATCH(Orçamentária!A196,Composições!A:A,0),8),2,0) -> 288.109939 | F196: 0 | G196: =IF(A196<>"",IF(AND(#REF!="Padrão",$H$4=#REF!),BDI!$B$17,IF(AND(#REF!="Padrão",$H$4=#REF!),BDI!$C$17,IF(AND(#REF!="Diferenciado",$H$4=#REF!),BDI!$G$17,IF(AND(#REF!="Diferenciado",$H$4=#REF!),BDI!$H$17,IF(#REF!="ZERO",0))))),"") -> 
A197: SF-00192 | B197: Tanque 38 litros – Linha Administrativa | C197: un | D197: 0 | E197: =OFFSET(INDEX(Composições!A:J,MATCH(Orçamentária!A197,Composições!A:A,0),8),2,0) -> 73.8933598 | F197: 0 | G197: =IF(A197<>"",IF(AND(#REF!="Padrão",$H$4=#REF!),BDI!$B$17,IF(AND(#REF!="Padrão",$H$4=#REF!),BDI!$C$17,IF(AND(#REF!="Diferenciado",$H$4=#REF!),BDI!$G$17,IF(AND(#REF!="Diferenciado",$H$4=#REF!),BDI!$H$17,IF(#REF!="ZERO",0))))),"") -> 
A198: SF-00193 | B198: Acabamento para registro GD – Linha Administrativa | C198: un | D198: 0 | E198: =OFFSET(INDEX(Composições!A:J,MATCH(Orçamentária!A198,Composições!A:A,0),8),2,0) -> 1.52532 | F198: 0 | G198: =IF(A198<>"",IF(AND(#REF!="Padrão",$H$4=#REF!),BDI!$B$17,IF(AND(#REF!="Padrão",$H$4=#REF!),BDI!$C$17,IF(AND(#REF!="Diferenciado",$H$4=#REF!),BDI!$G$17,IF(AND(#REF!="Diferenciado",$H$4=#REF!),BDI!$H$17,IF(#REF!="ZERO",0))))),"") -> 
A199: SF-00194 | B199: Acabamento para registro PQ – Linha Administrativa | C199: un | D199: 0 | E199: =OFFSET(INDEX(Composições!A:J,MATCH(Orçamentária!A199,Composições!A:A,0),8),2,0) -> 1.52532 | F199: =IF(ISNUMBER(E199),D199*E199,"") -> 0 | G199: =IF(A199<>"",IF(AND(#REF!="Padrão",$H$4=#REF!),BDI!$B$17,IF(AND(#REF!="Padrão",$H$4=#REF!),BDI!$C$17,IF(AND(#REF!="Diferenciado",$H$4=#REF!),BDI!$G$17,IF(AND(#REF!="Diferenciado",$H$4=#REF!),BDI!$H$17,IF(#REF!="ZERO",0))))),"") ->  | H199: =IF(ISNUMBER(E199),ROUND(E199*(1+G199),2),"") ->  | I199: =IF(ISNUMBER(E199),ROUND(H199*D199,2),"") -> 
A200: SF-00195 | B200: Ducha higiênica – Linha Administrativa | C200: un | D200: 0 | E200: =OFFSET(INDEX(Composições!A:J,MATCH(Orçamentária!A200,Composições!A:A,0),8),2,0) -> 17.043 | F200: 0 | G200: =IF(A200<>"",IF(AND(#REF!="Padrão",$H$4=#REF!),BDI!$B$17,IF(AND(#REF!="Padrão",$H$4=#REF!),BDI!$C$17,IF(AND(#REF!="Diferenciado",$H$4=#REF!),BDI!$G$17,IF(AND(#REF!="Diferenciado",$H$4=#REF!),BDI!$H$17,IF(#REF!="ZERO",0))))),"") -> 
A201: SF-00196 | B201: Instalação de metais e acessórios reaproveitados | C201: un | D201: 0 | E201: =OFFSET(INDEX(Composições!A:J,MATCH(Orçamentária!A201,Composições!A:A,0),8),2,0) -> 3.4316223 | F201: 0 | G201: =IF(A201<>"",IF(AND(#REF!="Padrão",$H$4=#REF!),BDI!$B$17,IF(AND(#REF!="Padrão",$H$4=#REF!),BDI!$C$17,IF(AND(#REF!="Diferenciado",$H$4=#REF!),BDI!$G$17,IF(AND(#REF!="Diferenciado",$H$4=#REF!),BDI!$H$17,IF(#REF!="ZERO",0))))),"") -> 
... 1145 more rows

Sheet BDI
A1: =Orçamentária!A1 -> Manutenção de revestimentos de mármore nas fachadas do Edifício Principal e do Anexo I do SF
A2: BENEFÍCIOS E DESPESAS INDIRETAS - BDI
A4: BDI Edificações | F4: BDI mero fornecimento
A5: Componentes do BDI | B5: Cálculo sem CPRB | C5: Cálculo com CPRB | F5: Componentes do BDI | G5: Cálculo sem CPRB | H5: Cálculo com CPRB
B6: não-desonerado | C6: desonerado | G6: não-desonerado | H6: desonerado
B7: % considerado | C7: % considerado | G7: % considerado | H7: % considerado
A8: AC | B8: 0.035 | C8: 0.035 | F8: AC | G8: 0.0175 | H8: 0.0175
A9: S+G | B9: 0.008 | C9: 0.008 | F9: S+G | G9: 0.0039 | H9: 0.0039
A10: R | B10: 0.0125 | C10: 0.0125 | F10: R | G10: 0.0056 | H10: 0.0056
A11: DF | B11: 0.0076 | C11: 0.0076 | F11: DF | G11: 0.0085 | H11: 0.0085
A12: L | B12: 0.0678 | C12: 0.0678 | F12: L | G12: 0.035 | H12: 0.035
A13: PIS | B13: 0.0065 | C13: 0.0065 | F13: PIS | G13: 0.0065 | H13: 0.0065
A14: COFINS | B14: 0.03 | C14: 0.03 | F14: COFINS | G14: 0.03 | H14: 0.03
A15: CPRB | B15: 0 | C15: 0.045 | F15: CPRB | G15: 0 | H15: 0.045
A16: ISS | B16: 0.01 | C16: 0.01 | F16: ISS | G16: 0 | H16: 0
A17: BDI Edificações | B17: =ROUND(((1+B8+B9+B10)*(1+B11)*(1+B12))/(1-(B13+B14+B15+B16))-1,4) -> 0.191 | C17: =ROUND(((1+C8+C9+C10)*(1+C11)*(1+C12))/(1-(C13+C14+C15+C16))-1,4) -> 0.25 | F17: BDI mero fornecimento | G17: =ROUND(((1+G8+G9+G10)*(1+G11)*(1+G12))/(1-(G13+G14+G15+G16))-1,4) -> 0.1126 | H17: =ROUND(((1+H8+H9+H10)*(1+H11)*(1+H12))/(1-(H13+H14+H15+H16))-1,4) -> 0.1671
A19: Referências TCU - BDI Edificações | F19: Referências TCU - BDI mero fornecimento
A20: Componentes do BDI | B20: 1º Quartil | C20: Médio | D20: 3º Quartil | F20: Componentes do BDI | G20: 1º Quartil | H20: Médio | I20: 3º Quartil
A21: AC | B21: 0.03 | C21: 0.04 | D21: 0.055 | F21: AC | G21: 0.015 | H21: 0.0345 | I21: 0.0449
A22: S+G | B22: 0.008 | C22: 0.008 | D22: 0.01 | F22: S+G | G22: 0.003 | H22: 0.0048 | I22: 0.0082
A23: R | B23: 0.0097 | C23: 0.0127 | D23: 0.0127 | F23: R | G23: 0.0056 | H23: 0.0085 | I23: 0.0089
A24: DF | B24: 0.0059 | C24: 0.0123 | D24: 0.0139 | F24: DF | G24: 0.0085 | H24: 0.0085 | I24: 0.0111
A25: L | B25: 0.0616 | C25: 0.074 | D25: 0.0896 | F25: L | G25: 0.035 | H25: 0.0511 | I25: 0.0622
A26: BDI Edificações | B26: 0.2034 | C26: 0.2212 | D26: 0.25 | F26: BDI mero fornecimento | G26: 0.111 | H26: 0.1402 | I26: 0.168
A48: Fontes: Acórdãos 2.369/2011-TCU-Plenário e 2.622/2013-TCU-Plenário.
